{"text_format":"1","workbook":"xlsx","n_sheets":5,"sheets":["DA","GP","GA","DA-GP-GA","Table_complète_racines"],"not_rendered":{"charts":0,"images":0,"macros":0,"external_links":0,"defined_names":3,"comments":0,"pivot_tables":0},"unopened":[],"bounds":{"document_bytes":16777216,"sheet_cells":100000,"rows_first":2000,"rows_last":500,"rows_between":2000,"halvings":0,"cell_chars":16384,"cell_head_chars":4096},"cells_cut":0,"cells_raw":0,"read":"whole","date_system":"1900"}

{"sheet":"DA","index":0,"n_rows":31,"n_cols":2,"rows_kept":31,"cut":false,"hidden":false,"merged":[[0,0,0,7],[1,0,1,3]]}
["Les différents regroupements de racines de GHM    (V11d)                            "]
["ATIH   juin 2012"]
["Domaines d'activité","Nb Rac GHM V11d"]
["D01 - Digestif",72]
["D02 - Orthopédie traumatologie",56]
["D03 - Traumatismes multiples ou complexes graves",2]
["D04 - Rhumatologie",17]
["D05 - Système nerveux (hors cathétérismes vasculaires diagnostiques et interventionnels)",45]
["D06 - Cathétérismes vasculaires diagnostiques et interventionnels",11]
["D07 - Cardio-vasculaire (hors cathétérismes vasculaires diagnostiques et interventionnels)",42]
["D09 - Pneumologie",30]
["D10 - ORL, Stomatologie",39]
["D11 - Ophtalmologie",18]
["D12 - Gynécologie - sein",32]
["D13 - Obstétrique",21]
["D14 - Nouveau-nés et période périnatale",19]
["D15 - Uro-néphrologie et génital ",55]
["D16 - Hématologie",28]
["D17 - Chimiothérapie, radiothérapie, hors séances",6]
["D18 - Maladies infectieuses (dont VIH)",16]
["D19 - Endocrinologie",22]
["D20 - Tissu cutané et tissu sous-cutané",16]
["D21 - Brûlures",6]
["D22 - Psychiatrie",16]
["D23 - Toxicologie, Intoxications, Alcool",13]
["D24 - Douleurs chroniques, Soins palliatifs",3]
["D25 - Transplant. d'organes",6]
["D26 - Activités inter spécialités, suivi thérapeutique d'affections connues",32]
["D27 - Séances",19]
["D90 - Séjours en erreur",5]
["Total général",647]

{"sheet":"GP","index":1,"n_rows":87,"n_cols":2,"rows_kept":87,"cut":false,"hidden":false,"merged":[[0,0,0,7],[1,0,1,3]]}
["Les différents regroupements de racines de GHM    (V11d)                            "]
["ATIH   juin 2012"]
["Groupe de type planification","Nb Rac GHM V11d"]
["C01 - Transplant. d'organes (hors greffes de moelle & cornée)",6]
["C02 - Chirurgie du rachis, Neuro-chirurgie",9]
["C03 - Neurostimulateurs",2]
["C04 - Chir. cardio-thoracique (hors transplant. d'organe), Pontages aorto-coronariens",8]
["C05 - Chir. majeure sur le thorax, l'app. respiratoire, interventions sous thoracoscopie",3]
["C06 - Chir. Digestive majeure : oesophage, estomac, grêle, côlon, rectum",7]
["C07 - Chir. Viscérale autre : rate, grêle, colon, proctologie, hernies",15]
["C08 - Chir. hépato-biliaire et pancréatique",9]
["C09 - Chir. majeure de l'app. Locomoteur:  hanche, fémur, genou, épaule",9]
["C10 - Arthroscopies, Biopsies ostéo-articulaires",5]
["C11 - Chirurgies autres de l'appareil locomoteur, amputations",24]
["C12 - Traumatismes multiples graves",1]
["C13 - Stimulateurs, Défibrillateurs cardiaques",5]
["C14 - Chirurgie vasculaire",6]
["C15 - Chirurgie ORL stomato",22]
["C16 - Chirurgie Ophtalmologique et greffe de cornée",10]
["C17 - Chirurgie Gynécologique",15]
["C18 - Chirurgie du sein",5]
["C19 - Chirurgie Urologique",8]
["C20 - Chirurgie de l'appareil génital masculin",11]
["C21 - Chir. pour Aff. des Org. Hématopoiétiques, Lymphomes, Leucémies, Tumeurs SID",5]
["C22 - Chirurgie de la Thyroide, Parathyroide, du Tractus Thyréoglosse, endocrinologie",5]
["C23 - Parages de plaies, Greffes de peau, des Tissus S/C",6]
["C24 - Chirurgie pour brûlures",2]
["C25 - Chirurgie inter spécialités",10]
["K01 - Hépato-Gastro-Entérologie, sans acte opératoire, avec anesthésie",1]
["K02 - Endoscopies digestives et biliaires avec ou sans anesthésie",7]
["K03 - Neurologie médicale avec Acte classant non opératoire, ou anesthésie",2]
["K04 - Aff. Cardio-vasculaire avec Acte classant non opératoire, ou anesthésie",2]
["K05 - Cathétérismes vasculaires diagnostiques et interventionnels",11]
["K06 - Mise en place d'accès vasculaire",2]
["K07 - Endoscopies bronchiques, avec ou sans anesthésie",1]
["K08 - Traumatologie avec acte classant non opératoire ou anesthésie",3]
["K09 - ORL Stomato avec Acte classant non opératoire et endoscopies",3]
["K10 - Aff. génito-urinaires avec Acte classant non opératoire et endoscopies",13]
["K11 - Douleur chroniques, avec bloc ou infiltration, en ambulatoire",1]
["K12 - Explorations nocturnes, séjours de moins de 2 jours",1]
["K13 - Dialyse (hors Séances)",1]
["K14 - Radiothérapie (hors séances)",3]
["K15 - Autres séj. sans acte, avec anesthésie, en ambulatoire (Aff. myéloP., peau, sein...)",3]
["K16 - Brûlures sans acte opératoire, avec anesthésie, en ambulatoire",1]
["K17 - Traumatismes, allergies et empoisonnements sans acte opératoire, avec anesthésie, en ambulatoire",1]
["N01 - Chirurgie des nouveau-nés, prématurés et de la période périnatale",5]
["N02 - Aff. médicales des nouveau-nés, prématurés et de la période périnatale",10]
["N03 - Mort-nés, décès et transferts précoces de nouveau-nés",4]
["O01 -  Accouchements par voie basse",7]
["O02 - Césariennes",3]
["O03 - IVG",1]
["O04 - Obstétrique autre",10]
["S01 - Dialyse",4]
["S02 - Chimiothérapie pour tumeur",1]
["S03 - Chimiothérapie pour aff. Non tumorale",1]
["S04 - Radiothérapie",10]
["S05 - Transfusion",1]
["S06 - Aphérèse",1]
["S07 - Oxygénothérapie hyperbare, en séances",1]
["X01 - Greffe de moelle, Auto et Allogreffes de cellules souches",3]
["X02 - Hépato-Gastro-Entérologie",33]
["X03 - Neurologie médicale",29]
["X04 - Commotions cérébrales, Traumatismes crâniens",3]
["X05 - Traumatologie et ablation de matériel de l'appareil locomoteur",15]
["X06 - Rhumatologie",17]
["X07 - Affections Cardio-vasculaires",19]
["X08 - Pneumologie",26]
["X09 - ORL, Stomato",14]
["X10 - Ophtalmologie",8]
["X11 - Gynécologie, Sénologie (hors Obstétrique)",12]
["X12 - Uro-Néphrologie médicale (hors Séances)",15]
["X13 - Appareil génital masculin",7]
["X14 - Maladies immunitaires, du Sang, des Organes hématopoïétiques, Tumeurs SID",20]
["X15 - Diabète, Maladies métaboliques, Endocrinologie (hors complications)",17]
["X16 - Affections et traumatismes de la peau, gelures",10]
["X17 - Brûlures",3]
["X18 - Suivi thérap. d'affections connues, Allergologie, Rééducation, Convalescence",7]
["X19 - Fièvre, Infection, Septicémie, VIH",16]
["X20 - Psychiatrie",16]
["X21 - Effets nocifs, alcool, toxicologie, allergies",13]
["X22 - Douleur et soins palliatifs",2]
["X23 - Chimiothérapie (hors séances)",3]
["X24 - Médecine inter spécialités, Autres symptômes ou motifs médicaux",8]
["X25 - Traumatismes multiples graves",1]
["X26 - Chirurgie esthétique et de confort",2]
["Z99 - Séjours en Erreur",5]
["Total général",647]

{"sheet":"GA","index":2,"n_rows":221,"n_cols":2,"rows_kept":221,"cut":false,"hidden":false,"merged":[[0,0,0,7],[1,0,1,3]]}
["Les différents regroupements de racines de GHM    (V11d)                            "]
["ATIH   juin 2012"]
["Groupes d'activité","Nb Rac GHM V11d"]
["G001 - Chirurgies digestives hautes",5]
["G002 - Chirurgie digestive majeure ",2]
["G003 - Appendicectomies",2]
["G004 - Hernies",3]
["G005 - Occlusions, sub-occlusions digestives",1]
["G006 - Chirurgie mineure grêle/colon",1]
["G007 - Chirurgies rectum/anus (hors résections)",3]
["G008 - Autres chirurgies digestives",6]
["G009 - Cholécystectomies",2]
["G010 - Autres chirurgies foie, pancréas, voies biliaires",7]
["G011 - Prise en charge médicale des tumeurs malignes du tube digestif",2]
["G012 - Ulcères, hémorragies digestives",3]
["G013 - Suivi de greffes digestives",2]
["G014 - Maladies inflammatoires de l'intestin",1]
["G015 - Gastro-entérites et affections du tube digestif",4]
["G016 - Autres gastroentérites et maladies diverses du tube digestif",2]
["G017 - Autres affections digestives",3]
["G018 - Hépatites, cirrhoses",3]
["G019 - Affections hépatiques sévères et affections du pancréas",4]
["G020 - Autres affections hépatiques, voies biliaires",3]
["G021 - Symptômes digestifs",3]
["G022 - Endoscopies digestives avec ou sans anesthésie",6]
["G023 - Explorations et surveillance pour affections de l'appareil digestif, du système hépatobiliaire et du pancréas",2]
["G024 - Chirurgies majeures orthopédiques (dont hanche et fémur genou)",9]
["G025 - Arthroscopies, Biopsies ostéo-articulaires",5]
["G026 - Chirurgie Fractures, entorses, luxations, tractions",3]
["G027 - Ablations matériel",2]
["G028 - Amputations",3]
["G029 - Chirurgies main, poignet",5]
["G030 - Chirurgie pour Ostéomyélites aigües (y compris vertébrales) et arthrites septiques",1]
["G031 - Chirurgie de la jambe",4]
["G032 - Chirurgie de la cheville ou du pied",4]
["G033 - Chirurgie du membre supérieur (hors prothèses)",2]
["G034 - Chirurgie des tissus mous",2]
["G035 - Interventions sur le tissu mou pour tumeurs malignes",1]
["G036 - Traumatismes du bassin et des membres",13]
["G037 - Polytraumatismes graves",1]
["G038 - Prise en charge médicale des tumeurs de l'appareil musculosquelettique, du tissu conjonctif et fractures pathologiques",2]
["G039 - Maladies osseuses et arthropathies",9]
["G040 - Autres affections rhumatologiques",4]
["G041 - Chirurgies rachis/moelle",4]
["G042 - Explorations et surveillance de l'appareil musculosquelettique et du tissu conjonctif",1]
["G043 - Chirurgies SNC trauma",1]
["G044 - Chirurgies SNC hors trauma (rachis et moelle exceptés)",4]
["G045 - Pose stimulateur cérébral / médullaire",2]
["G046 - Trauma crâniens",3]
["G047 - Affections dégénératives du système nerveux",3]
["G048 - Affections nerfs crâniens / moëlle",2]
["G049 - AVC",6]
["G050 - Comas non traumatiques",1]
["G051 - Migraines et céphalées",1]
["G052 - Convulsions, épilepsie",3]
["G053 - Infections SNC",2]
["G054 - Prise en charge médicale des tumeurs  système nerveux",2]
["G055 - Autres affections du système nerveux",8]
["G056 - Explorations et surveillance pour affections du système nerveux",1]
["G057 - Cathétérismes thérapeutiques vasculaires et coronariens avec endoprothèse",2]
["G058 - Cathétérismes thérapeutiques vasculaires et coronariens sans endoprothèse",4]
["G059 - Cathéthérismes diagnostiques vasculaires et coronariens",2]
["G060 - Cathétérisme thérapeutiques vasculaires du système nerveux ",3]
["G061 - Chirurgies valvulaires",2]
["G062 - Pontages coronaires",2]
["G063 - Chirurgie cardiaque, autres",4]
["G064 - Stimulateurs / défibrillateurs cardiaques",5]
["G065 - Cardiopathies, valvulopathies",4]
["G066 - Coronaropathies",4]
["G067 - Endocardites",1]
["G068 - Hypertension artérielle",1]
["G069 - Troubles du rythme/conduction",1]
["G070 - Cardiologie autres",5]
["G071 - Explorations et surveillance pour affections de l'appareil circulatoire",1]
["G072 - Chirurgies majeures revascularisation",1]
["G073 - Ligatures veines",1]
["G074 - Autres chirurgies vasculaires",4]
["G075 - Phlébites, varices et autres troubles vasculaires d'origine veineuse",2]
["G076 - Chirurgies thoraciques majeures",2]
["G077 - Autres chirurgies thoraciques",1]
["G078 - Bronchites, bronchiolites et asthme",5]
["G079 - Embolies pulmonaires et détresses respiratoires",2]
["G080 - Infections respiratoires",7]
["G081 - Prise en charge médicale des tumeurs de l'appareil respiratoire",1]
["G082 - Affections respiratoires, autres",10]
["G083 - Explorations et surveillance pour affections de l'appareil respiratoire",1]
["G084 - Endoscopies bronchiques, avec ou sans anesthésie",1]
["G085 - Chirurgies ORL majeures",4]
["G086 - Chirurgie de l'oreille",3]
["G087 - Amygdalectomies, VG, drains transT",8]
["G088 - Autres chirurgies ORL",6]
["G089 - Chirurgies de la bouche",1]
["G090 - Affections Cavité buccale et dents",2]
["G091 - Infections ORL",4]
["G092 - Prise en charge médicale des tumeurs malignes ORL, Stomato",1]
["G093 - Pathologies ORL et Stomato autres",6]
["G094 - Explorations et surveillance pour affections ORL",1]
["G095 - Endoscopies ORL, avec ou sans anesthésie",1]
["G096 - Chirurgies ophtalmo lourdes",4]
["G097 - Cataractes",2]
["G098 - Allogreffes de cornées",1]
["G099 - Autres chirurgies ophtalmo",3]
["G100 - Affections oeil",6]
["G101 - Infections oeil",1]
["G102 - Explorations et surveillance pour affections de l'oeil",1]
["G103 - Chirurgie pour tumeurs malignes (app génital fem)",3]
["G104 - Chirurgies pelviennes majeures (app gen feminin)",1]
["G105 - Chirurgies utérus / annexes",6]
["G106 - Autres chirurgies gynécologiques autres que le sein",5]
["G107 - Chirurgie pour tumeurs malignes sein",3]
["G108 - Chirurgie du sein hors TM",2]
["G109 - Prise en charge médicale des tumeurs de l'appareil génital féminin",2]
["G110 - Autres affections appareil génital féminin",2]
["G111 - AMP",1]
["G112 - Infections gynécologiques d'organes autres que le sein",2]
["G113 - Affections des seins ",2]
["G114 - Prise en charge médicale des tumeurs des seins ",1]
["G115 - Explorations et surveillance gynécologiques et des affections des seins",2]
["G116 - Accouchements par voie basse",7]
["G117 - Césariennes",3]
["G118 - IVG",1]
["G119 - Affections de ante partum",6]
["G120 - Affections du post partum",2]
["G121 - Interruptions médicale de grossesse",2]
["G122 - Chirurgie du nouveau né",5]
["G123 - Transferts précoces de nouveau nés",1]
["G124 - affections médicales du nouveau né",10]
["G125 - Décès de nouveau nés",2]
["G126 - Chirurgies reins, uretères, vessie, glandes surrénales",5]
["G127 - Chirurgies transurétrales, autres",3]
["G128 - Chirurgies appareil génital masculin",6]
["G129 - Circoncisions",1]
["G130 - Chirurgies pelviennes majeures (urologie)",2]
["G131 - Chirurgie des tumeurs appareil génital masculin",2]
["G132 - Prise en charge médicale des tumeurs reins et voies urinaires",1]
["G133 - Infections reins et voies urinaires, lithiases",3]
["G134 - Autres affections reins, voies urinaires",9]
["G135 - Explorations et surveillance pour affections du rein et des voies urinaires",2]
["G136 - Infections appareil génital masculin",2]
["G137 - Prise en charge médicale des tumeurs de l'appareil génital masculin",1]
["G138 - Autres affections appareil génital masculin",3]
["G139 - Explorations et surveillance des affections de l'appareil génital masculin",1]
["G140 - Endoscopies génito-urinaires, avec ou sans anesthésie",10]
["G141 - Chirurgie au cours des tumeurs malignes (hématologie)",5]
["G142 - greffes de cellules souches hématopoïétiques",3]
["G143 - Donneurs de moëlle",1]
["G144 - Affections hématologiques malignes ",4]
["G145 - Autres Maladies immunitaires, du Sang, des Organes hématopoïétiques, Tumeurs siège imprécis ou diffus",13]
["G146 - Explorations et surveillance pour affections du sang et des organes hématopoïétiques",1]
["G147 - Explorations et surveillance pour affections myéloprolifératives et tumeurs de siège imprécis ou diffus",1]
["G148 - Chimiothérapie hors séances",2]
["G149 - Radiothérapie hors séances",3]
["G150 - Chimiothérapie non tumorale hors séances",1]
["G151 - Maladies virales et fièvres d'origine inconnue",3]
["G152 - Septicémies",2]
["G153 - Maladies infectieuses ou parasitaires hors septicémies et maladies virales",5]
["G154 - Décès secondaire à une maladie infectieuse: séjours de moins de 2 jours",1]
["G155 - Explorations et surveillance pour maladies infectieuses ou parasitaires",1]
["G156 - Maladies VIH",4]
["G157 - Chirurgie des parathyroides, du tractus thyréoglosse, endocrinologie",3]
["G158 - Chirurgie de la thyroide",2]
["G159 - Diabète",4]
["G160 - Maladies endocriniennes hors diabète",3]
["G161 - Troubles métaboliques, nutritionnels et obésité",7]
["G162 - Explorations et surveillance pour affections endocriniennes, troubles métaboliques, nutritionnels et obésité",1]
["G163 - Greffes peau / parages hors brûlures",6]
["G164 - Intervention  peau et tissu sous-cutané",2]
["G165 - Affections peau et tissu sous-cutané",4]
["G166 - Infections peau et tissu sous-cutané",2]
["G167 - Prise en charge médicale des tumeurs de la peau et tissu sous-cutané",1]
["G168 - Explorations et surveillance des affections de la peau",1]
["G169 - Brûlures sans acte opératoire classant",3]
["G170 - Troubles mentaux d'origine organique et retards mentaux",2]
["G171 - Névroses, psychoses et autres troubles mentaux",13]
["G172 - Explorations et surveillance pour maladies et troubles mentaux",1]
["G173 - Toxicomanies et alcoolisme",5]
["G174 - Allergies",2]
["G175 - Iatrogénie, intox médicamenteuses et chimiques",6]
["G176 - Soins palliatifs",1]
["G177 - Douleurs chroniques",1]
["G178 - Transplantations d'organes",6]
["G179 - Chirurgie inter spécialités",10]
["G180 - Chirurgie esthétique et de confort",2]
["G181 - Médecine inter spécialités",6]
["G182 - Allergologie",2]
["G183 - Explorations nocturnes et apparentées",1]
["G184 - Suivi thérap.d'affections connues ",2]
["G185 - Explorations et surveillance pour autres motifs de recours aux soins",1]
["G186 - Rééducation - Convalescence",2]
["G187 - Séances : dialyse",4]
["G188 - Séances : transfusion",1]
["G189 - Séances : radiothérapie",10]
["G190 - Séances : chimiothérapie",1]
["G191 - Séances : chimiothérapie non tumorale",1]
["G192 - Séances : caisson hyperbare",1]
["G193 - Séances : aphérèse sanguine",1]
["G194 - Signes et symptômes",2]
["G195 - Mort-nés",1]
["G196 - 'Injections de toxine botulique, en ambulatoire",1]
["G197 - Affections du système nerveux sans acte opératoire avec anesthésie, en ambulatoire",1]
["G198 - Affections cardiovasculaires sans acte opératoire de la CMD 05, avec anesthésie, en ambulatoire",1]
["G199 - Mise en place d'accès vasculaire",2]
["G200 - Varices avec acte autre que ligature et éveinage, en ambulatoire",1]
["G201 - Affections de l'appareil génital féminin sans acte opératoire de la CMD 13, avec anesthésie, en ambulatoire",1]
["G202 - 'Insuffisance rénale, avec dialyse",1]
["G203 -  Autres séj. sans acte, avec anesthésie, en ambulatoire (Aff. myéloP., peau, sein..)",3]
["G204 - Brûlures chirurgie",2]
["G205 - Séjours pour douleurs chroniques rebelles comprenant un bloc ou une infiltration, en ambulatoire",1]
["G206 - Traumatismes, allergies et empoisonnements sans acte opératoire, avec anesthésie, en ambulatoire",1]
["G207 - actes ORL et stomato divers",2]
["G208 - Lithotritie extracorporelle de l'appareil urinaire, en ambulatoire",1]
["G209 - Séjours comprenant une biopsie prostatique, en ambulatoire",1]
["G210 - Traumatismes du rachis",2]
["G211 - Ostéomyélites aigües (y compris vertébrales) et arthrites septiques",1]
["G212 - Affections endocriniennes et problèmes alimentaires du nouveau né et du nourisson",2]
["G213 - Endoscopies digestives thérapeutiques et anesthésie : séjours de moins de 2 jours",1]
["G214 - Affections digestives sans acte opératoire de la CMD 06, avec anesthésie, en ambulatoire",1]
["G215 - Brûlures sans acte opératoire, avec anesthésie, en ambulatoire",1]
["G216 - Polytraumatismes graves",1]
["G999 - Séjours en Erreur ",5]
["Total général",647]

{"sheet":"DA-GP-GA","index":3,"n_rows":331,"n_cols":2,"rows_kept":331,"cut":false,"hidden":false,"merged":[[0,0,0,7],[1,0,1,3]]}
["Les différents regroupements de racines de GHM    (V11d)                            "]
["ATIH   juin 2012"]
["Hiérarchie des regroupements","Nb Rac GHM V11d"]
["D01 - Digestif"]
["C06 - Chir. Digestive majeure : oesophage, estomac, grêle, côlon, rectum"]
["G001 - Chirurgies digestives hautes",5]
["G002 - Chirurgie digestive majeure ",2]
["C07 - Chir. Viscérale autre : rate, grêle, colon, proctologie, hernies"]
["G003 - Appendicectomies",2]
["G004 - Hernies",3]
["G006 - Chirurgie mineure grêle/colon",1]
["G007 - Chirurgies rectum/anus (hors résections)",3]
["G008 - Autres chirurgies digestives",6]
["C08 - Chir. hépato-biliaire et pancréatique"]
["G009 - Cholécystectomies",2]
["G010 - Autres chirurgies foie, pancréas, voies biliaires",7]
["K01 - Hépato-Gastro-Entérologie, sans acte opératoire, avec anesthésie"]
["G214 - Affections digestives sans acte opératoire de la CMD 06, avec anesthésie, en ambulatoire",1]
["K02 - Endoscopies digestives et biliaires avec ou sans anesthésie"]
["G022 - Endoscopies digestives avec ou sans anesthésie",6]
["G213 - Endoscopies digestives thérapeutiques et anesthésie : séjours de moins de 2 jours",1]
["X02 - Hépato-Gastro-Entérologie"]
["G005 - Occlusions, sub-occlusions digestives",1]
["G011 - Prise en charge médicale des tumeurs malignes du tube digestif",2]
["G012 - Ulcères, hémorragies digestives",3]
["G013 - Suivi de greffes digestives",2]
["G014 - Maladies inflammatoires de l'intestin",1]
["G015 - Gastro-entérites et affections du tube digestif",4]
["G016 - Autres gastroentérites et maladies diverses du tube digestif",2]
["G017 - Autres affections digestives",3]
["G018 - Hépatites, cirrhoses",3]
["G019 - Affections hépatiques sévères et affections du pancréas",4]
["G020 - Autres affections hépatiques, voies biliaires",3]
["G021 - Symptômes digestifs",3]
["G023 - Explorations et surveillance pour affections de l'appareil digestif, du système hépatobiliaire et du pancréas",2]
["D02 - Orthopédie traumatologie"]
["C09 - Chir. majeure de l'app. Locomoteur:  hanche, fémur, genou, épaule"]
["G024 - Chirurgies majeures orthopédiques (dont hanche et fémur genou)",9]
["C10 - Arthroscopies, Biopsies ostéo-articulaires"]
["G025 - Arthroscopies, Biopsies ostéo-articulaires",5]
["C11 - Chirurgies autres de l'appareil locomoteur, amputations"]
["G027 - Ablations matériel",2]
["G028 - Amputations",3]
["G029 - Chirurgies main, poignet",5]
["G030 - Chirurgie pour Ostéomyélites aigües (y compris vertébrales) et arthrites septiques",1]
["G031 - Chirurgie de la jambe",4]
["G032 - Chirurgie de la cheville ou du pied",4]
["G033 - Chirurgie du membre supérieur (hors prothèses)",2]
["G034 - Chirurgie des tissus mous",2]
["G035 - Interventions sur le tissu mou pour tumeurs malignes",1]
["K08 - Traumatologie avec acte classant non opératoire ou anesthésie"]
["G026 - Chirurgie Fractures, entorses, luxations, tractions",3]
["X05 - Traumatologie et ablation de matériel de l'appareil locomoteur"]
["G036 - Traumatismes du bassin et des membres",13]
["G210 - Traumatismes du rachis",2]
["D03 - Traumatismes multiples ou complexes graves"]
["C12 - Traumatismes multiples graves"]
["G037 - Polytraumatismes graves",1]
["X25 - Traumatismes multiples graves"]
["G216 - Polytraumatismes graves",1]
["D04 - Rhumatologie"]
["X06 - Rhumatologie"]
["G038 - Prise en charge médicale des tumeurs de l'appareil musculosquelettique, du tissu conjonctif et fractures pathologiques",2]
["G039 - Maladies osseuses et arthropathies",9]
["G040 - Autres affections rhumatologiques",4]
["G042 - Explorations et surveillance de l'appareil musculosquelettique et du tissu conjonctif",1]
["G211 - Ostéomyélites aigües (y compris vertébrales) et arthrites septiques",1]
["D05 - Système nerveux (hors cathétérismes vasculaires diagnostiques et interventionnels)"]
["C02 - Chirurgie du rachis, Neuro-chirurgie"]
["G041 - Chirurgies rachis/moelle",4]
["G043 - Chirurgies SNC trauma",1]
["G044 - Chirurgies SNC hors trauma (rachis et moelle exceptés)",4]
["C03 - Neurostimulateurs"]
["G045 - Pose stimulateur cérébral / médullaire",2]
["K03 - Neurologie médicale avec Acte classant non opératoire, ou anesthésie"]
["G196 - 'Injections de toxine botulique, en ambulatoire",1]
["G197 - Affections du système nerveux sans acte opératoire avec anesthésie, en ambulatoire",1]
["X03 - Neurologie médicale"]
["G047 - Affections dégénératives du système nerveux",3]
["G048 - Affections nerfs crâniens / moëlle",2]
["G049 - AVC",6]
["G050 - Comas non traumatiques",1]
["G051 - Migraines et céphalées",1]
["G052 - Convulsions, épilepsie",3]
["G053 - Infections SNC",2]
["G054 - Prise en charge médicale des tumeurs  système nerveux",2]
["G055 - Autres affections du système nerveux",8]
["G056 - Explorations et surveillance pour affections du système nerveux",1]
["X04 - Commotions cérébrales, Traumatismes crâniens"]
["G046 - Trauma crâniens",3]
["D06 - Cathétérismes vasculaires diagnostiques et interventionnels"]
["K05 - Cathétérismes vasculaires diagnostiques et interventionnels"]
["G057 - Cathétérismes thérapeutiques vasculaires et coronariens avec endoprothèse",2]
["G058 - Cathétérismes thérapeutiques vasculaires et coronariens sans endoprothèse",4]
["G059 - Cathéthérismes diagnostiques vasculaires et coronariens",2]
["G060 - Cathétérisme thérapeutiques vasculaires du système nerveux ",3]
["D07 - Cardio-vasculaire (hors cathétérismes vasculaires diagnostiques et interventionnels)"]
["C04 - Chir. cardio-thoracique (hors transplant. d'organe), Pontages aorto-coronariens"]
["G061 - Chirurgies valvulaires",2]
["G062 - Pontages coronaires",2]
["G063 - Chirurgie cardiaque, autres",4]
["C13 - Stimulateurs, Défibrillateurs cardiaques"]
["G064 - Stimulateurs / défibrillateurs cardiaques",5]
["C14 - Chirurgie vasculaire"]
["G072 - Chirurgies majeures revascularisation",1]
["G073 - Ligatures veines",1]
["G074 - Autres chirurgies vasculaires",4]
["K04 - Aff. Cardio-vasculaire avec Acte classant non opératoire, ou anesthésie"]
["G198 - Affections cardiovasculaires sans acte opératoire de la CMD 05, avec anesthésie, en ambulatoire",1]
["G200 - Varices avec acte autre que ligature et éveinage, en ambulatoire",1]
["K06 - Mise en place d'accès vasculaire"]
["G199 - Mise en place d'accès vasculaire",2]
["X07 - Affections Cardio-vasculaires"]
["G065 - Cardiopathies, valvulopathies",4]
["G066 - Coronaropathies",4]
["G067 - Endocardites",1]
["G068 - Hypertension artérielle",1]
["G069 - Troubles du rythme/conduction",1]
["G070 - Cardiologie autres",5]
["G071 - Explorations et surveillance pour affections de l'appareil circulatoire",1]
["G075 - Phlébites, varices et autres troubles vasculaires d'origine veineuse",2]
["D09 - Pneumologie"]
["C05 - Chir. majeure sur le thorax, l'app. respiratoire, interventions sous thoracoscopie"]
["G076 - Chirurgies thoraciques majeures",2]
["G077 - Autres chirurgies thoraciques",1]
["K07 - Endoscopies bronchiques, avec ou sans anesthésie"]
["G084 - Endoscopies bronchiques, avec ou sans anesthésie",1]
["X08 - Pneumologie"]
["G078 - Bronchites, bronchiolites et asthme",5]
["G079 - Embolies pulmonaires et détresses respiratoires",2]
["G080 - Infections respiratoires",7]
["G081 - Prise en charge médicale des tumeurs de l'appareil respiratoire",1]
["G082 - Affections respiratoires, autres",10]
["G083 - Explorations et surveillance pour affections de l'appareil respiratoire",1]
["D10 - ORL, Stomatologie"]
["C15 - Chirurgie ORL stomato"]
["G085 - Chirurgies ORL majeures",4]
["G086 - Chirurgie de l'oreille",3]
["G087 - Amygdalectomies, VG, drains transT",8]
["G088 - Autres chirurgies ORL",6]
["G089 - Chirurgies de la bouche",1]
["K09 - ORL Stomato avec Acte classant non opératoire et endoscopies"]
["G095 - Endoscopies ORL, avec ou sans anesthésie",1]
["G207 - actes ORL et stomato divers",2]
["X09 - ORL, Stomato"]
["G090 - Affections Cavité buccale et dents",2]
["G091 - Infections ORL",4]
["G092 - Prise en charge médicale des tumeurs malignes ORL, Stomato",1]
["G093 - Pathologies ORL et Stomato autres",6]
["G094 - Explorations et surveillance pour affections ORL",1]
["D11 - Ophtalmologie"]
["C16 - Chirurgie Ophtalmologique et greffe de cornée"]
["G096 - Chirurgies ophtalmo lourdes",4]
["G097 - Cataractes",2]
["G098 - Allogreffes de cornées",1]
["G099 - Autres chirurgies ophtalmo",3]
["X10 - Ophtalmologie"]
["G100 - Affections oeil",6]
["G101 - Infections oeil",1]
["G102 - Explorations et surveillance pour affections de l'oeil",1]
["D12 - Gynécologie - sein"]
["C17 - Chirurgie Gynécologique"]
["G103 - Chirurgie pour tumeurs malignes (app génital fem)",3]
["G104 - Chirurgies pelviennes majeures (app gen feminin)",1]
["G105 - Chirurgies utérus / annexes",6]
["G106 - Autres chirurgies gynécologiques autres que le sein",5]
["C18 - Chirurgie du sein"]
["G107 - Chirurgie pour tumeurs malignes sein",3]
["G108 - Chirurgie du sein hors TM",2]
["X11 - Gynécologie, Sénologie (hors Obstétrique)"]
["G109 - Prise en charge médicale des tumeurs de l'appareil génital féminin",2]
["G110 - Autres affections appareil génital féminin",2]
["G111 - AMP",1]
["G112 - Infections gynécologiques d'organes autres que le sein",2]
["G113 - Affections des seins ",2]
["G114 - Prise en charge médicale des tumeurs des seins ",1]
["G115 - Explorations et surveillance gynécologiques et des affections des seins",2]
["D13 - Obstétrique"]
["O01 -  Accouchements par voie basse"]
["G116 - Accouchements par voie basse",7]
["O02 - Césariennes"]
["G117 - Césariennes",3]
["O03 - IVG"]
["G118 - IVG",1]
["O04 - Obstétrique autre"]
["G119 - Affections de ante partum",6]
["G120 - Affections du post partum",2]
["G121 - Interruptions médicale de grossesse",2]
["D14 - Nouveau-nés et période périnatale"]
["N01 - Chirurgie des nouveau-nés, prématurés et de la période périnatale"]
["G122 - Chirurgie du nouveau né",5]
["N02 - Aff. médicales des nouveau-nés, prématurés et de la période périnatale"]
["G124 - affections médicales du nouveau né",10]
["N03 - Mort-nés, décès et transferts précoces de nouveau-nés"]
["G123 - Transferts précoces de nouveau nés",1]
["G125 - Décès de nouveau nés",2]
["G195 - Mort-nés",1]
["D15 - Uro-néphrologie et génital "]
["C19 - Chirurgie Urologique"]
["G126 - Chirurgies reins, uretères, vessie, glandes surrénales",5]
["G127 - Chirurgies transurétrales, autres",3]
["C20 - Chirurgie de l'appareil génital masculin"]
["G128 - Chirurgies appareil génital masculin",6]
["G129 - Circoncisions",1]
["G130 - Chirurgies pelviennes majeures (urologie)",2]
["G131 - Chirurgie des tumeurs appareil génital masculin",2]
["K10 - Aff. génito-urinaires avec Acte classant non opératoire et endoscopies"]
["G140 - Endoscopies génito-urinaires, avec ou sans anesthésie",10]
["G201 - Affections de l'appareil génital féminin sans acte opératoire de la CMD 13, avec anesthésie, en ambulatoire",1]
["G208 - Lithotritie extracorporelle de l'appareil urinaire, en ambulatoire",1]
["G209 - Séjours comprenant une biopsie prostatique, en ambulatoire",1]
["K13 - Dialyse (hors Séances)"]
["G202 - 'Insuffisance rénale, avec dialyse",1]
["X12 - Uro-Néphrologie médicale (hors Séances)"]
["G132 - Prise en charge médicale des tumeurs reins et voies urinaires",1]
["G133 - Infections reins et voies urinaires, lithiases",3]
["G134 - Autres affections reins, voies urinaires",9]
["G135 - Explorations et surveillance pour affections du rein et des voies urinaires",2]
["X13 - Appareil génital masculin"]
["G136 - Infections appareil génital masculin",2]
["G137 - Prise en charge médicale des tumeurs de l'appareil génital masculin",1]
["G138 - Autres affections appareil génital masculin",3]
["G139 - Explorations et surveillance des affections de l'appareil génital masculin",1]
["D16 - Hématologie"]
["C21 - Chir. pour Aff. des Org. Hématopoiétiques, Lymphomes, Leucémies, Tumeurs SID"]
["G141 - Chirurgie au cours des tumeurs malignes (hématologie)",5]
["X01 - Greffe de moelle, Auto et Allogreffes de cellules souches"]
["G142 - greffes de cellules souches hématopoïétiques",3]
["X14 - Maladies immunitaires, du Sang, des Organes hématopoïétiques, Tumeurs SID"]
["G143 - Donneurs de moëlle",1]
["G144 - Affections hématologiques malignes ",4]
["G145 - Autres Maladies immunitaires, du Sang, des Organes hématopoïétiques, Tumeurs siège imprécis ou diffus",13]
["G146 - Explorations et surveillance pour affections du sang et des organes hématopoïétiques",1]
["G147 - Explorations et surveillance pour affections myéloprolifératives et tumeurs de siège imprécis ou diffus",1]
["D17 - Chimiothérapie, radiothérapie, hors séances"]
["K14 - Radiothérapie (hors séances)"]
["G149 - Radiothérapie hors séances",3]
["X23 - Chimiothérapie (hors séances)"]
["G148 - Chimiothérapie hors séances",2]
["G150 - Chimiothérapie non tumorale hors séances",1]
["D18 - Maladies infectieuses (dont VIH)"]
["X19 - Fièvre, Infection, Septicémie, VIH"]
["G151 - Maladies virales et fièvres d'origine inconnue",3]
["G152 - Septicémies",2]
["G153 - Maladies infectieuses ou parasitaires hors septicémies et maladies virales",5]
["G154 - Décès secondaire à une maladie infectieuse: séjours de moins de 2 jours",1]
["G155 - Explorations et surveillance pour maladies infectieuses ou parasitaires",1]
["G156 - Maladies VIH",4]
["D19 - Endocrinologie"]
["C22 - Chirurgie de la Thyroide, Parathyroide, du Tractus Thyréoglosse, endocrinologie"]
["G157 - Chirurgie des parathyroides, du tractus thyréoglosse, endocrinologie",3]
["G158 - Chirurgie de la thyroide",2]
["X15 - Diabète, Maladies métaboliques, Endocrinologie (hors complications)"]
["G159 - Diabète",4]
["G160 - Maladies endocriniennes hors diabète",3]
["G161 - Troubles métaboliques, nutritionnels et obésité",7]
["G162 - Explorations et surveillance pour affections endocriniennes, troubles métaboliques, nutritionnels et obésité",1]
["G212 - Affections endocriniennes et problèmes alimentaires du nouveau né et du nourisson",2]
["D20 - Tissu cutané et tissu sous-cutané"]
["C23 - Parages de plaies, Greffes de peau, des Tissus S/C"]
["G163 - Greffes peau / parages hors brûlures",6]
["X16 - Affections et traumatismes de la peau, gelures"]
["G164 - Intervention  peau et tissu sous-cutané",2]
["G165 - Affections peau et tissu sous-cutané",4]
["G166 - Infections peau et tissu sous-cutané",2]
["G167 - Prise en charge médicale des tumeurs de la peau et tissu sous-cutané",1]
["G168 - Explorations et surveillance des affections de la peau",1]
["D21 - Brûlures"]
["C24 - Chirurgie pour brûlures"]
["G204 - Brûlures chirurgie",2]
["K16 - Brûlures sans acte opératoire, avec anesthésie, en ambulatoire"]
["G215 - Brûlures sans acte opératoire, avec anesthésie, en ambulatoire",1]
["X17 - Brûlures"]
["G169 - Brûlures sans acte opératoire classant",3]
["D22 - Psychiatrie"]
["X20 - Psychiatrie"]
["G170 - Troubles mentaux d'origine organique et retards mentaux",2]
["G171 - Névroses, psychoses et autres troubles mentaux",13]
["G172 - Explorations et surveillance pour maladies et troubles mentaux",1]
["D23 - Toxicologie, Intoxications, Alcool"]
["X21 - Effets nocifs, alcool, toxicologie, allergies"]
["G173 - Toxicomanies et alcoolisme",5]
["G174 - Allergies",2]
["G175 - Iatrogénie, intox médicamenteuses et chimiques",6]
["D24 - Douleurs chroniques, Soins palliatifs"]
["K11 - Douleur chroniques, avec bloc ou infiltration, en ambulatoire"]
["G205 - Séjours pour douleurs chroniques rebelles comprenant un bloc ou une infiltration, en ambulatoire",1]
["X22 - Douleur et soins palliatifs"]
["G176 - Soins palliatifs",1]
["G177 - Douleurs chroniques",1]
["D25 - Transplant. d'organes"]
["C01 - Transplant. d'organes (hors greffes de moelle & cornée)"]
["G178 - Transplantations d'organes",6]
["D26 - Activités inter spécialités, suivi thérapeutique d'affections connues"]
["C25 - Chirurgie inter spécialités"]
["G179 - Chirurgie inter spécialités",10]
["K12 - Explorations nocturnes, séjours de moins de 2 jours"]
["G183 - Explorations nocturnes et apparentées",1]
["K15 - Autres séj. sans acte, avec anesthésie, en ambulatoire (Aff. myéloP., peau, sein...)"]
["G203 -  Autres séj. sans acte, avec anesthésie, en ambulatoire (Aff. myéloP., peau, sein..)",3]
["K17 - Traumatismes, allergies et empoisonnements sans acte opératoire, avec anesthésie, en ambulatoire"]
["G206 - Traumatismes, allergies et empoisonnements sans acte opératoire, avec anesthésie, en ambulatoire",1]
["X18 - Suivi thérap. d'affections connues, Allergologie, Rééducation, Convalescence"]
["G182 - Allergologie",2]
["G184 - Suivi thérap.d'affections connues ",2]
["G185 - Explorations et surveillance pour autres motifs de recours aux soins",1]
["G186 - Rééducation - Convalescence",2]
["X24 - Médecine inter spécialités, Autres symptômes ou motifs médicaux"]
["G181 - Médecine inter spécialités",6]
["G194 - Signes et symptômes",2]
["X26 - Chirurgie esthétique et de confort"]
["G180 - Chirurgie esthétique et de confort",2]
["D27 - Séances"]
["S01 - Dialyse"]
["G187 - Séances : dialyse",4]
["S02 - Chimiothérapie pour tumeur"]
["G190 - Séances : chimiothérapie",1]
["S03 - Chimiothérapie pour aff. Non tumorale"]
["G191 - Séances : chimiothérapie non tumorale",1]
["S04 - Radiothérapie"]
["G189 - Séances : radiothérapie",10]
["S05 - Transfusion"]
["G188 - Séances : transfusion",1]
["S06 - Aphérèse"]
["G193 - Séances : aphérèse sanguine",1]
["S07 - Oxygénothérapie hyperbare, en séances"]
["G192 - Séances : caisson hyperbare",1]
["D90 - Séjours en erreur"]
["Z99 - Séjours en Erreur"]
["G999 - Séjours en Erreur ",5]
["Total général",647]

{"sheet":"Table_complète_racines","index":4,"n_rows":650,"n_cols":10,"rows_kept":650,"cut":false,"hidden":false,"merged":[[0,0,0,7],[1,0,1,3]]}
["Les différents regroupements de racines de GHM    (V11d)                            "]
["ATIH   juin 2012"]
["Rac GHM V11d","Libellé racine ","DA","libellé domaine d'activité","GP_CAS ","libellé groupes de type planification","GA","libellé Groupes d'Activité","DA-GP","DA-GP-GA"]
["01C03","Craniotomies pour traumatisme, âge supérieur à 17 ans","D05","Système nerveux (hors cathétérismes vasculaires diagnostiques et interventionnels)","C02","Chirurgie du rachis, Neuro-chirurgie","G043","Chirurgies SNC trauma",{"$f":"CONCATENATE(C4,E4)","v":"D05C02"},{"$f":"CONCATENATE(I4,G4)","v":"D05C02G043"}]
["01C04","Craniotomies en dehors de tout traumatisme, âge supérieur à 17 ans","D05","Système nerveux (hors cathétérismes vasculaires diagnostiques et interventionnels)","C02","Chirurgie du rachis, Neuro-chirurgie","G044","Chirurgies SNC hors trauma (rachis et moelle exceptés)",{"$f":"CONCATENATE(C5,E5)","v":"D05C02"},{"$f":"CONCATENATE(I5,G5)","v":"D05C02G044"}]
["01C05","Interventions sur le rachis et la moelle pour des affections neurologiques","D05","Système nerveux (hors cathétérismes vasculaires diagnostiques et interventionnels)","C02","Chirurgie du rachis, Neuro-chirurgie","G041","Chirurgies rachis/moelle","D05C02","D05C02G041"]
["01C06","Interventions sur le système vasculaire précérébral","D07","Cardio-vasculaire (hors cathétérismes vasculaires diagnostiques et interventionnels)","C14","Chirurgie vasculaire","G074","Autres chirurgies vasculaires","D07C14","D07C14G074"]
["01C08","Interventions sur les nerfs crâniens ou périphériques et autres interventions sur le système nerveux","D26","Activités inter spécialités, suivi thérapeutique d'affections connues","C25","Chirurgie inter spécialités","G179","Chirurgie inter spécialités","D26C25","D26C25G179"]
["01C09","Pose d'un stimulateur cérébral","D05","Système nerveux (hors cathétérismes vasculaires diagnostiques et interventionnels)","C03","Neurostimulateurs","G045","Pose stimulateur cérébral / médullaire","D05C03","D05C03G045"]
["01C10","Pose d'un stimulateur médullaire","D05","Système nerveux (hors cathétérismes vasculaires diagnostiques et interventionnels)","C03","Neurostimulateurs","G045","Pose stimulateur cérébral / médullaire","D05C03","D05C03G045"]
["01C11","Craniotomies pour tumeurs, âge inférieur à 18 ans","D05","Système nerveux (hors cathétérismes vasculaires diagnostiques et interventionnels)","C02","Chirurgie du rachis, Neuro-chirurgie","G044","Chirurgies SNC hors trauma (rachis et moelle exceptés)","D05C02","D05C02G044"]
["01C12","Craniotomies pour affections non tumorales, âge inférieur à 18 ans","D05","Système nerveux (hors cathétérismes vasculaires diagnostiques et interventionnels)","C02","Chirurgie du rachis, Neuro-chirurgie","G044","Chirurgies SNC hors trauma (rachis et moelle exceptés)","D05C02","D05C02G044"]
["01C13","Libérations du canal carpien et d'autres nerfs superficiels","D02","Orthopédie traumatologie","C11","Chirurgies autres de l'appareil locomoteur, amputations","G029","Chirurgies main, poignet","D02C11","D02C11G029"]
["01K02","Autres embolisations intracrâniennes et médullaires","D06","Cathétérismes vasculaires diagnostiques et interventionnels","K05","Cathétérismes vasculaires diagnostiques et interventionnels","G060","Cathétérisme thérapeutiques vasculaires du système nerveux ","D06K05","D06K05G060"]
["01K03","Autres actes thérapeutiques par voie vasculaire du système nerveux","D06","Cathétérismes vasculaires diagnostiques et interventionnels","K05","Cathétérismes vasculaires diagnostiques et interventionnels","G060","Cathétérisme thérapeutiques vasculaires du système nerveux ","D06K05","D06K05G060"]
["01K04","Injections de toxine botulique, en ambulatoire","D05","Système nerveux (hors cathétérismes vasculaires diagnostiques et interventionnels)","K03","Neurologie médicale avec Acte classant non opératoire, ou anesthésie","G196","'Injections de toxine botulique, en ambulatoire","D05K03","D05K03G196"]
["01K05","Séjours pour douleurs chroniques rebelles comprenant un bloc ou une infiltration, en ambulatoire","D24","Douleurs chroniques, Soins palliatifs","K11","Douleur chroniques, avec bloc ou infiltration, en ambulatoire","G205","Séjours pour douleurs chroniques rebelles comprenant un bloc ou une infiltration, en ambulatoire","D24K11","D24K11G205"]
["01K06","Affections du système nerveux sans acte opératoire avec anesthésie, en ambulatoire","D05","Système nerveux (hors cathétérismes vasculaires diagnostiques et interventionnels)","K03","Neurologie médicale avec Acte classant non opératoire, ou anesthésie","G197","Affections du système nerveux sans acte opératoire avec anesthésie, en ambulatoire","D05K03","D05K03G197"]
["01K07","Embolisations intracrâniennes et médullaires pour hémorragie","D06","Cathétérismes vasculaires diagnostiques et interventionnels","K05","Cathétérismes vasculaires diagnostiques et interventionnels","G060","Cathétérisme thérapeutiques vasculaires du système nerveux ","D06K05","D06K05G060"]
["01M04","Méningites virales","D05","Système nerveux (hors cathétérismes vasculaires diagnostiques et interventionnels)","X03","Neurologie médicale","G053","Infections SNC","D05X03","D05X03G053"]
["01M05","Infections du système nerveux à l'exception des méningites virales","D05","Système nerveux (hors cathétérismes vasculaires diagnostiques et interventionnels)","X03","Neurologie médicale","G053","Infections SNC","D05X03","D05X03G053"]
["01M07","Maladies dégénératives du système nerveux, âge supérieur à 79 ans","D05","Système nerveux (hors cathétérismes vasculaires diagnostiques et interventionnels)","X03","Neurologie médicale","G047","Affections dégénératives du système nerveux","D05X03","D05X03G047"]
["01M08","Maladies dégénératives du système nerveux, âge inférieur à 80 ans","D05","Système nerveux (hors cathétérismes vasculaires diagnostiques et interventionnels)","X03","Neurologie médicale","G047","Affections dégénératives du système nerveux","D05X03","D05X03G047"]
["01M09","Affections et lésions du rachis et de la moelle","D05","Système nerveux (hors cathétérismes vasculaires diagnostiques et interventionnels)","X03","Neurologie médicale","G048","Affections nerfs crâniens / moëlle","D05X03","D05X03G048"]
["01M10","Autres affections cérébrovasculaires","D05","Système nerveux (hors cathétérismes vasculaires diagnostiques et interventionnels)","X03","Neurologie médicale","G049","AVC","D05X03","D05X03G049"]
["01M11","Affections des nerfs crâniens et rachidiens","D05","Système nerveux (hors cathétérismes vasculaires diagnostiques et interventionnels)","X03","Neurologie médicale","G048","Affections nerfs crâniens / moëlle","D05X03","D05X03G048"]
["01M12","Autres affections du système nerveux","D05","Système nerveux (hors cathétérismes vasculaires diagnostiques et interventionnels)","X03","Neurologie médicale","G055","Autres affections du système nerveux","D05X03","D05X03G055"]
["01M13","Troubles de la conscience et comas d'origine non traumatique","D05","Système nerveux (hors cathétérismes vasculaires diagnostiques et interventionnels)","X03","Neurologie médicale","G050","Comas non traumatiques","D05X03","D05X03G050"]
["01M15","Accidents ischémiques transitoires et occlusions des artères précérébrales, âge supérieur à 79 ans","D05","Système nerveux (hors cathétérismes vasculaires diagnostiques et interventionnels)","X03","Neurologie médicale","G049","AVC","D05X03","D05X03G049"]
["01M16","Accidents ischémiques transitoires et occlusions des artères précérébrales, âge inférieur à 80 ans","D05","Système nerveux (hors cathétérismes vasculaires diagnostiques et interventionnels)","X03","Neurologie médicale","G049","AVC","D05X03","D05X03G049"]
["01M17","Sclérose en plaques et ataxie cérébelleuse","D05","Système nerveux (hors cathétérismes vasculaires diagnostiques et interventionnels)","X03","Neurologie médicale","G047","Affections dégénératives du système nerveux","D05X03","D05X03G047"]
["01M18","Lésions traumatiques intracrâniennes sévères","D05","Système nerveux (hors cathétérismes vasculaires diagnostiques et interventionnels)","X04","Commotions cérébrales, Traumatismes crâniens","G046","Trauma crâniens","D05X04","D05X04G046"]
["01M19","Autres lésions traumatiques intracrâniennes, sauf commotions","D05","Système nerveux (hors cathétérismes vasculaires diagnostiques et interventionnels)","X04","Commotions cérébrales, Traumatismes crâniens","G046","Trauma crâniens","D05X04","D05X04G046"]
["01M20","Commotions cérébrales","D05","Système nerveux (hors cathétérismes vasculaires diagnostiques et interventionnels)","X04","Commotions cérébrales, Traumatismes crâniens","G046","Trauma crâniens","D05X04","D05X04G046"]
["01M21","Douleurs chroniques rebelles","D24","Douleurs chroniques, Soins palliatifs","X22","Douleur et soins palliatifs","G177","Douleurs chroniques","D24X22","D24X22G177"]
["01M22","Migraines et céphalées","D05","Système nerveux (hors cathétérismes vasculaires diagnostiques et interventionnels)","X03","Neurologie médicale","G051","Migraines et céphalées","D05X03","D05X03G051"]
["01M23","Convulsions hyperthermiques","D05","Système nerveux (hors cathétérismes vasculaires diagnostiques et interventionnels)","X03","Neurologie médicale","G052","Convulsions, épilepsie","D05X03","D05X03G052"]
["01M24","Epilepsie, âge inférieur à 18 ans","D05","Système nerveux (hors cathétérismes vasculaires diagnostiques et interventionnels)","X03","Neurologie médicale","G052","Convulsions, épilepsie","D05X03","D05X03G052"]
["01M25","Epilepsie, âge supérieur à 17 ans","D05","Système nerveux (hors cathétérismes vasculaires diagnostiques et interventionnels)","X03","Neurologie médicale","G052","Convulsions, épilepsie","D05X03","D05X03G052"]
["01M26","Tumeurs malignes du système nerveux","D05","Système nerveux (hors cathétérismes vasculaires diagnostiques et interventionnels)","X03","Neurologie médicale","G054","Prise en charge médicale des tumeurs  système nerveux","D05X03","D05X03G054"]
["01M27","Autres tumeurs du système nerveux","D05","Système nerveux (hors cathétérismes vasculaires diagnostiques et interventionnels)","X03","Neurologie médicale","G054","Prise en charge médicale des tumeurs  système nerveux","D05X03","D05X03G054"]
["01M28","Hydrocéphalies","D05","Système nerveux (hors cathétérismes vasculaires diagnostiques et interventionnels)","X03","Neurologie médicale","G055","Autres affections du système nerveux","D05X03","D05X03G055"]
["01M29","Anévrysmes cérébraux","D05","Système nerveux (hors cathétérismes vasculaires diagnostiques et interventionnels)","X03","Neurologie médicale","G055","Autres affections du système nerveux","D05X03","D05X03G055"]
["01M30","Accidents vasculaires intracérébraux non transitoires","D05","Système nerveux (hors cathétérismes vasculaires diagnostiques et interventionnels)","X03","Neurologie médicale","G049","AVC","D05X03","D05X03G049"]
["01M31","Autres accidents vasculaires cérébraux non transitoires","D05","Système nerveux (hors cathétérismes vasculaires diagnostiques et interventionnels)","X03","Neurologie médicale","G049","AVC","D05X03","D05X03G049"]
["01M32","Explorations et surveillance pour affections du système nerveux","D05","Système nerveux (hors cathétérismes vasculaires diagnostiques et interventionnels)","X03","Neurologie médicale","G056","Explorations et surveillance pour affections du système nerveux","D05X03","D05X03G056"]
["01M33","Troubles du sommeil","D05","Système nerveux (hors cathétérismes vasculaires diagnostiques et interventionnels)","X03","Neurologie médicale","G055","Autres affections du système nerveux","D05X03","D05X03G055"]
["01M34","Anomalies de la démarche d'origine neurologique","D05","Système nerveux (hors cathétérismes vasculaires diagnostiques et interventionnels)","X03","Neurologie médicale","G055","Autres affections du système nerveux","D05X03","D05X03G055"]
["01M35","Symptômes et autres recours aux soins de la CMD 01","D05","Système nerveux (hors cathétérismes vasculaires diagnostiques et interventionnels)","X03","Neurologie médicale","G055","Autres affections du système nerveux","D05X03","D05X03G055"]
["01M36","Accidents vasculaires cérébraux non transitoires avec décès : séjours de moins de 2 jours","D05","Système nerveux (hors cathétérismes vasculaires diagnostiques et interventionnels)","X03","Neurologie médicale","G049","AVC","D05X03","D05X03G049"]
["01M37","Autres affections de la CMD 01 avec décès : séjours de moins de 2 jours","D26","Activités inter spécialités, suivi thérapeutique d'affections connues","X24","Médecine inter spécialités, Autres symptômes ou motifs médicaux","G181","Médecine inter spécialités","D26X24","D26X24G181"]
["01M38","Autres affections neurologiques concernant majoritairement la petite enfance","D05","Système nerveux (hors cathétérismes vasculaires diagnostiques et interventionnels)","X03","Neurologie médicale","G055","Autres affections du système nerveux","D05X03","D05X03G055"]
["01M39","Troubles de la régulation thermique du nouveau-né et du nourrisson","D05","Système nerveux (hors cathétérismes vasculaires diagnostiques et interventionnels)","X03","Neurologie médicale","G055","Autres affections du système nerveux","D05X03","D05X03G055"]
["02C02","Interventions sur la rétine","D11","Ophtalmologie","C16","Chirurgie Ophtalmologique et greffe de cornée","G096","Chirurgies ophtalmo lourdes","D11C16","D11C16G096"]
["02C03","Interventions sur l'orbite","D11","Ophtalmologie","C16","Chirurgie Ophtalmologique et greffe de cornée","G096","Chirurgies ophtalmo lourdes","D11C16","D11C16G096"]
["02C05","Interventions sur le cristallin avec ou sans vitrectomie","D11","Ophtalmologie","C16","Chirurgie Ophtalmologique et greffe de cornée","G097","Cataractes","D11C16","D11C16G097"]
["02C06","Interventions primaires sur l'iris","D11","Ophtalmologie","C16","Chirurgie Ophtalmologique et greffe de cornée","G099","Autres chirurgies ophtalmo","D11C16","D11C16G099"]
["02C07","Autres interventions extraoculaires, âge inférieur à 18 ans","D11","Ophtalmologie","C16","Chirurgie Ophtalmologique et greffe de cornée","G099","Autres chirurgies ophtalmo","D11C16","D11C16G099"]
["02C08","Autres interventions extraoculaires, âge supérieur à 17 ans","D11","Ophtalmologie","C16","Chirurgie Ophtalmologique et greffe de cornée","G099","Autres chirurgies ophtalmo","D11C16","D11C16G099"]
["02C09","Allogreffes de cornée","D11","Ophtalmologie","C16","Chirurgie Ophtalmologique et greffe de cornée","G098","Allogreffes de cornées","D11C16","D11C16G098"]
["02C10","Autres interventions intraoculaires pour affections sévères","D11","Ophtalmologie","C16","Chirurgie Ophtalmologique et greffe de cornée","G096","Chirurgies ophtalmo lourdes","D11C16","D11C16G096"]
["02C11","Autres interventions intraoculaires en dehors des affections sévères","D11","Ophtalmologie","C16","Chirurgie Ophtalmologique et greffe de cornée","G096","Chirurgies ophtalmo lourdes","D11C16","D11C16G096"]
["02C12","Interventions sur le cristallin avec trabéculectomie","D11","Ophtalmologie","C16","Chirurgie Ophtalmologique et greffe de cornée","G097","Cataractes","D11C16","D11C16G097"]
["02M02","Hyphéma","D11","Ophtalmologie","X10","Ophtalmologie","G100","Affections oeil","D11X10","D11X10G100"]
["02M03","Infections oculaires aiguës sévères","D11","Ophtalmologie","X10","Ophtalmologie","G101","Infections oeil","D11X10","D11X10G101"]
["02M04","Affections oculaires d'origine neurologique","D11","Ophtalmologie","X10","Ophtalmologie","G100","Affections oeil","D11X10","D11X10G100"]
["02M05","Autres affections oculaires, âge inférieur à 18 ans","D11","Ophtalmologie","X10","Ophtalmologie","G100","Affections oeil","D11X10","D11X10G100"]
["02M07","Autres affections oculaires d'origine diabétique, âge supérieur à 17 ans","D11","Ophtalmologie","X10","Ophtalmologie","G100","Affections oeil","D11X10","D11X10G100"]
["02M08","Autres affections oculaires d'origine non diabétique, âge supérieur à 17 ans","D11","Ophtalmologie","X10","Ophtalmologie","G100","Affections oeil",{"$f":"CONCATENATE(C69,E69)","v":"D11X10"},{"$f":"CONCATENATE(I69,G69)","v":"D11X10G100"}]
["02M09","Explorations et surveillance pour affections de l'oeil","D11","Ophtalmologie","X10","Ophtalmologie","G102","Explorations et surveillance pour affections de l'oeil","D11X10","D11X10G102"]
["02M10","Symptômes et autres recours aux soins de la CMD 02","D11","Ophtalmologie","X10","Ophtalmologie","G100","Affections oeil","D11X10","D11X10G100"]
["03C05","Réparations de fissures labiale et palatine","D10","ORL, Stomatologie","C15","Chirurgie ORL stomato","G088","Autres chirurgies ORL","D10C15","D10C15G088"]
["03C06","Interventions sur les sinus et l'apophyse mastoïde, âge inférieur à 18 ans","D10","ORL, Stomatologie","C15","Chirurgie ORL stomato","G088","Autres chirurgies ORL","D10C15","D10C15G088"]
["03C07","Interventions sur les sinus et l'apophyse mastoïde, âge supérieur à 17 ans","D10","ORL, Stomatologie","C15","Chirurgie ORL stomato","G088","Autres chirurgies ORL","D10C15","D10C15G088"]
["03C09","Rhinoplasties","D10","ORL, Stomatologie","C15","Chirurgie ORL stomato","G088","Autres chirurgies ORL","D10C15","D10C15G088"]
["03C10","Amygdalectomies et/ou adénoïdectomies isolées, âge inférieur à 18 ans","D10","ORL, Stomatologie","C15","Chirurgie ORL stomato","G087","Amygdalectomies, VG, drains transT","D10C15","D10C15G087"]
["03C11","Amygdalectomies et/ou adénoïdectomies isolées, âge supérieur à 17 ans","D10","ORL, Stomatologie","C15","Chirurgie ORL stomato","G087","Amygdalectomies, VG, drains transT","D10C15","D10C15G087"]
["03C12","Interventions sur les amygdales et les végétations adénoïdes autres que les amygdalectomies et/ou les adénoïdectomies isolées, âge inférieur à 18 ans","D10","ORL, Stomatologie","C15","Chirurgie ORL stomato","G087","Amygdalectomies, VG, drains transT","D10C15","D10C15G087"]
["03C13","Interventions sur les amygdales et les végétations adénoïdes autres que les amygdalectomies et/ou les adénoïdectomies isolées, âge supérieur à 17 ans","D10","ORL, Stomatologie","C15","Chirurgie ORL stomato","G087","Amygdalectomies, VG, drains transT","D10C15","D10C15G087"]
["03C14","Drains transtympaniques, âge inférieur à 18 ans","D10","ORL, Stomatologie","C15","Chirurgie ORL stomato","G087","Amygdalectomies, VG, drains transT","D10C15","D10C15G087"]
["03C15","Drains transtympaniques, âge supérieur à 17 ans","D10","ORL, Stomatologie","C15","Chirurgie ORL stomato","G087","Amygdalectomies, VG, drains transT","D10C15","D10C15G087"]
["03C16","Autres interventions chirurgicales portant sur les oreilles, le nez, la gorge ou le cou","D10","ORL, Stomatologie","C15","Chirurgie ORL stomato","G088","Autres chirurgies ORL","D10C15","D10C15G088"]
["03C17","Interventions sur la bouche","D10","ORL, Stomatologie","C15","Chirurgie ORL stomato","G089","Chirurgies de la bouche","D10C15","D10C15G089"]
["03C18","Pose d'implants cochléaires","D10","ORL, Stomatologie","C15","Chirurgie ORL stomato","G086","Chirurgie de l'oreille","D10C15","D10C15G086"]
["03C19","Ostéotomies de la face","D10","ORL, Stomatologie","C15","Chirurgie ORL stomato","G085","Chirurgies ORL majeures","D10C15","D10C15G085"]
["03C20","Interventions de reconstruction de l'oreille moyenne","D10","ORL, Stomatologie","C15","Chirurgie ORL stomato","G086","Chirurgie de l'oreille","D10C15","D10C15G086"]
["03C21","Interventions pour oreilles décollées","D10","ORL, Stomatologie","C15","Chirurgie ORL stomato","G086","Chirurgie de l'oreille","D10C15","D10C15G086"]
["03C24","Interventions sur les glandes salivaires","D10","ORL, Stomatologie","C15","Chirurgie ORL stomato","G088","Autres chirurgies ORL","D10C15","D10C15G088"]
["03C25","Interventions majeures sur la tête et le cou","D10","ORL, Stomatologie","C15","Chirurgie ORL stomato","G085","Chirurgies ORL majeures","D10C15","D10C15G085"]
["03C26","Autres interventions sur la tête et le cou","D10","ORL, Stomatologie","C15","Chirurgie ORL stomato","G085","Chirurgies ORL majeures","D10C15","D10C15G085"]
["03C27","Interventions sur les amygdales, en ambulatoire","D10","ORL, Stomatologie","C15","Chirurgie ORL stomato","G087","Amygdalectomies, VG, drains transT","D10C15","D10C15G087"]
["03C28","Interventions sur les végétations adénoïdes, en ambulatoire","D10","ORL, Stomatologie","C15","Chirurgie ORL stomato","G087","Amygdalectomies, VG, drains transT","D10C15","D10C15G087"]
["03K02","Affections de la bouche et des dents avec certaines extractions, réparations et prothèses dentaires","D10","ORL, Stomatologie","K09","ORL Stomato avec Acte classant non opératoire et endoscopies","G207","actes ORL et stomato divers","D10K09","D10K09G207"]
["03K03","Séjours comprenant une endoscopie oto-rhino-laryngologique, en ambulatoire","D10","ORL, Stomatologie","K09","ORL Stomato avec Acte classant non opératoire et endoscopies","G095","Endoscopies ORL, avec ou sans anesthésie","D10K09","D10K09G095"]
["03K04","Séjours comprenant certains actes non opératoires de la CMD 03, en ambulatoire","D10","ORL, Stomatologie","K09","ORL Stomato avec Acte classant non opératoire et endoscopies","G207","actes ORL et stomato divers","D10K09","D10K09G207"]
["03M02","Traumatismes et déformations du nez","D10","ORL, Stomatologie","X09","ORL, Stomato","G093","Pathologies ORL et Stomato autres","D10X09","D10X09G093"]
["03M03","Otites moyennes et autres infections des voies aériennes supérieures, âge inférieur à 18 ans","D10","ORL, Stomatologie","X09","ORL, Stomato","G091","Infections ORL","D10X09","D10X09G091"]
["03M04","Otites moyennes et autres infections des voies aériennes supérieures, âge supérieur à 17 ans","D10","ORL, Stomatologie","X09","ORL, Stomato","G091","Infections ORL","D10X09","D10X09G091"]
["03M05","Troubles de l'équilibre","D10","ORL, Stomatologie","X09","ORL, Stomato","G093","Pathologies ORL et Stomato autres","D10X09","D10X09G093"]
["03M06","Epistaxis","D10","ORL, Stomatologie","X09","ORL, Stomato","G093","Pathologies ORL et Stomato autres","D10X09","D10X09G093"]
["03M07","Tumeurs malignes des oreilles, du nez, de la gorge ou de la bouche","D10","ORL, Stomatologie","X09","ORL, Stomato","G092","Prise en charge médicale des tumeurs malignes ORL, Stomato","D10X09","D10X09G092"]
["03M08","Autres diagnostics portant sur les oreilles, le nez, la gorge ou la bouche, âge inférieur à 18 ans","D10","ORL, Stomatologie","X09","ORL, Stomato","G093","Pathologies ORL et Stomato autres","D10X09","D10X09G093"]
["03M09","Autres diagnostics portant sur les oreilles, le nez, la gorge ou la bouche, âge supérieur à 17 ans","D10","ORL, Stomatologie","X09","ORL, Stomato","G093","Pathologies ORL et Stomato autres","D10X09","D10X09G093"]
["03M10","Affections de la bouche et des dents sans certaines extractions, réparations ou prothèses dentaires, âge inférieur à 18 ans","D10","ORL, Stomatologie","X09","ORL, Stomato","G090","Affections Cavité buccale et dents","D10X09","D10X09G090"]
["03M11","Affections de la bouche et des dents sans certaines extractions, réparations ou prothèses dentaires, âge supérieur à 17 ans","D10","ORL, Stomatologie","X09","ORL, Stomato","G090","Affections Cavité buccale et dents","D10X09","D10X09G090"]
["03M12","Infections aigües sévères des voies aériennes supérieures, âge inférieur à 18 ans","D10","ORL, Stomatologie","X09","ORL, Stomato","G091","Infections ORL","D10X09","D10X09G091"]
["03M13","Infections aigües sévères des voies aériennes supérieures, âge supérieur à 17 ans","D10","ORL, Stomatologie","X09","ORL, Stomato","G091","Infections ORL","D10X09","D10X09G091"]
["03M14","Explorations et surveillance pour affections ORL","D10","ORL, Stomatologie","X09","ORL, Stomato","G094","Explorations et surveillance pour affections ORL","D10X09","D10X09G094"]
["03M15","Symptômes et autres recours aux soins de la CMD 03","D10","ORL, Stomatologie","X09","ORL, Stomato","G093","Pathologies ORL et Stomato autres","D10X09","D10X09G093"]
["04C02","Interventions majeures sur le thorax","D09","Pneumologie","C05","Chir. majeure sur le thorax, l'app. respiratoire, interventions sous thoracoscopie","G076","Chirurgies thoraciques majeures","D09C05","D09C05G076"]
["04C03","Autres interventions chirurgicales sur le système respiratoire","D09","Pneumologie","C05","Chir. majeure sur le thorax, l'app. respiratoire, interventions sous thoracoscopie","G077","Autres chirurgies thoraciques","D09C05","D09C05G077"]
["04C04","Interventions sous thoracoscopie","D09","Pneumologie","C05","Chir. majeure sur le thorax, l'app. respiratoire, interventions sous thoracoscopie","G076","Chirurgies thoraciques majeures","D09C05","D09C05G076"]
["04K02","Séjours comprenant une endoscopie bronchique, en ambulatoire","D09","Pneumologie","K07","Endoscopies bronchiques, avec ou sans anesthésie","G084","Endoscopies bronchiques, avec ou sans anesthésie","D09K07","D09K07G084"]
["04M02","Bronchites et asthme, âge inférieur à 18 ans","D09","Pneumologie","X08","Pneumologie","G078","Bronchites, bronchiolites et asthme","D09X08","D09X08G078"]
["04M03","Bronchites et asthme, âge supérieur à 17 ans","D09","Pneumologie","X08","Pneumologie","G078","Bronchites, bronchiolites et asthme","D09X08","D09X08G078"]
["04M04","Pneumonies et pleurésies banales, âge inférieur à 18 ans","D09","Pneumologie","X08","Pneumologie","G080","Infections respiratoires","D09X08","D09X08G080"]
["04M05","Pneumonies et pleurésies banales, âge supérieur à 17 ans","D09","Pneumologie","X08","Pneumologie","G080","Infections respiratoires","D09X08","D09X08G080"]
["04M06","Infections et inflammations respiratoires, âge inférieur à 18 ans","D09","Pneumologie","X08","Pneumologie","G080","Infections respiratoires","D09X08","D09X08G080"]
["04M07","Infections et inflammations respiratoires, âge supérieur à 17 ans","D09","Pneumologie","X08","Pneumologie","G080","Infections respiratoires","D09X08","D09X08G080"]
["04M08","Bronchopneumopathies chroniques","D09","Pneumologie","X08","Pneumologie","G078","Bronchites, bronchiolites et asthme","D09X08","D09X08G078"]
["04M09","Tumeurs de l'appareil respiratoire","D09","Pneumologie","X08","Pneumologie","G081","Prise en charge médicale des tumeurs de l'appareil respiratoire","D09X08","D09X08G081"]
["04M10","Embolies pulmonaires","D09","Pneumologie","X08","Pneumologie","G079","Embolies pulmonaires et détresses respiratoires","D09X08","D09X08G079"]
["04M11","Signes et symptômes respiratoires","D09","Pneumologie","X08","Pneumologie","G082","Affections respiratoires, autres","D09X08","D09X08G082"]
["04M12","Pneumothorax","D09","Pneumologie","X08","Pneumologie","G082","Affections respiratoires, autres","D09X08","D09X08G082"]
["04M13","Oedème pulmonaire et détresse respiratoire","D09","Pneumologie","X08","Pneumologie","G079","Embolies pulmonaires et détresses respiratoires","D09X08","D09X08G079"]
["04M14","Maladies pulmonaires interstitielles","D09","Pneumologie","X08","Pneumologie","G082","Affections respiratoires, autres","D09X08","D09X08G082"]
["04M15","Autres diagnostics portant sur le système respiratoire","D09","Pneumologie","X08","Pneumologie","G082","Affections respiratoires, autres","D09X08","D09X08G082"]
["04M16","Traumatismes thoraciques","D09","Pneumologie","X08","Pneumologie","G078","Bronchites, bronchiolites et asthme","D09X08","D09X08G078"]
["04M17","Epanchements pleuraux","D09","Pneumologie","X08","Pneumologie","G082","Affections respiratoires, autres","D09X08","D09X08G082"]
["04M18","Bronchiolites","D09","Pneumologie","X08","Pneumologie","G078","Bronchites, bronchiolites et asthme","D09X08","D09X08G078"]
["04M19","Tuberculoses","D09","Pneumologie","X08","Pneumologie","G080","Infections respiratoires","D09X08","D09X08G080"]
["04M20","Bronchopneumopathies chroniques surinfectées","D09","Pneumologie","X08","Pneumologie","G080","Infections respiratoires","D09X08","D09X08G080"]
["04M21","Suivis de greffe pulmonaire","D09","Pneumologie","X08","Pneumologie","G082","Affections respiratoires, autres",{"$f":"CONCATENATE(C133,E133)","v":"D09X08"},{"$f":"CONCATENATE(I133,G133)","v":"D09X08G082"}]
["04M22","Explorations et surveillance pour affections de l'appareil respiratoire","D09","Pneumologie","X08","Pneumologie","G083","Explorations et surveillance pour affections de l'appareil respiratoire","D09X08","D09X08G083"]
["04M23","Autres symptômes et recours aux soins de la CMD 04","D09","Pneumologie","X08","Pneumologie","G082","Affections respiratoires, autres","D09X08","D09X08G082"]
["04M24","Affections de la CMD 04 avec décès : séjours de moins de 2 jours","D09","Pneumologie","X08","Pneumologie","G082","Affections respiratoires, autres","D09X08","D09X08G082"]
["04M25","Grippes","D09","Pneumologie","X08","Pneumologie","G080","Infections respiratoires","D09X08","D09X08G080"]
["04M26","Fibroses kystiques avec manifestations pulmonaires","D09","Pneumologie","X08","Pneumologie","G082","Affections respiratoires, autres","D09X08","D09X08G082"]
["04M27","Autres affections respiratoires concernant majoritairement la petite enfance","D09","Pneumologie","X08","Pneumologie","G082","Affections respiratoires, autres","D09X08","D09X08G082"]
["05C02","Chirurgie de remplacement valvulaire avec circulation extracorporelle et avec cathétérisme cardiaque ou coronarographie","D07","Cardio-vasculaire (hors cathétérismes vasculaires diagnostiques et interventionnels)","C04","Chir. cardio-thoracique (hors transplant. d'organe), Pontages aorto-coronariens","G061","Chirurgies valvulaires","D07C04","D07C04G061"]
["05C03","Chirurgie de remplacement valvulaire avec circulation extracorporelle, sans cathétérisme cardiaque, ni coronarographie","D07","Cardio-vasculaire (hors cathétérismes vasculaires diagnostiques et interventionnels)","C04","Chir. cardio-thoracique (hors transplant. d'organe), Pontages aorto-coronariens","G061","Chirurgies valvulaires","D07C04","D07C04G061"]
["05C04","Pontages aortocoronariens avec cathétérisme cardiaque ou coronarographie","D07","Cardio-vasculaire (hors cathétérismes vasculaires diagnostiques et interventionnels)","C04","Chir. cardio-thoracique (hors transplant. d'organe), Pontages aorto-coronariens","G062","Pontages coronaires","D07C04","D07C04G062"]
["05C05","Pontages aortocoronariens sans cathétérisme cardiaque, ni coronarographie","D07","Cardio-vasculaire (hors cathétérismes vasculaires diagnostiques et interventionnels)","C04","Chir. cardio-thoracique (hors transplant. d'organe), Pontages aorto-coronariens","G062","Pontages coronaires","D07C04","D07C04G062"]
["05C06","Autres interventions cardiothoraciques, âge supérieur à 1 an, ou vasculaires quel que soit l'âge, avec circulation extracorporelle","D07","Cardio-vasculaire (hors cathétérismes vasculaires diagnostiques et interventionnels)","C04","Chir. cardio-thoracique (hors transplant. d'organe), Pontages aorto-coronariens","G063","Chirurgie cardiaque, autres","D07C04","D07C04G063"]
["05C07","Autres interventions cardiothoraciques, âge inférieur à 2 ans, avec circulation extracorporelle","D07","Cardio-vasculaire (hors cathétérismes vasculaires diagnostiques et interventionnels)","C04","Chir. cardio-thoracique (hors transplant. d'organe), Pontages aorto-coronariens","G063","Chirurgie cardiaque, autres","D07C04","D07C04G063"]
["05C08","Autres interventions cardiothoraciques, âge supérieur à 1 an, ou vasculaires quel que soit l'âge, sans circulation extracorporelle","D07","Cardio-vasculaire (hors cathétérismes vasculaires diagnostiques et interventionnels)","C04","Chir. cardio-thoracique (hors transplant. d'organe), Pontages aorto-coronariens","G063","Chirurgie cardiaque, autres","D07C04","D07C04G063"]
["05C09","Autres interventions cardiothoraciques, âge inférieur à 2 ans, sans circulation extracorporelle","D07","Cardio-vasculaire (hors cathétérismes vasculaires diagnostiques et interventionnels)","C04","Chir. cardio-thoracique (hors transplant. d'organe), Pontages aorto-coronariens","G063","Chirurgie cardiaque, autres","D07C04","D07C04G063"]
["05C10","Chirurgie majeure de revascularisation","D07","Cardio-vasculaire (hors cathétérismes vasculaires diagnostiques et interventionnels)","C14","Chirurgie vasculaire","G072","Chirurgies majeures revascularisation","D07C14","D07C14G072"]
["05C11","Autres interventions de chirurgie vasculaire","D07","Cardio-vasculaire (hors cathétérismes vasculaires diagnostiques et interventionnels)","C14","Chirurgie vasculaire","G074","Autres chirurgies vasculaires","D07C14","D07C14G074"]
["05C12","Amputations du membre inférieur, sauf des orteils, pour troubles circulatoires","D02","Orthopédie traumatologie","C11","Chirurgies autres de l'appareil locomoteur, amputations","G028","Amputations","D02C11","D02C11G028"]
["05C13","Amputations pour troubles circulatoires portant sur le membre supérieur ou les orteils","D02","Orthopédie traumatologie","C11","Chirurgies autres de l'appareil locomoteur, amputations","G028","Amputations","D02C11","D02C11G028"]
["05C14","Poses d'un stimulateur cardiaque permanent avec infarctus aigu du myocarde ou insuffisance cardiaque congestive ou état de choc","D07","Cardio-vasculaire (hors cathétérismes vasculaires diagnostiques et interventionnels)","C13","Stimulateurs, Défibrillateurs cardiaques","G064","Stimulateurs / défibrillateurs cardiaques","D07C13","D07C13G064"]
["05C15","Poses d'un stimulateur cardiaque permanent sans infarctus aigu du myocarde, ni insuffisance cardiaque congestive, ni état de choc","D07","Cardio-vasculaire (hors cathétérismes vasculaires diagnostiques et interventionnels)","C13","Stimulateurs, Défibrillateurs cardiaques","G064","Stimulateurs / défibrillateurs cardiaques","D07C13","D07C13G064"]
["05C17","Ligatures de veines et éveinages","D07","Cardio-vasculaire (hors cathétérismes vasculaires diagnostiques et interventionnels)","C14","Chirurgie vasculaire","G073","Ligatures veines","D07C14","D07C14G073"]
["05C18","Autres interventions sur le système circulatoire","D26","Activités inter spécialités, suivi thérapeutique d'affections connues","C25","Chirurgie inter spécialités","G179","Chirurgie inter spécialités","D26C25","D26C25G179"]
["05C19","Poses d'un défibrillateur cardiaque","D07","Cardio-vasculaire (hors cathétérismes vasculaires diagnostiques et interventionnels)","C13","Stimulateurs, Défibrillateurs cardiaques","G064","Stimulateurs / défibrillateurs cardiaques","D07C13","D07C13G064"]
["05C20","Remplacements ou ablations chirurgicale d'électrodes ou repositionnements de boîtier de stimulation cardiaque permanente","D07","Cardio-vasculaire (hors cathétérismes vasculaires diagnostiques et interventionnels)","C13","Stimulateurs, Défibrillateurs cardiaques","G064","Stimulateurs / défibrillateurs cardiaques","D07C13","D07C13G064"]
["05C21","Créations et réfections de fistules artérioveineuses pour affections de la CMD 05","D07","Cardio-vasculaire (hors cathétérismes vasculaires diagnostiques et interventionnels)","C14","Chirurgie vasculaire","G074","Autres chirurgies vasculaires","D07C14","D07C14G074"]
["05C22","Remplacements de stimulateurs cardiaques permanents","D07","Cardio-vasculaire (hors cathétérismes vasculaires diagnostiques et interventionnels)","C13","Stimulateurs, Défibrillateurs cardiaques","G064","Stimulateurs / défibrillateurs cardiaques","D07C13","D07C13G064"]
["05K05","Endoprothèses vasculaires avec infarctus du myocarde","D06","Cathétérismes vasculaires diagnostiques et interventionnels","K05","Cathétérismes vasculaires diagnostiques et interventionnels","G057","Cathétérismes thérapeutiques vasculaires et coronariens avec endoprothèse","D06K05","D06K05G057"]
["05K06","Endoprothèses vasculaires sans infarctus du myocarde","D06","Cathétérismes vasculaires diagnostiques et interventionnels","K05","Cathétérismes vasculaires diagnostiques et interventionnels","G057","Cathétérismes thérapeutiques vasculaires et coronariens avec endoprothèse","D06K05","D06K05G057"]
["05K10","Actes diagnostiques par voie vasculaire","D06","Cathétérismes vasculaires diagnostiques et interventionnels","K05","Cathétérismes vasculaires diagnostiques et interventionnels","G059","Cathéthérismes diagnostiques vasculaires et coronariens","D06K05","D06K05G059"]
["05K12","Actes thérapeutiques par voie vasculaire sauf endoprothèses, âge inférieur à 18 ans","D06","Cathétérismes vasculaires diagnostiques et interventionnels","K05","Cathétérismes vasculaires diagnostiques et interventionnels","G058","Cathétérismes thérapeutiques vasculaires et coronariens sans endoprothèse","D06K05","D06K05G058"]
["05K13","Actes thérapeutiques par voie vasculaire sauf endoprothèses, âge supérieur à 17 ans","D06","Cathétérismes vasculaires diagnostiques et interventionnels","K05","Cathétérismes vasculaires diagnostiques et interventionnels","G058","Cathétérismes thérapeutiques vasculaires et coronariens sans endoprothèse","D06K05","D06K05G058"]
["05K14","Mise en place de certains accès vasculaires pour des affections de la CMD 05, séjours de moins de 2 jours","D07","Cardio-vasculaire (hors cathétérismes vasculaires diagnostiques et interventionnels)","K06","Mise en place d'accès vasculaire","G199","Mise en place d'accès vasculaire","D07K06","D07K06G199"]
["05K15","Surveillances de greffes de coeur avec acte diagnostique par voie vasculaire","D06","Cathétérismes vasculaires diagnostiques et interventionnels","K05","Cathétérismes vasculaires diagnostiques et interventionnels","G059","Cathéthérismes diagnostiques vasculaires et coronariens","D06K05","D06K05G059"]
["05K17","Affections cardiovasculaires sans acte opératoire de la CMD 05, avec anesthésie, en ambulatoire","D07","Cardio-vasculaire (hors cathétérismes vasculaires diagnostiques et interventionnels)","K04","Aff. Cardio-vasculaire avec Acte classant non opératoire, ou anesthésie","G198","Affections cardiovasculaires sans acte opératoire de la CMD 05, avec anesthésie, en ambulatoire","D07K04","D07K04G198"]
["05K18","Varices avec acte autre que ligature et éveinage, en ambulatoire","D07","Cardio-vasculaire (hors cathétérismes vasculaires diagnostiques et interventionnels)","K04","Aff. Cardio-vasculaire avec Acte classant non opératoire, ou anesthésie","G200","Varices avec acte autre que ligature et éveinage, en ambulatoire","D07K04","D07K04G200"]
["05K19","Traitements majeurs de troubles du rythme par voie vasculaire","D06","Cathétérismes vasculaires diagnostiques et interventionnels","K05","Cathétérismes vasculaires diagnostiques et interventionnels","G058","Cathétérismes thérapeutiques vasculaires et coronariens sans endoprothèse","D06K05","D06K05G058"]
["05K20","Autres traitements de troubles du rythme par voie vasculaire","D06","Cathétérismes vasculaires diagnostiques et interventionnels","K05","Cathétérismes vasculaires diagnostiques et interventionnels","G058","Cathétérismes thérapeutiques vasculaires et coronariens sans endoprothèse","D06K05","D06K05G058"]
["05M04","Infarctus aigu du myocarde","D07","Cardio-vasculaire (hors cathétérismes vasculaires diagnostiques et interventionnels)","X07","Affections Cardio-vasculaires","G066","Coronaropathies","D07X07","D07X07G066"]
["05M05","Syncopes et lipothymies","D07","Cardio-vasculaire (hors cathétérismes vasculaires diagnostiques et interventionnels)","X07","Affections Cardio-vasculaires","G070","Cardiologie autres","D07X07","D07X07G070"]
["05M06","Angine de poitrine","D07","Cardio-vasculaire (hors cathétérismes vasculaires diagnostiques et interventionnels)","X07","Affections Cardio-vasculaires","G066","Coronaropathies","D07X07","D07X07G066"]
["05M07","Thrombophlébites veineuses profondes","D07","Cardio-vasculaire (hors cathétérismes vasculaires diagnostiques et interventionnels)","X07","Affections Cardio-vasculaires","G075","Phlébites, varices et autres troubles vasculaires d'origine veineuse","D07X07","D07X07G075"]
["05M08","Arythmies et troubles de la conduction cardiaque","D07","Cardio-vasculaire (hors cathétérismes vasculaires diagnostiques et interventionnels)","X07","Affections Cardio-vasculaires","G069","Troubles du rythme/conduction","D07X07","D07X07G069"]
["05M09","Insuffisances cardiaques et états de choc circulatoire","D07","Cardio-vasculaire (hors cathétérismes vasculaires diagnostiques et interventionnels)","X07","Affections Cardio-vasculaires","G065","Cardiopathies, valvulopathies","D07X07","D07X07G065"]
["05M10","Cardiopathies congénitales et valvulopathies, âge inférieur à 18 ans","D07","Cardio-vasculaire (hors cathétérismes vasculaires diagnostiques et interventionnels)","X07","Affections Cardio-vasculaires","G065","Cardiopathies, valvulopathies","D07X07","D07X07G065"]
["05M11","Cardiopathies congénitales et valvulopathies, âge supérieur à 17 ans","D07","Cardio-vasculaire (hors cathétérismes vasculaires diagnostiques et interventionnels)","X07","Affections Cardio-vasculaires","G065","Cardiopathies, valvulopathies","D07X07","D07X07G065"]
["05M12","Troubles vasculaires périphériques","D07","Cardio-vasculaire (hors cathétérismes vasculaires diagnostiques et interventionnels)","X07","Affections Cardio-vasculaires","G075","Phlébites, varices et autres troubles vasculaires d'origine veineuse","D07X07","D07X07G075"]
["05M13","Douleurs thoraciques","D07","Cardio-vasculaire (hors cathétérismes vasculaires diagnostiques et interventionnels)","X07","Affections Cardio-vasculaires","G070","Cardiologie autres","D07X07","D07X07G070"]
["05M14","Arrêt cardiaque","D07","Cardio-vasculaire (hors cathétérismes vasculaires diagnostiques et interventionnels)","X07","Affections Cardio-vasculaires","G065","Cardiopathies, valvulopathies","D07X07","D07X07G065"]
["05M15","Hypertension artérielle","D07","Cardio-vasculaire (hors cathétérismes vasculaires diagnostiques et interventionnels)","X07","Affections Cardio-vasculaires","G068","Hypertension artérielle","D07X07","D07X07G068"]
["05M16","Athérosclérose coronarienne","D07","Cardio-vasculaire (hors cathétérismes vasculaires diagnostiques et interventionnels)","X07","Affections Cardio-vasculaires","G066","Coronaropathies","D07X07","D07X07G066"]
["05M17","Autres affections de l'appareil circulatoire","D07","Cardio-vasculaire (hors cathétérismes vasculaires diagnostiques et interventionnels)","X07","Affections Cardio-vasculaires","G070","Cardiologie autres","D07X07","D07X07G070"]
["05M18","Endocardites aiguës et subaiguës","D07","Cardio-vasculaire (hors cathétérismes vasculaires diagnostiques et interventionnels)","X07","Affections Cardio-vasculaires","G067","Endocardites","D07X07","D07X07G067"]
["05M19","Surveillances de greffes de coeur sans acte diagnostique par voie vasculaire","D07","Cardio-vasculaire (hors cathétérismes vasculaires diagnostiques et interventionnels)","X07","Affections Cardio-vasculaires","G070","Cardiologie autres","D07X07","D07X07G070"]
["05M20","Explorations et surveillance pour affections de l'appareil circulatoire","D07","Cardio-vasculaire (hors cathétérismes vasculaires diagnostiques et interventionnels)","X07","Affections Cardio-vasculaires","G071","Explorations et surveillance pour affections de l'appareil circulatoire","D07X07","D07X07G071"]
["05M21","Infarctus aigu du myocarde avec décès : séjours de moins de 2 jours","D07","Cardio-vasculaire (hors cathétérismes vasculaires diagnostiques et interventionnels)","X07","Affections Cardio-vasculaires","G066","Coronaropathies","D07X07","D07X07G066"]
["05M22","Autres affections de la CMD 05 avec décès : séjours de moins de 2 jours","D26","Activités inter spécialités, suivi thérapeutique d'affections connues","X24","Médecine inter spécialités, Autres symptômes ou motifs médicaux","G181","Médecine inter spécialités","D26X24","D26X24G181"]
["05M23","Symptômes et autres recours aux soins de la CMD 05","D07","Cardio-vasculaire (hors cathétérismes vasculaires diagnostiques et interventionnels)","X07","Affections Cardio-vasculaires","G070","Cardiologie autres","D07X07","D07X07G070"]
["06C03","Résections rectales","D01","Digestif","C06","Chir. Digestive majeure : oesophage, estomac, grêle, côlon, rectum","G002","Chirurgie digestive majeure ","D01C06","D01C06G002"]
["06C04","Interventions majeures sur l'intestin grêle et le côlon","D01","Digestif","C06","Chir. Digestive majeure : oesophage, estomac, grêle, côlon, rectum","G002","Chirurgie digestive majeure ","D01C06","D01C06G002"]
["06C05","Interventions sur l'oesophage, l'estomac et le duodénum, âge inférieur à 18 ans","D01","Digestif","C06","Chir. Digestive majeure : oesophage, estomac, grêle, côlon, rectum","G001","Chirurgies digestives hautes","D01C06","D01C06G001"]
["06C07","Interventions mineures sur l'intestin grêle et le côlon","D01","Digestif","C07","Chir. Viscérale autre : rate, grêle, colon, proctologie, hernies","G006","Chirurgie mineure grêle/colon","D01C07","D01C07G006"]
["06C08","Appendicectomies compliquées","D01","Digestif","C07","Chir. Viscérale autre : rate, grêle, colon, proctologie, hernies","G003","Appendicectomies","D01C07","D01C07G003"]
["06C09","Appendicectomies non compliquées","D01","Digestif","C07","Chir. Viscérale autre : rate, grêle, colon, proctologie, hernies","G003","Appendicectomies","D01C07","D01C07G003"]
["06C10","Interventions réparatrices pour hernies et éventrations, âge inférieur à 18 ans","D01","Digestif","C07","Chir. Viscérale autre : rate, grêle, colon, proctologie, hernies","G004","Hernies",{"$f":"CONCATENATE(C197,E197)","v":"D01C07"},{"$f":"CONCATENATE(I197,G197)","v":"D01C07G004"}]
["06C11","Interventions réparatrices pour hernies et éventrations à l'exception des hernies inguinales et crurales, âge supérieur à 17 ans","D01","Digestif","C07","Chir. Viscérale autre : rate, grêle, colon, proctologie, hernies","G004","Hernies","D01C07","D01C07G004"]
["06C12","Interventions réparatrices pour hernies inguinales et crurales, âge supérieur à 17 ans","D01","Digestif","C07","Chir. Viscérale autre : rate, grêle, colon, proctologie, hernies","G004","Hernies","D01C07","D01C07G004"]
["06C13","Libérations d'adhérences péritonéales","D01","Digestif","C07","Chir. Viscérale autre : rate, grêle, colon, proctologie, hernies","G008","Autres chirurgies digestives","D01C07","D01C07G008"]
["06C14","Interventions sur le rectum et l'anus autres que les résections rectales","D01","Digestif","C07","Chir. Viscérale autre : rate, grêle, colon, proctologie, hernies","G007","Chirurgies rectum/anus (hors résections)","D01C07","D01C07G007"]
["06C15","Autres interventions sur le tube digestif en dehors des laparotomies","D01","Digestif","C07","Chir. Viscérale autre : rate, grêle, colon, proctologie, hernies","G008","Autres chirurgies digestives","D01C07","D01C07G008"]
["06C16","Interventions sur l'oesophage, l'estomac et le duodénum pour tumeurs malignes, âge supérieur à 17 ans","D01","Digestif","C06","Chir. Digestive majeure : oesophage, estomac, grêle, côlon, rectum","G001","Chirurgies digestives hautes","D01C06","D01C06G001"]
["06C19","Hémorroïdectomies","D01","Digestif","C07","Chir. Viscérale autre : rate, grêle, colon, proctologie, hernies","G007","Chirurgies rectum/anus (hors résections)","D01C07","D01C07G007"]
["06C20","Interventions sur l'oesophage, l'estomac et le duodénum pour ulcères, âge supérieur à 17 ans","D01","Digestif","C06","Chir. Digestive majeure : oesophage, estomac, grêle, côlon, rectum","G001","Chirurgies digestives hautes","D01C06","D01C06G001"]
["06C21","Autres interventions sur le tube digestif par laparotomie","D01","Digestif","C07","Chir. Viscérale autre : rate, grêle, colon, proctologie, hernies","G008","Autres chirurgies digestives","D01C07","D01C07G008"]
["06C22","Interventions sur l'oesophage, l'estomac et le duodénum pour affections autres que malignes ou ulcères, âge supérieur à 17 ans","D01","Digestif","C06","Chir. Digestive majeure : oesophage, estomac, grêle, côlon, rectum","G001","Chirurgies digestives hautes","D01C06","D01C06G001"]
["06C23","Certaines interventions pour stomies","D01","Digestif","C07","Chir. Viscérale autre : rate, grêle, colon, proctologie, hernies","G008","Autres chirurgies digestives","D01C07","D01C07G008"]
["06K02","Endoscopies digestives thérapeutiques et anesthésie : séjours de moins de 2 jours","D01","Digestif","K02","Endoscopies digestives et biliaires avec ou sans anesthésie","G213","Endoscopies digestives thérapeutiques et anesthésie : séjours de moins de 2 jours","D01K02","D01K02G213"]
["06K03","Séjours comprenant une endoscopie digestive thérapeutique sans anesthésie, en ambulatoire","D01","Digestif","K02","Endoscopies digestives et biliaires avec ou sans anesthésie","G022","Endoscopies digestives avec ou sans anesthésie","D01K02","D01K02G022"]
["06K04","Endoscopie digestive diagnostique et anesthésie, en ambulatoire","D01","Digestif","K02","Endoscopies digestives et biliaires avec ou sans anesthésie","G022","Endoscopies digestives avec ou sans anesthésie","D01K02","D01K02G022"]
["06K05","Séjours comprenant une endoscopie digestive diagnostique sans anesthésie, en ambulatoire","D01","Digestif","K02","Endoscopies digestives et biliaires avec ou sans anesthésie","G022","Endoscopies digestives avec ou sans anesthésie","D01K02","D01K02G022"]
["06K06","Affections digestives sans acte opératoire de la CMD 06, avec anesthésie, en ambulatoire","D01","Digestif","K01","Hépato-Gastro-Entérologie, sans acte opératoire, avec anesthésie","G214","Affections digestives sans acte opératoire de la CMD 06, avec anesthésie, en ambulatoire","D01K01","D01K01G214"]
["06M02","Autres gastroentérites et maladies diverses du tube digestif, âge inférieur à 18 ans","D01","Digestif","X02","Hépato-Gastro-Entérologie","G016","Autres gastroentérites et maladies diverses du tube digestif","D01X02","D01X02G016"]
["06M03","Autres gastroentérites et maladies diverses du tube digestif, âge supérieur à 17 ans","D01","Digestif","X02","Hépato-Gastro-Entérologie","G016","Autres gastroentérites et maladies diverses du tube digestif","D01X02","D01X02G016"]
["06M04","Hémorragies digestives","D01","Digestif","X02","Hépato-Gastro-Entérologie","G012","Ulcères, hémorragies digestives","D01X02","D01X02G012"]
["06M05","Autres tumeurs malignes du tube digestif","D01","Digestif","X02","Hépato-Gastro-Entérologie","G011","Prise en charge médicale des tumeurs malignes du tube digestif","D01X02","D01X02G011"]
["06M06","Occlusions intestinales non dues à une hernie","D01","Digestif","X02","Hépato-Gastro-Entérologie","G005","Occlusions, sub-occlusions digestives","D01X02","D01X02G005"]
["06M07","Maladies inflammatoires de l'intestin","D01","Digestif","X02","Hépato-Gastro-Entérologie","G014","Maladies inflammatoires de l'intestin","D01X02","D01X02G014"]
["06M08","Autres affections digestives, âge inférieur à 18 ans","D01","Digestif","X02","Hépato-Gastro-Entérologie","G017","Autres affections digestives","D01X02","D01X02G017"]
["06M09","Autres affections digestives, âge supérieur à 17 ans","D01","Digestif","X02","Hépato-Gastro-Entérologie","G017","Autres affections digestives","D01X02","D01X02G017"]
["06M10","Ulcères gastroduodénaux compliqués","D01","Digestif","X02","Hépato-Gastro-Entérologie","G012","Ulcères, hémorragies digestives","D01X02","D01X02G012"]
["06M11","Ulcères gastroduodénaux non compliqués","D01","Digestif","X02","Hépato-Gastro-Entérologie","G012","Ulcères, hémorragies digestives","D01X02","D01X02G012"]
["06M12","Douleurs abdominales","D01","Digestif","X02","Hépato-Gastro-Entérologie","G021","Symptômes digestifs","D01X02","D01X02G021"]
["06M13","Tumeurs malignes de l'oesophage et de l'estomac","D01","Digestif","X02","Hépato-Gastro-Entérologie","G011","Prise en charge médicale des tumeurs malignes du tube digestif","D01X02","D01X02G011"]
["06M14","Invaginations intestinales aigües","D01","Digestif","X02","Hépato-Gastro-Entérologie","G015","Gastro-entérites et affections du tube digestif","D01X02","D01X02G015"]
["06M15","Suivi de greffes de l'appareil digestif","D01","Digestif","X02","Hépato-Gastro-Entérologie","G013","Suivi de greffes digestives","D01X02","D01X02G013"]
["06M16","Explorations et surveillance pour affections de l'appareil digestif","D01","Digestif","X02","Hépato-Gastro-Entérologie","G023","Explorations et surveillance pour affections de l'appareil digestif, du système hépatobiliaire et du pancréas","D01X02","D01X02G023"]
["06M17","Soins de stomies digestives","D01","Digestif","X02","Hépato-Gastro-Entérologie","G015","Gastro-entérites et affections du tube digestif","D01X02","D01X02G015"]
["06M18","Symptômes et autres recours aux soins de la CMD 06","D01","Digestif","X02","Hépato-Gastro-Entérologie","G021","Symptômes digestifs","D01X02","D01X02G021"]
["06M19","Affections sévères du tube digestif","D01","Digestif","X02","Hépato-Gastro-Entérologie","G015","Gastro-entérites et affections du tube digestif","D01X02","D01X02G015"]
["06M20","Tumeurs bénignes de l'appareil digestif","D01","Digestif","X02","Hépato-Gastro-Entérologie","G015","Gastro-entérites et affections du tube digestif","D01X02","D01X02G015"]
["06M21","Autres affections digestives concernant majoritairement la petite enfance","D01","Digestif","X02","Hépato-Gastro-Entérologie","G017","Autres affections digestives","D01X02","D01X02G017"]
["07C06","Interventions diagnostiques sur le système hépato-biliaire et pancréatique pour affections malignes","D01","Digestif","C08","Chir. hépato-biliaire et pancréatique","G010","Autres chirurgies foie, pancréas, voies biliaires","D01C08","D01C08G010"]
["07C07","Interventions diagnostiques sur le système hépato-biliaire et pancréatique pour affections non malignes","D01","Digestif","C08","Chir. hépato-biliaire et pancréatique","G010","Autres chirurgies foie, pancréas, voies biliaires","D01C08","D01C08G010"]
["07C08","Autres interventions sur le système hépato-biliaire et pancréatique","D01","Digestif","C08","Chir. hépato-biliaire et pancréatique","G010","Autres chirurgies foie, pancréas, voies biliaires","D01C08","D01C08G010"]
["07C09","Interventions sur le foie, le pancréas et les veines porte ou cave pour tumeurs malignes","D01","Digestif","C08","Chir. hépato-biliaire et pancréatique","G010","Autres chirurgies foie, pancréas, voies biliaires","D01C08","D01C08G010"]
["07C10","Interventions sur le foie, le pancréas et les veines porte ou cave pour affections non malignes","D01","Digestif","C08","Chir. hépato-biliaire et pancréatique","G010","Autres chirurgies foie, pancréas, voies biliaires","D01C08","D01C08G010"]
["07C11","Dérivations biliaires","D01","Digestif","C08","Chir. hépato-biliaire et pancréatique","G010","Autres chirurgies foie, pancréas, voies biliaires","D01C08","D01C08G010"]
["07C12","Autres interventions sur les voies biliaires sauf cholécystectomies isolées","D01","Digestif","C08","Chir. hépato-biliaire et pancréatique","G010","Autres chirurgies foie, pancréas, voies biliaires","D01C08","D01C08G010"]
["07C13","Cholécystectomies sans exploration de la voie biliaire principale pour affections aigües","D01","Digestif","C08","Chir. hépato-biliaire et pancréatique","G009","Cholécystectomies","D01C08","D01C08G009"]
["07C14","Cholécystectomies sans exploration de la voie biliaire principale à l'exception des affections aigües","D01","Digestif","C08","Chir. hépato-biliaire et pancréatique","G009","Cholécystectomies","D01C08","D01C08G009"]
["07K02","Endoscopies biliaires thérapeutiques et anesthésie : séjours de moins de 2 jours","D01","Digestif","K02","Endoscopies digestives et biliaires avec ou sans anesthésie","G022","Endoscopies digestives avec ou sans anesthésie","D01K02","D01K02G022"]
["07K04","Endoscopie biliaire diagnostique et anesthésie, en ambulatoire","D01","Digestif","K02","Endoscopies digestives et biliaires avec ou sans anesthésie","G022","Endoscopies digestives avec ou sans anesthésie","D01K02","D01K02G022"]
["07K05","Séjours comprenant une endoscopie biliaire thérapeutique ou diagnostique sans anesthésie, en ambulatoire","D01","Digestif","K02","Endoscopies digestives et biliaires avec ou sans anesthésie","G022","Endoscopies digestives avec ou sans anesthésie","D01K02","D01K02G022"]
["07M02","Affections des voies biliaires","D01","Digestif","X02","Hépato-Gastro-Entérologie","G020","Autres affections hépatiques, voies biliaires","D01X02","D01X02G020"]
["07M04","Autres affections hépatiques","D01","Digestif","X02","Hépato-Gastro-Entérologie","G020","Autres affections hépatiques, voies biliaires","D01X02","D01X02G020"]
["07M06","Affections malignes du système hépato-biliaire ou du pancréas","D01","Digestif","X02","Hépato-Gastro-Entérologie","G019","Affections hépatiques sévères et affections du pancréas","D01X02","D01X02G019"]
["07M07","Cirrhoses alcooliques","D01","Digestif","X02","Hépato-Gastro-Entérologie","G018","Hépatites, cirrhoses","D01X02","D01X02G018"]
["07M08","Autres cirrhoses et fibrose hépatique","D01","Digestif","X02","Hépato-Gastro-Entérologie","G018","Hépatites, cirrhoses","D01X02","D01X02G018"]
["07M09","Hépatites chroniques","D01","Digestif","X02","Hépato-Gastro-Entérologie","G018","Hépatites, cirrhoses","D01X02","D01X02G018"]
["07M10","Pancréatites aigües","D01","Digestif","X02","Hépato-Gastro-Entérologie","G019","Affections hépatiques sévères et affections du pancréas","D01X02","D01X02G019"]
["07M11","Autres affections non malignes du pancréas","D01","Digestif","X02","Hépato-Gastro-Entérologie","G019","Affections hépatiques sévères et affections du pancréas","D01X02","D01X02G019"]
["07M12","Suivis de greffe de foie et de pancréas","D01","Digestif","X02","Hépato-Gastro-Entérologie","G013","Suivi de greffes digestives","D01X02","D01X02G013"]
["07M13","Explorations et surveillance des affections du système hépatobiliaire et du pancréas","D01","Digestif","X02","Hépato-Gastro-Entérologie","G023","Explorations et surveillance pour affections de l'appareil digestif, du système hépatobiliaire et du pancréas","D01X02","D01X02G023"]
["07M14","Symptômes et autres recours aux soins de la CMD 07","D01","Digestif","X02","Hépato-Gastro-Entérologie","G021","Symptômes digestifs","D01X02","D01X02G021"]
["07M15","Affections hépatiques sévères à l'exception des tumeurs malignes, des cirrhoses et des hépatites alcooliques","D01","Digestif","X02","Hépato-Gastro-Entérologie","G019","Affections hépatiques sévères et affections du pancréas","D01X02","D01X02G019"]
["07M16","Ictères du nouveau-né","D01","Digestif","X02","Hépato-Gastro-Entérologie","G020","Autres affections hépatiques, voies biliaires","D01X02","D01X02G020"]
["08C02","Interventions majeures multiples sur les genoux et/ou les hanches","D02","Orthopédie traumatologie","C09","Chir. majeure de l'app. Locomoteur:  hanche, fémur, genou, épaule","G024","Chirurgies majeures orthopédiques (dont hanche et fémur genou)","D02C09","D02C09G024"]
["08C04","Interventions sur la hanche et le fémur, âge inférieur à 18 ans","D02","Orthopédie traumatologie","C09","Chir. majeure de l'app. Locomoteur:  hanche, fémur, genou, épaule","G024","Chirurgies majeures orthopédiques (dont hanche et fémur genou)","D02C09","D02C09G024"]
["08C06","Amputations pour affections de l'appareil musculosquelettique et du tissu conjonctif","D02","Orthopédie traumatologie","C11","Chirurgies autres de l'appareil locomoteur, amputations","G028","Amputations",{"$f":"CONCATENATE(C261,E261)","v":"D02C11"},{"$f":"CONCATENATE(I261,G261)","v":"D02C11G028"}]
["08C12","Biopsies ostéoarticulaires","D02","Orthopédie traumatologie","C10","Arthroscopies, Biopsies ostéo-articulaires","G025","Arthroscopies, Biopsies ostéo-articulaires","D02C10","D02C10G025"]
["08C13","Résections osseuses localisées et/ou ablation de matériel de fixation interne au niveau de la hanche et du fémur","D02","Orthopédie traumatologie","C11","Chirurgies autres de l'appareil locomoteur, amputations","G027","Ablations matériel","D02C11","D02C11G027"]
["08C14","Résections osseuses localisées et/ou ablation de matériel de fixation interne au niveau d'une localisation autre que la hanche et le fémur","D02","Orthopédie traumatologie","C11","Chirurgies autres de l'appareil locomoteur, amputations","G027","Ablations matériel","D02C11","D02C11G027"]
["08C20","Greffes de peau pour maladie de l'appareil musculosquelettique ou du tissu conjonctif","D20","Tissu cutané et tissu sous-cutané","C23","Parages de plaies, Greffes de peau, des Tissus S/C","G163","Greffes peau / parages hors brûlures","D20C23","D20C23G163"]
["08C21","Autres interventions portant sur l'appareil musculosquelettique et le tissu conjonctif","D26","Activités inter spécialités, suivi thérapeutique d'affections connues","C25","Chirurgie inter spécialités","G179","Chirurgie inter spécialités","D26C25","D26C25G179"]
["08C22","Interventions pour reprise de prothèses articulaires","D02","Orthopédie traumatologie","C09","Chir. majeure de l'app. Locomoteur:  hanche, fémur, genou, épaule","G024","Chirurgies majeures orthopédiques (dont hanche et fémur genou)","D02C09","D02C09G024"]
["08C24","Prothèses de genou","D02","Orthopédie traumatologie","C09","Chir. majeure de l'app. Locomoteur:  hanche, fémur, genou, épaule","G024","Chirurgies majeures orthopédiques (dont hanche et fémur genou)","D02C09","D02C09G024"]
["08C25","Prothèses d'épaule","D02","Orthopédie traumatologie","C09","Chir. majeure de l'app. Locomoteur:  hanche, fémur, genou, épaule","G024","Chirurgies majeures orthopédiques (dont hanche et fémur genou)","D02C09","D02C09G024"]
["08C27","Autres interventions sur le rachis","D05","Système nerveux (hors cathétérismes vasculaires diagnostiques et interventionnels)","C02","Chirurgie du rachis, Neuro-chirurgie","G041","Chirurgies rachis/moelle","D05C02","D05C02G041"]
["08C28","Interventions maxillofaciales","D10","ORL, Stomatologie","C15","Chirurgie ORL stomato","G085","Chirurgies ORL majeures","D10C15","D10C15G085"]
["08C29","Interventions sur le tissu mou pour tumeurs malignes","D02","Orthopédie traumatologie","C11","Chirurgies autres de l'appareil locomoteur, amputations","G035","Interventions sur le tissu mou pour tumeurs malignes","D02C11","D02C11G035"]
["08C31","Interventions sur la jambe, âge inférieur à 18 ans","D02","Orthopédie traumatologie","C11","Chirurgies autres de l'appareil locomoteur, amputations","G031","Chirurgie de la jambe","D02C11","D02C11G031"]
["08C32","Interventions sur la jambe, âge supérieur à 17 ans","D02","Orthopédie traumatologie","C11","Chirurgies autres de l'appareil locomoteur, amputations","G031","Chirurgie de la jambe","D02C11","D02C11G031"]
["08C33","Interventions sur la cheville et l'arrière-pied à l'exception des fractures","D02","Orthopédie traumatologie","C11","Chirurgies autres de l'appareil locomoteur, amputations","G032","Chirurgie de la cheville ou du pied","D02C11","D02C11G032"]
["08C34","Interventions sur les ligaments croisés sous arthroscopie","D02","Orthopédie traumatologie","C10","Arthroscopies, Biopsies ostéo-articulaires","G025","Arthroscopies, Biopsies ostéo-articulaires","D02C10","D02C10G025"]
["08C35","Interventions sur le bras, coude et épaule","D02","Orthopédie traumatologie","C11","Chirurgies autres de l'appareil locomoteur, amputations","G033","Chirurgie du membre supérieur (hors prothèses)","D02C11","D02C11G033"]
["08C36","Interventions sur le pied, âge inférieur à 18 ans","D02","Orthopédie traumatologie","C11","Chirurgies autres de l'appareil locomoteur, amputations","G032","Chirurgie de la cheville ou du pied","D02C11","D02C11G032"]
["08C37","Interventions sur le pied, âge supérieur à 17 ans","D02","Orthopédie traumatologie","C11","Chirurgies autres de l'appareil locomoteur, amputations","G032","Chirurgie de la cheville ou du pied","D02C11","D02C11G032"]
["08C38","Autres arthroscopies du genou","D02","Orthopédie traumatologie","C10","Arthroscopies, Biopsies ostéo-articulaires","G025","Arthroscopies, Biopsies ostéo-articulaires","D02C10","D02C10G025"]
["08C39","Interventions sur l'avant-bras","D02","Orthopédie traumatologie","C11","Chirurgies autres de l'appareil locomoteur, amputations","G033","Chirurgie du membre supérieur (hors prothèses)","D02C11","D02C11G033"]
["08C40","Arthroscopies d'autres localisations","D02","Orthopédie traumatologie","C10","Arthroscopies, Biopsies ostéo-articulaires","G025","Arthroscopies, Biopsies ostéo-articulaires","D02C10","D02C10G025"]
["08C41","Interventions sur le poignet","D02","Orthopédie traumatologie","C11","Chirurgies autres de l'appareil locomoteur, amputations","G029","Chirurgies main, poignet","D02C11","D02C11G029"]
["08C42","Interventions non mineures sur les tissus mous","D02","Orthopédie traumatologie","C11","Chirurgies autres de l'appareil locomoteur, amputations","G034","Chirurgie des tissus mous","D02C11","D02C11G034"]
["08C43","Interventions non mineures sur la main","D02","Orthopédie traumatologie","C11","Chirurgies autres de l'appareil locomoteur, amputations","G029","Chirurgies main, poignet","D02C11","D02C11G029"]
["08C44","Autres interventions sur la main","D02","Orthopédie traumatologie","C11","Chirurgies autres de l'appareil locomoteur, amputations","G029","Chirurgies main, poignet","D02C11","D02C11G029"]
["08C45","Ménisectomie sous arthroscopie","D02","Orthopédie traumatologie","C10","Arthroscopies, Biopsies ostéo-articulaires","G025","Arthroscopies, Biopsies ostéo-articulaires","D02C10","D02C10G025"]
["08C46","Autres interventions sur les tissus mous","D02","Orthopédie traumatologie","C11","Chirurgies autres de l'appareil locomoteur, amputations","G034","Chirurgie des tissus mous","D02C11","D02C11G034"]
["08C47","Prothèses de hanche pour traumatismes récents","D02","Orthopédie traumatologie","C09","Chir. majeure de l'app. Locomoteur:  hanche, fémur, genou, épaule","G024","Chirurgies majeures orthopédiques (dont hanche et fémur genou)","D02C09","D02C09G024"]
["08C48","Prothèses de hanche pour des affections autres que des traumatismes récents","D02","Orthopédie traumatologie","C09","Chir. majeure de l'app. Locomoteur:  hanche, fémur, genou, épaule","G024","Chirurgies majeures orthopédiques (dont hanche et fémur genou)","D02C09","D02C09G024"]
["08C49","Interventions sur la hanche et le fémur pour traumatismes récents, âge supérieur à 17 ans","D02","Orthopédie traumatologie","C09","Chir. majeure de l'app. Locomoteur:  hanche, fémur, genou, épaule","G024","Chirurgies majeures orthopédiques (dont hanche et fémur genou)","D02C09","D02C09G024"]
["08C50","Interventions sur la hanche et le fémur sauf traumatismes récents, âge supérieur à 17 ans","D02","Orthopédie traumatologie","C09","Chir. majeure de l'app. Locomoteur:  hanche, fémur, genou, épaule","G024","Chirurgies majeures orthopédiques (dont hanche et fémur genou)","D02C09","D02C09G024"]
["08C51","Interventions majeures sur le rachis pour fractures, cyphoses et scolioses","D05","Système nerveux (hors cathétérismes vasculaires diagnostiques et interventionnels)","C02","Chirurgie du rachis, Neuro-chirurgie","G041","Chirurgies rachis/moelle","D05C02","D05C02G041"]
["08C52","Autres interventions majeures sur le rachis","D05","Système nerveux (hors cathétérismes vasculaires diagnostiques et interventionnels)","C02","Chirurgie du rachis, Neuro-chirurgie","G041","Chirurgies rachis/moelle","D05C02","D05C02G041"]
["08C53","Interventions sur le genou pour traumatismes","D02","Orthopédie traumatologie","C11","Chirurgies autres de l'appareil locomoteur, amputations","G031","Chirurgie de la jambe","D02C11","D02C11G031"]
["08C54","Interventions sur le genou pour des affections autres que traumatiques","D02","Orthopédie traumatologie","C11","Chirurgies autres de l'appareil locomoteur, amputations","G031","Chirurgie de la jambe","D02C11","D02C11G031"]
["08C55","Interventions sur la cheville et l'arrière-pied pour fractures","D02","Orthopédie traumatologie","C11","Chirurgies autres de l'appareil locomoteur, amputations","G032","Chirurgie de la cheville ou du pied","D02C11","D02C11G032"]
["08C56","Interventions pour infections ostéoarticulaires","D02","Orthopédie traumatologie","C11","Chirurgies autres de l'appareil locomoteur, amputations","G030","Chirurgie pour Ostéomyélites aigües (y compris vertébrales) et arthrites septiques","D02C11","D02C11G030"]
["08K02","Affections de l'appareil musculosquelettique sans acte opératoire de la CMD 08, avec anesthésie, en ambulatoire","D02","Orthopédie traumatologie","K08","Traumatologie avec acte classant non opératoire ou anesthésie","G026","Chirurgie Fractures, entorses, luxations, tractions","D02K08","D02K08G026"]
["08K03","Tractions continues et réductions progressives : autres que hanche et fémur","D02","Orthopédie traumatologie","K08","Traumatologie avec acte classant non opératoire ou anesthésie","G026","Chirurgie Fractures, entorses, luxations, tractions","D02K08","D02K08G026"]
["08K04","Tractions continues et réductions progressives : hanche et fémur","D02","Orthopédie traumatologie","K08","Traumatologie avec acte classant non opératoire ou anesthésie","G026","Chirurgie Fractures, entorses, luxations, tractions","D02K08","D02K08G026"]
["08M04","Fractures de la hanche et du bassin","D02","Orthopédie traumatologie","X05","Traumatologie et ablation de matériel de l'appareil locomoteur","G036","Traumatismes du bassin et des membres","D02X05","D02X05G036"]
["08M05","Fractures de la diaphyse, de l'épiphyse ou d'une partie non précisée du fémur","D02","Orthopédie traumatologie","X05","Traumatologie et ablation de matériel de l'appareil locomoteur","G036","Traumatismes du bassin et des membres","D02X05","D02X05G036"]
["08M06","Fractures, entorses, luxations et dislocations de la jambe, âge inférieur à 18 ans","D02","Orthopédie traumatologie","X05","Traumatologie et ablation de matériel de l'appareil locomoteur","G036","Traumatismes du bassin et des membres","D02X05","D02X05G036"]
["08M07","Fractures, entorses, luxations et dislocations de la jambe, âge supérieur à 17 ans","D02","Orthopédie traumatologie","X05","Traumatologie et ablation de matériel de l'appareil locomoteur","G036","Traumatismes du bassin et des membres","D02X05","D02X05G036"]
["08M08","Entorses et luxations de la hanche et du bassin","D02","Orthopédie traumatologie","X05","Traumatologie et ablation de matériel de l'appareil locomoteur","G036","Traumatismes du bassin et des membres","D02X05","D02X05G036"]
["08M09","Arthropathies non spécifiques","D04","Rhumatologie","X06","Rhumatologie","G039","Maladies osseuses et arthropathies","D04X06","D04X06G039"]
["08M10","Maladies osseuses et arthropathies spécifiques","D04","Rhumatologie","X06","Rhumatologie","G039","Maladies osseuses et arthropathies","D04X06","D04X06G039"]
["08M14","Affections du tissu conjonctif","D04","Rhumatologie","X06","Rhumatologie","G040","Autres affections rhumatologiques","D04X06","D04X06G040"]
["08M15","Tendinites, myosites et bursites","D04","Rhumatologie","X06","Rhumatologie","G040","Autres affections rhumatologiques","D04X06","D04X06G040"]
["08M18","Suites de traitement après une affection de l'appareil musculosquelettique ou du tissu conjonctif","D04","Rhumatologie","X06","Rhumatologie","G040","Autres affections rhumatologiques","D04X06","D04X06G040"]
["08M19","Autres pathologies de l'appareil musculosquelettique et du tissu conjonctif","D04","Rhumatologie","X06","Rhumatologie","G040","Autres affections rhumatologiques","D04X06","D04X06G040"]
["08M20","Fractures, entorses, luxations et dislocations du bras et de l'avant-bras, âge inférieur à 18 ans","D02","Orthopédie traumatologie","X05","Traumatologie et ablation de matériel de l'appareil locomoteur","G036","Traumatismes du bassin et des membres","D02X05","D02X05G036"]
["08M21","Entorses, luxations et dislocations du bras et de l'avant-bras, âge supérieur à 17 ans","D02","Orthopédie traumatologie","X05","Traumatologie et ablation de matériel de l'appareil locomoteur","G036","Traumatismes du bassin et des membres","D02X05","D02X05G036"]
["08M22","Fractures, entorses, luxations et dislocations de la main","D02","Orthopédie traumatologie","X05","Traumatologie et ablation de matériel de l'appareil locomoteur","G036","Traumatismes du bassin et des membres","D02X05","D02X05G036"]
["08M23","Fractures, entorses, luxations et dislocations du pied","D02","Orthopédie traumatologie","X05","Traumatologie et ablation de matériel de l'appareil locomoteur","G036","Traumatismes du bassin et des membres","D02X05","D02X05G036"]
["08M24","Tumeurs malignes primitives des os","D04","Rhumatologie","X06","Rhumatologie","G038","Prise en charge médicale des tumeurs de l'appareil musculosquelettique, du tissu conjonctif et fractures pathologiques","D04X06","D04X06G038"]
["08M25","Fractures pathologiques et autres tumeurs malignes de l'appareil musculosquelettique et du tissu conjonctif","D04","Rhumatologie","X06","Rhumatologie","G038","Prise en charge médicale des tumeurs de l'appareil musculosquelettique, du tissu conjonctif et fractures pathologiques","D04X06","D04X06G038"]
["08M26","Fractures du rachis","D02","Orthopédie traumatologie","X05","Traumatologie et ablation de matériel de l'appareil locomoteur","G210","Traumatismes du rachis","D02X05","D02X05G210"]
["08M27","Sciatiques et autres radiculopathies","D04","Rhumatologie","X06","Rhumatologie","G039","Maladies osseuses et arthropathies","D04X06","D04X06G039"]
["08M28","Autres rachialgies","D04","Rhumatologie","X06","Rhumatologie","G039","Maladies osseuses et arthropathies","D04X06","D04X06G039"]
["08M29","Autres pathologies rachidiennes relevant d'un traitement médical","D04","Rhumatologie","X06","Rhumatologie","G039","Maladies osseuses et arthropathies","D04X06","D04X06G039"]
["08M30","Rhumatismes et raideurs articulaires","D04","Rhumatologie","X06","Rhumatologie","G039","Maladies osseuses et arthropathies","D04X06","D04X06G039"]
["08M31","Ostéomyélites aigües (y compris vertébrales) et arthrites septiques","D04","Rhumatologie","X06","Rhumatologie","G211","Ostéomyélites aigües (y compris vertébrales) et arthrites septiques","D04X06","D04X06G211"]
["08M32","Ostéomyélites chroniques","D04","Rhumatologie","X06","Rhumatologie","G039","Maladies osseuses et arthropathies",{"$f":"CONCATENATE(C325,E325)","v":"D04X06"},{"$f":"CONCATENATE(I325,G325)","v":"D04X06G039"}]
["08M33","Ablation de matériel sans acte classant","D02","Orthopédie traumatologie","X05","Traumatologie et ablation de matériel de l'appareil locomoteur","G036","Traumatismes du bassin et des membres","D02X05","D02X05G036"]
["08M34","Algoneurodystrophie","D04","Rhumatologie","X06","Rhumatologie","G039","Maladies osseuses et arthropathies","D04X06","D04X06G039"]
["08M35","Explorations et surveillance de l'appareil musculosquelettique et du tissu conjonctif","D04","Rhumatologie","X06","Rhumatologie","G042","Explorations et surveillance de l'appareil musculosquelettique et du tissu conjonctif","D04X06","D04X06G042"]
["08M36","Symptômes et autres recours aux soins de la CMD 08","D04","Rhumatologie","X06","Rhumatologie","G039","Maladies osseuses et arthropathies","D04X06","D04X06G039"]
["08M37","Fractures du bras et de l'avant-bras, âge supérieur à 17 ans","D02","Orthopédie traumatologie","X05","Traumatologie et ablation de matériel de l'appareil locomoteur","G036","Traumatismes du bassin et des membres","D02X05","D02X05G036"]
["08M38","Entorses et luxations du rachis","D02","Orthopédie traumatologie","X05","Traumatologie et ablation de matériel de l'appareil locomoteur","G210","Traumatismes du rachis","D02X05","D02X05G210"]
["09C02","Greffes de peau et/ou parages de plaie pour ulcère cutané ou cellulite","D20","Tissu cutané et tissu sous-cutané","C23","Parages de plaies, Greffes de peau, des Tissus S/C","G163","Greffes peau / parages hors brûlures","D20C23","D20C23G163"]
["09C03","Greffes de peau et/ou parages de plaie à l'exception des ulcères cutanés et cellulites","D20","Tissu cutané et tissu sous-cutané","C23","Parages de plaies, Greffes de peau, des Tissus S/C","G163","Greffes peau / parages hors brûlures","D20C23","D20C23G163"]
["09C04","Mastectomies totales pour tumeur maligne","D12","Gynécologie - sein","C18","Chirurgie du sein","G107","Chirurgie pour tumeurs malignes sein","D12C18","D12C18G107"]
["09C05","Mastectomies subtotales pour tumeur maligne","D12","Gynécologie - sein","C18","Chirurgie du sein","G107","Chirurgie pour tumeurs malignes sein","D12C18","D12C18G107"]
["09C06","Interventions sur le sein pour des affections non malignes autres que les actes de biopsie et d'excision locale","D12","Gynécologie - sein","C18","Chirurgie du sein","G108","Chirurgie du sein hors TM","D12C18","D12C18G108"]
["09C07","Biopsies et excisions locales pour des affections non malignes du sein","D12","Gynécologie - sein","C18","Chirurgie du sein","G108","Chirurgie du sein hors TM","D12C18","D12C18G108"]
["09C08","Interventions sur la région anale et périanale","D01","Digestif","C07","Chir. Viscérale autre : rate, grêle, colon, proctologie, hernies","G007","Chirurgies rectum/anus (hors résections)","D01C07","D01C07G007"]
["09C09","Interventions plastiques en dehors de la chirurgie esthétique","D20","Tissu cutané et tissu sous-cutané","C23","Parages de plaies, Greffes de peau, des Tissus S/C","G163","Greffes peau / parages hors brûlures","D20C23","D20C23G163"]
["09C10","Autres interventions sur la peau, les tissus sous-cutanés ou les seins","D26","Activités inter spécialités, suivi thérapeutique d'affections connues","C25","Chirurgie inter spécialités","G179","Chirurgie inter spécialités","D26C25","D26C25G179"]
["09C11","Reconstructions des seins","D12","Gynécologie - sein","C18","Chirurgie du sein","G107","Chirurgie pour tumeurs malignes sein","D12C18","D12C18G107"]
["09K02","Affections de la peau, des tissus sous-cutanés et des seins sans acte opératoire de la CMD 09, avec anesthésie, en ambulatoire","D26","Activités inter spécialités, suivi thérapeutique d'affections connues","K15","Autres séj. sans acte, avec anesthésie, en ambulatoire (Aff. myéloP., peau, sein...)","G203"," Autres séj. sans acte, avec anesthésie, en ambulatoire (Aff. myéloP., peau, sein..)","D26K15","D26K15G203"]
["09M02","Traumatismes de la peau et des tissus sous-cutanés, âge inférieur à 18 ans","D20","Tissu cutané et tissu sous-cutané","X16","Affections et traumatismes de la peau, gelures","G164","Intervention  peau et tissu sous-cutané","D20X16","D20X16G164"]
["09M03","Traumatismes de la peau et des tissus sous-cutanés, âge supérieur à 17 ans","D20","Tissu cutané et tissu sous-cutané","X16","Affections et traumatismes de la peau, gelures","G164","Intervention  peau et tissu sous-cutané","D20X16","D20X16G164"]
["09M04","Lésions, infections et inflammations de la peau et des tissus sous-cutanés, âge inférieur à 18 ans","D20","Tissu cutané et tissu sous-cutané","X16","Affections et traumatismes de la peau, gelures","G166","Infections peau et tissu sous-cutané","D20X16","D20X16G166"]
["09M05","Lésions, infections et inflammations de la peau et des tissus sous-cutanés, âge supérieur à 17 ans","D20","Tissu cutané et tissu sous-cutané","X16","Affections et traumatismes de la peau, gelures","G166","Infections peau et tissu sous-cutané","D20X16","D20X16G166"]
["09M06","Ulcères cutanés","D20","Tissu cutané et tissu sous-cutané","X16","Affections et traumatismes de la peau, gelures","G165","Affections peau et tissu sous-cutané","D20X16","D20X16G165"]
["09M07","Autres affections dermatologiques","D20","Tissu cutané et tissu sous-cutané","X16","Affections et traumatismes de la peau, gelures","G165","Affections peau et tissu sous-cutané","D20X16","D20X16G165"]
["09M08","Affections dermatologiques sévères","D20","Tissu cutané et tissu sous-cutané","X16","Affections et traumatismes de la peau, gelures","G165","Affections peau et tissu sous-cutané","D20X16","D20X16G165"]
["09M09","Affections non malignes des seins","D12","Gynécologie - sein","X11","Gynécologie, Sénologie (hors Obstétrique)","G113","Affections des seins ","D12X11","D12X11G113"]
["09M10","Tumeurs malignes des seins","D12","Gynécologie - sein","X11","Gynécologie, Sénologie (hors Obstétrique)","G114","Prise en charge médicale des tumeurs des seins ","D12X11","D12X11G114"]
["09M11","Tumeurs de la peau","D20","Tissu cutané et tissu sous-cutané","X16","Affections et traumatismes de la peau, gelures","G167","Prise en charge médicale des tumeurs de la peau et tissu sous-cutané","D20X16","D20X16G167"]
["09M12","Explorations et surveillance des affections de la peau","D20","Tissu cutané et tissu sous-cutané","X16","Affections et traumatismes de la peau, gelures","G168","Explorations et surveillance des affections de la peau","D20X16","D20X16G168"]
["09M13","Explorations et surveillance des affections des seins","D12","Gynécologie - sein","X11","Gynécologie, Sénologie (hors Obstétrique)","G115","Explorations et surveillance gynécologiques et des affections des seins","D12X11","D12X11G115"]
["09M14","Symptômes et autres recours aux soins concernant les affections de la peau","D20","Tissu cutané et tissu sous-cutané","X16","Affections et traumatismes de la peau, gelures","G165","Affections peau et tissu sous-cutané","D20X16","D20X16G165"]
["09M15","Symptômes et autres recours aux soins concernant les affections des seins","D12","Gynécologie - sein","X11","Gynécologie, Sénologie (hors Obstétrique)","G113","Affections des seins ","D12X11","D12X11G113"]
["09Z02","Chirurgie esthétique","D26","Activités inter spécialités, suivi thérapeutique d'affections connues","X26","Chirurgie esthétique et de confort","G180","Chirurgie esthétique et de confort","D26X26","D26X26G180"]
["10C02","Interventions sur l'hypophyse","D05","Système nerveux (hors cathétérismes vasculaires diagnostiques et interventionnels)","C02","Chirurgie du rachis, Neuro-chirurgie","G044","Chirurgies SNC hors trauma (rachis et moelle exceptés)","D05C02","D05C02G044"]
["10C03","Interventions sur les glandes surrénales","D15","Uro-néphrologie et génital ","C19","Chirurgie Urologique","G126","Chirurgies reins, uretères, vessie, glandes surrénales","D15C19","D15C19G126"]
["10C05","Interventions sur les parathyroïdes","D19","Endocrinologie","C22","Chirurgie de la Thyroide, Parathyroide, du Tractus Thyréoglosse, endocrinologie","G157","Chirurgie des parathyroides, du tractus thyréoglosse, endocrinologie","D19C22","D19C22G157"]
["10C07","Interventions sur le tractus thyréoglosse","D19","Endocrinologie","C22","Chirurgie de la Thyroide, Parathyroide, du Tractus Thyréoglosse, endocrinologie","G157","Chirurgie des parathyroides, du tractus thyréoglosse, endocrinologie","D19C22","D19C22G157"]
["10C08","Autres interventions pour troubles endocriniens, métaboliques ou nutritionnels","D26","Activités inter spécialités, suivi thérapeutique d'affections connues","C25","Chirurgie inter spécialités","G179","Chirurgie inter spécialités","D26C25","D26C25G179"]
["10C09","Gastroplasties pour obésité","D01","Digestif","C06","Chir. Digestive majeure : oesophage, estomac, grêle, côlon, rectum","G001","Chirurgies digestives hautes","D01C06","D01C06G001"]
["10C10","Autres interventions pour obésité","D19","Endocrinologie","C22","Chirurgie de la Thyroide, Parathyroide, du Tractus Thyréoglosse, endocrinologie","G157","Chirurgie des parathyroides, du tractus thyréoglosse, endocrinologie","D19C22","D19C22G157"]
["10C11","Interventions sur la thyroïde pour tumeurs malignes","D19","Endocrinologie","C22","Chirurgie de la Thyroide, Parathyroide, du Tractus Thyréoglosse, endocrinologie","G158","Chirurgie de la thyroide","D19C22","D19C22G158"]
["10C12","Interventions sur la thyroïde pour affections non malignes","D19","Endocrinologie","C22","Chirurgie de la Thyroide, Parathyroide, du Tractus Thyréoglosse, endocrinologie","G158","Chirurgie de la thyroide","D19C22","D19C22G158"]
["10C13","Interventions digestives autres que les gastroplasties, pour obésité","D01","Digestif","C07","Chir. Viscérale autre : rate, grêle, colon, proctologie, hernies","G008","Autres chirurgies digestives","D01C07","D01C07G008"]
["10M02","Diabète, âge supérieur à 35 ans","D19","Endocrinologie","X15","Diabète, Maladies métaboliques, Endocrinologie (hors complications)","G159","Diabète","D19X15","D19X15G159"]
["10M03","Diabète, âge inférieur à 36 ans","D19","Endocrinologie","X15","Diabète, Maladies métaboliques, Endocrinologie (hors complications)","G159","Diabète","D19X15","D19X15G159"]
["10M07","Autres troubles endocriniens","D19","Endocrinologie","X15","Diabète, Maladies métaboliques, Endocrinologie (hors complications)","G160","Maladies endocriniennes hors diabète","D19X15","D19X15G160"]
["10M08","Acidocétose et coma diabétique","D19","Endocrinologie","X15","Diabète, Maladies métaboliques, Endocrinologie (hors complications)","G159","Diabète","D19X15","D19X15G159"]
["10M09","Obésité","D19","Endocrinologie","X15","Diabète, Maladies métaboliques, Endocrinologie (hors complications)","G161","Troubles métaboliques, nutritionnels et obésité","D19X15","D19X15G161"]
["10M10","Maladies métaboliques congénitales sévères","D19","Endocrinologie","X15","Diabète, Maladies métaboliques, Endocrinologie (hors complications)","G161","Troubles métaboliques, nutritionnels et obésité","D19X15","D19X15G161"]
["10M11","Autres maladies métaboliques congénitales","D19","Endocrinologie","X15","Diabète, Maladies métaboliques, Endocrinologie (hors complications)","G161","Troubles métaboliques, nutritionnels et obésité","D19X15","D19X15G161"]
["10M12","Tumeurs des glandes endocrines","D19","Endocrinologie","X15","Diabète, Maladies métaboliques, Endocrinologie (hors complications)","G160","Maladies endocriniennes hors diabète","D19X15","D19X15G160"]
["10M13","Explorations et surveillance pour affections endocriniennes et métaboliques","D19","Endocrinologie","X15","Diabète, Maladies métaboliques, Endocrinologie (hors complications)","G162","Explorations et surveillance pour affections endocriniennes, troubles métaboliques, nutritionnels et obésité","D19X15","D19X15G162"]
["10M14","Symptômes et autres recours aux soins de la CMD 10","D19","Endocrinologie","X15","Diabète, Maladies métaboliques, Endocrinologie (hors complications)","G160","Maladies endocriniennes hors diabète","D19X15","D19X15G160"]
["10M15","Troubles métaboliques, âge inférieur à 18 ans","D19","Endocrinologie","X15","Diabète, Maladies métaboliques, Endocrinologie (hors complications)","G161","Troubles métaboliques, nutritionnels et obésité","D19X15","D19X15G161"]
["10M16","Troubles métaboliques, âge supérieur à 17 ans","D19","Endocrinologie","X15","Diabète, Maladies métaboliques, Endocrinologie (hors complications)","G161","Troubles métaboliques, nutritionnels et obésité","D19X15","D19X15G161"]
["10M17","Troubles nutritionnels divers, âge inférieur à 18 ans","D19","Endocrinologie","X15","Diabète, Maladies métaboliques, Endocrinologie (hors complications)","G161","Troubles métaboliques, nutritionnels et obésité","D19X15","D19X15G161"]
["10M18","Troubles nutritionnels divers, âge supérieur à 17 ans","D19","Endocrinologie","X15","Diabète, Maladies métaboliques, Endocrinologie (hors complications)","G161","Troubles métaboliques, nutritionnels et obésité","D19X15","D19X15G161"]
["10M19","Autres affections de la CMD 10 concernant majoritairement la petite enfance","D19","Endocrinologie","X15","Diabète, Maladies métaboliques, Endocrinologie (hors complications)","G212","Affections endocriniennes et problèmes alimentaires du nouveau né et du nourisson","D19X15","D19X15G212"]
["10M20","Problèmes alimentaires du nouveau-né et du nourrisson","D19","Endocrinologie","X15","Diabète, Maladies métaboliques, Endocrinologie (hors complications)","G212","Affections endocriniennes et problèmes alimentaires du nouveau né et du nourisson","D19X15","D19X15G212"]
["11C02","Interventions sur les reins et les uretères et chirurgie majeure de la vessie pour une affection tumorale","D15","Uro-néphrologie et génital ","C19","Chirurgie Urologique","G126","Chirurgies reins, uretères, vessie, glandes surrénales","D15C19","D15C19G126"]
["11C03","Interventions sur les reins et les uretères et chirurgie majeure de la vessie pour une affection non tumorale","D15","Uro-néphrologie et génital ","C19","Chirurgie Urologique","G126","Chirurgies reins, uretères, vessie, glandes surrénales","D15C19","D15C19G126"]
["11C04","Autres interventions sur la vessie à l'exception des interventions transurétrales","D15","Uro-néphrologie et génital ","C19","Chirurgie Urologique","G126","Chirurgies reins, uretères, vessie, glandes surrénales","D15C19","D15C19G126"]
["11C05","Interventions transurétrales ou par voie transcutanée","D15","Uro-néphrologie et génital ","C19","Chirurgie Urologique","G127","Chirurgies transurétrales, autres","D15C19","D15C19G127"]
["11C06","Interventions sur l'urètre, âge inférieur à 18 ans","D15","Uro-néphrologie et génital ","C19","Chirurgie Urologique","G127","Chirurgies transurétrales, autres","D15C19","D15C19G127"]
["11C07","Interventions sur l'urètre, âge supérieur à 17 ans","D15","Uro-néphrologie et génital ","C19","Chirurgie Urologique","G127","Chirurgies transurétrales, autres",{"$f":"CONCATENATE(C389,E389)","v":"D15C19"},{"$f":"CONCATENATE(I389,G389)","v":"D15C19G127"}]
["11C08","Autres interventions sur les reins et les voies urinaires","D15","Uro-néphrologie et génital ","C19","Chirurgie Urologique","G126","Chirurgies reins, uretères, vessie, glandes surrénales","D15C19","D15C19G126"]
["11C09","Créations et réfections de fistules artérioveineuses pour affections de la CMD 11","D07","Cardio-vasculaire (hors cathétérismes vasculaires diagnostiques et interventionnels)","C14","Chirurgie vasculaire","G074","Autres chirurgies vasculaires","D07C14","D07C14G074"]
["11K02","Insuffisance rénale, avec dialyse","D15","Uro-néphrologie et génital ","K13","Dialyse (hors Séances)","G202","'Insuffisance rénale, avec dialyse","D15K13","D15K13G202"]
["11K03","Endoscopies génito-urinaires thérapeutiques et anesthésie : séjours de la CMD 11 et de moins de 2 jours","D15","Uro-néphrologie et génital ","K10","Aff. génito-urinaires avec Acte classant non opératoire et endoscopies","G140","Endoscopies génito-urinaires, avec ou sans anesthésie","D15K10","D15K10G140"]
["11K04","Séjours de la CMD 11 comprenant une endoscopie génito-urinaire thérapeutique sans anesthésie : séjours de moins de 2 jours","D15","Uro-néphrologie et génital ","K10","Aff. génito-urinaires avec Acte classant non opératoire et endoscopies","G140","Endoscopies génito-urinaires, avec ou sans anesthésie","D15K10","D15K10G140"]
["11K05","Endoscopies génito-urinaires diagnostiques et anesthésie : séjours de la CMD 11 et de moins de 2 jours","D15","Uro-néphrologie et génital ","K10","Aff. génito-urinaires avec Acte classant non opératoire et endoscopies","G140","Endoscopies génito-urinaires, avec ou sans anesthésie","D15K10","D15K10G140"]
["11K06","Séjours de la CMD 11 comprenant une endoscopie génito-urinaire diagnostique sans anesthésie : séjours de moins de 2 jours","D15","Uro-néphrologie et génital ","K10","Aff. génito-urinaires avec Acte classant non opératoire et endoscopies","G140","Endoscopies génito-urinaires, avec ou sans anesthésie","D15K10","D15K10G140"]
["11K07","Séjours de la CMD 11 comprenant la mise en place de certains accès vasculaires, en ambulatoire","D07","Cardio-vasculaire (hors cathétérismes vasculaires diagnostiques et interventionnels)","K06","Mise en place d'accès vasculaire","G199","Mise en place d'accès vasculaire","D07K06","D07K06G199"]
["11K08","Lithotritie extracorporelle de l'appareil urinaire, en ambulatoire","D15","Uro-néphrologie et génital ","K10","Aff. génito-urinaires avec Acte classant non opératoire et endoscopies","G208","Lithotritie extracorporelle de l'appareil urinaire, en ambulatoire","D15K10","D15K10G208"]
["11M02","Lithiases urinaires","D15","Uro-néphrologie et génital ","X12","Uro-Néphrologie médicale (hors Séances)","G133","Infections reins et voies urinaires, lithiases","D15X12","D15X12G133"]
["11M03","Infections des reins et des voies urinaires, âge inférieur à 18 ans","D15","Uro-néphrologie et génital ","X12","Uro-Néphrologie médicale (hors Séances)","G133","Infections reins et voies urinaires, lithiases","D15X12","D15X12G133"]
["11M04","Infections des reins et des voies urinaires, âge supérieur à 17 ans","D15","Uro-néphrologie et génital ","X12","Uro-Néphrologie médicale (hors Séances)","G133","Infections reins et voies urinaires, lithiases","D15X12","D15X12G133"]
["11M06","Insuffisance rénale, sans dialyse","D15","Uro-néphrologie et génital ","X12","Uro-Néphrologie médicale (hors Séances)","G134","Autres affections reins, voies urinaires","D15X12","D15X12G134"]
["11M07","Tumeurs des reins et des voies urinaires","D15","Uro-néphrologie et génital ","X12","Uro-Néphrologie médicale (hors Séances)","G132","Prise en charge médicale des tumeurs reins et voies urinaires","D15X12","D15X12G132"]
["11M08","Autres affections des reins et des voies urinaires, âge inférieur à 18 ans","D15","Uro-néphrologie et génital ","X12","Uro-Néphrologie médicale (hors Séances)","G134","Autres affections reins, voies urinaires","D15X12","D15X12G134"]
["11M10","Rétrécissement urétral","D15","Uro-néphrologie et génital ","X12","Uro-Néphrologie médicale (hors Séances)","G134","Autres affections reins, voies urinaires","D15X12","D15X12G134"]
["11M11","Signes et symptômes concernant les reins et les voies urinaires, âge inférieur à 18 ans","D15","Uro-néphrologie et génital ","X12","Uro-Néphrologie médicale (hors Séances)","G134","Autres affections reins, voies urinaires","D15X12","D15X12G134"]
["11M12","Signes et symptômes concernant les reins et les voies urinaires, âge supérieur à 17 ans","D15","Uro-néphrologie et génital ","X12","Uro-Néphrologie médicale (hors Séances)","G134","Autres affections reins, voies urinaires","D15X12","D15X12G134"]
["11M15","Autres affections des reins et des voies urinaires d'origine diabétique, âge supérieur à 17 ans","D15","Uro-néphrologie et génital ","X12","Uro-Néphrologie médicale (hors Séances)","G134","Autres affections reins, voies urinaires","D15X12","D15X12G134"]
["11M16","Autres affections des reins et des voies urinaires, à l'exception de celles d'origine diabétique, âge supérieur à 17 ans","D15","Uro-néphrologie et génital ","X12","Uro-Néphrologie médicale (hors Séances)","G134","Autres affections reins, voies urinaires","D15X12","D15X12G134"]
["11M17","Surveillances de greffes de rein","D15","Uro-néphrologie et génital ","X12","Uro-Néphrologie médicale (hors Séances)","G135","Explorations et surveillance pour affections du rein et des voies urinaires","D15X12","D15X12G135"]
["11M18","Explorations et surveillance pour affections du rein et des voies urinaires","D15","Uro-néphrologie et génital ","X12","Uro-Néphrologie médicale (hors Séances)","G135","Explorations et surveillance pour affections du rein et des voies urinaires","D15X12","D15X12G135"]
["11M19","Autres symptômes et recours aux soins de la CMD 11","D15","Uro-néphrologie et génital ","X12","Uro-Néphrologie médicale (hors Séances)","G134","Autres affections reins, voies urinaires","D15X12","D15X12G134"]
["11M20","Autres affections uronéphrologiques concernant majoritairement la petite enfance","D15","Uro-néphrologie et génital ","X12","Uro-Néphrologie médicale (hors Séances)","G134","Autres affections reins, voies urinaires","D15X12","D15X12G134"]
["12C03","Interventions sur le pénis","D15","Uro-néphrologie et génital ","C20","Chirurgie de l'appareil génital masculin","G128","Chirurgies appareil génital masculin","D15C20","D15C20G128"]
["12C04","Prostatectomies transurétrales","D15","Uro-néphrologie et génital ","C20","Chirurgie de l'appareil génital masculin","G128","Chirurgies appareil génital masculin","D15C20","D15C20G128"]
["12C05","Interventions sur les testicules pour tumeurs malignes","D15","Uro-néphrologie et génital ","C20","Chirurgie de l'appareil génital masculin","G131","Chirurgie des tumeurs appareil génital masculin","D15C20","D15C20G131"]
["12C06","Interventions sur les testicules pour affections non malignes, âge inférieur à 18 ans","D15","Uro-néphrologie et génital ","C20","Chirurgie de l'appareil génital masculin","G128","Chirurgies appareil génital masculin","D15C20","D15C20G128"]
["12C07","Interventions sur les testicules pour affections non malignes, âge supérieur à 17 ans","D15","Uro-néphrologie et génital ","C20","Chirurgie de l'appareil génital masculin","G128","Chirurgies appareil génital masculin","D15C20","D15C20G128"]
["12C08","Circoncision","D15","Uro-néphrologie et génital ","C20","Chirurgie de l'appareil génital masculin","G129","Circoncisions","D15C20","D15C20G129"]
["12C09","Autres interventions pour tumeurs malignes de l'appareil génital masculin","D15","Uro-néphrologie et génital ","C20","Chirurgie de l'appareil génital masculin","G131","Chirurgie des tumeurs appareil génital masculin","D15C20","D15C20G131"]
["12C10","Autres interventions pour affections non malignes de l'appareil génital masculin","D15","Uro-néphrologie et génital ","C20","Chirurgie de l'appareil génital masculin","G128","Chirurgies appareil génital masculin","D15C20","D15C20G128"]
["12C11","Interventions pelviennes majeures chez l'homme pour tumeurs malignes","D15","Uro-néphrologie et génital ","C20","Chirurgie de l'appareil génital masculin","G130","Chirurgies pelviennes majeures (urologie)","D15C20","D15C20G130"]
["12C12","Interventions pelviennes majeures chez l'homme pour affections non malignes","D15","Uro-néphrologie et génital ","C20","Chirurgie de l'appareil génital masculin","G130","Chirurgies pelviennes majeures (urologie)","D15C20","D15C20G130"]
["12C13","Stérilisation et vasoplastie","D15","Uro-néphrologie et génital ","C20","Chirurgie de l'appareil génital masculin","G128","Chirurgies appareil génital masculin","D15C20","D15C20G128"]
["12K02","Endoscopies génito-urinaires et anesthésie : séjours de la CMD 12 et de moins de deux jours","D15","Uro-néphrologie et génital ","K10","Aff. génito-urinaires avec Acte classant non opératoire et endoscopies","G140","Endoscopies génito-urinaires, avec ou sans anesthésie","D15K10","D15K10G140"]
["12K03","Séjours de la CMD 12 comprenant une endoscopie génito-urinaire sans anesthésie : séjours de moins de deux jours","D15","Uro-néphrologie et génital ","K10","Aff. génito-urinaires avec Acte classant non opératoire et endoscopies","G140","Endoscopies génito-urinaires, avec ou sans anesthésie","D15K10","D15K10G140"]
["12K06","Séjours comprenant une biopsie prostatique, en ambulatoire","D15","Uro-néphrologie et génital ","K10","Aff. génito-urinaires avec Acte classant non opératoire et endoscopies","G209","Séjours comprenant une biopsie prostatique, en ambulatoire","D15K10","D15K10G209"]
["12M03","Tumeurs malignes de l'appareil génital masculin","D15","Uro-néphrologie et génital ","X13","Appareil génital masculin","G137","Prise en charge médicale des tumeurs de l'appareil génital masculin","D15X13","D15X13G137"]
["12M04","Hypertrophie prostatique bénigne","D15","Uro-néphrologie et génital ","X13","Appareil génital masculin","G138","Autres affections appareil génital masculin","D15X13","D15X13G138"]
["12M05","Autres affections de l'appareil génital masculin","D15","Uro-néphrologie et génital ","X13","Appareil génital masculin","G138","Autres affections appareil génital masculin","D15X13","D15X13G138"]
["12M06","Prostatites aigües et orchites","D15","Uro-néphrologie et génital ","X13","Appareil génital masculin","G136","Infections appareil génital masculin","D15X13","D15X13G136"]
["12M07","Autres infections et inflammations de l'appareil génital masculin","D15","Uro-néphrologie et génital ","X13","Appareil génital masculin","G136","Infections appareil génital masculin","D15X13","D15X13G136"]
["12M08","Explorations et surveillance des affections de l'appareil génital masculin","D15","Uro-néphrologie et génital ","X13","Appareil génital masculin","G139","Explorations et surveillance des affections de l'appareil génital masculin","D15X13","D15X13G139"]
["12M09","Symptômes et autres recours aux soins de la CMD 12","D15","Uro-néphrologie et génital ","X13","Appareil génital masculin","G138","Autres affections appareil génital masculin","D15X13","D15X13G138"]
["13C03","Hystérectomies","D12","Gynécologie - sein","C17","Chirurgie Gynécologique","G105","Chirurgies utérus / annexes","D12C17","D12C17G105"]
["13C04","Interventions réparatrices sur l'appareil génital féminin","D12","Gynécologie - sein","C17","Chirurgie Gynécologique","G106","Autres chirurgies gynécologiques autres que le sein","D12C17","D12C17G106"]
["13C05","Interventions sur le système utéroannexiel pour tumeurs malignes","D12","Gynécologie - sein","C17","Chirurgie Gynécologique","G103","Chirurgie pour tumeurs malignes (app génital fem)","D12C17","D12C17G103"]
["13C06","Interruptions tubaires","D12","Gynécologie - sein","C17","Chirurgie Gynécologique","G105","Chirurgies utérus / annexes","D12C17","D12C17G105"]
["13C07","Interventions sur le système utéroannexiel pour des affections non malignes, autres que les interruptions tubaires","D12","Gynécologie - sein","C17","Chirurgie Gynécologique","G105","Chirurgies utérus / annexes","D12C17","D12C17G105"]
["13C08","Interventions sur la vulve, le vagin ou le col utérin","D12","Gynécologie - sein","C17","Chirurgie Gynécologique","G106","Autres chirurgies gynécologiques autres que le sein","D12C17","D12C17G106"]
["13C09","Laparoscopies ou coelioscopies diagnostiques","D12","Gynécologie - sein","C17","Chirurgie Gynécologique","G105","Chirurgies utérus / annexes","D12C17","D12C17G105"]
["13C10","Ligatures tubaires par laparoscopie ou coelioscopie","D12","Gynécologie - sein","C17","Chirurgie Gynécologique","G105","Chirurgies utérus / annexes","D12C17","D12C17G105"]
["13C11","Dilatations et curetages, conisations pour tumeurs malignes","D12","Gynécologie - sein","C17","Chirurgie Gynécologique","G103","Chirurgie pour tumeurs malignes (app génital fem)","D12C17","D12C17G103"]
["13C12","Dilatations et curetages, conisations pour affections non malignes","D12","Gynécologie - sein","C17","Chirurgie Gynécologique","G105","Chirurgies utérus / annexes","D12C17","D12C17G105"]
["13C13","Autres interventions sur l'appareil génital féminin","D12","Gynécologie - sein","C17","Chirurgie Gynécologique","G106","Autres chirurgies gynécologiques autres que le sein","D12C17","D12C17G106"]
["13C14","Exentérations pelviennes, hystérectomies élargies ou vulvectomies pour tumeurs malignes","D12","Gynécologie - sein","C17","Chirurgie Gynécologique","G103","Chirurgie pour tumeurs malignes (app génital fem)","D12C17","D12C17G103"]
["13C15","Exentérations pelviennes, hystérectomies élargies ou vulvectomies pour affections non malignes","D12","Gynécologie - sein","C17","Chirurgie Gynécologique","G104","Chirurgies pelviennes majeures (app gen feminin)","D12C17","D12C17G104"]
["13C16","Prélèvements d'ovocytes, en ambulatoire","D12","Gynécologie - sein","C17","Chirurgie Gynécologique","G106","Autres chirurgies gynécologiques autres que le sein","D12C17","D12C17G106"]
["13C17","Cervicocystopexie","D12","Gynécologie - sein","C17","Chirurgie Gynécologique","G106","Autres chirurgies gynécologiques autres que le sein","D12C17","D12C17G106"]
["13K02","Endoscopies génito-urinaires thérapeutiques et anesthésie : séjours de la CMD 13 et de moins de 2 jours","D15","Uro-néphrologie et génital ","K10","Aff. génito-urinaires avec Acte classant non opératoire et endoscopies","G140","Endoscopies génito-urinaires, avec ou sans anesthésie","D15K10","D15K10G140"]
["13K03","Séjours de la CMD 13 comprenant une endoscopie génito-urinaire thérapeutique sans anesthésie : séjours de moins de 2 jours","D15","Uro-néphrologie et génital ","K10","Aff. génito-urinaires avec Acte classant non opératoire et endoscopies","G140","Endoscopies génito-urinaires, avec ou sans anesthésie","D15K10","D15K10G140"]
["13K04","Endoscopies génito-urinaires diagnostiques et anesthésie : séjours de la CMD 13 et de moins de 2 jours","D15","Uro-néphrologie et génital ","K10","Aff. génito-urinaires avec Acte classant non opératoire et endoscopies","G140","Endoscopies génito-urinaires, avec ou sans anesthésie","D15K10","D15K10G140"]
["13K05","Endoscopies génito-urinaires diagnostiques sans anesthésie : séjours de la CMD 13 et de moins de 2 jours","D15","Uro-néphrologie et génital ","K10","Aff. génito-urinaires avec Acte classant non opératoire et endoscopies","G140","Endoscopies génito-urinaires, avec ou sans anesthésie",{"$f":"CONCATENATE(C453,E453)","v":"D15K10"},{"$f":"CONCATENATE(I453,G453)","v":"D15K10G140"}]
["13K06","Affections de l'appareil génital féminin sans acte opératoire de la CMD 13, avec anesthésie, en ambulatoire","D15","Uro-néphrologie et génital ","K10","Aff. génito-urinaires avec Acte classant non opératoire et endoscopies","G201","Affections de l'appareil génital féminin sans acte opératoire de la CMD 13, avec anesthésie, en ambulatoire","D15K10","D15K10G201"]
["13M03","Tumeurs malignes de l'appareil génital féminin","D12","Gynécologie - sein","X11","Gynécologie, Sénologie (hors Obstétrique)","G109","Prise en charge médicale des tumeurs de l'appareil génital féminin","D12X11","D12X11G109"]
["13M04","Autres affections de l'appareil génital féminin","D12","Gynécologie - sein","X11","Gynécologie, Sénologie (hors Obstétrique)","G110","Autres affections appareil génital féminin","D12X11","D12X11G110"]
["13M05","Infections de l'utérus et de ses annexes","D12","Gynécologie - sein","X11","Gynécologie, Sénologie (hors Obstétrique)","G112","Infections gynécologiques d'organes autres que le sein","D12X11","D12X11G112"]
["13M06","Autres infections de l'appareil génital féminin","D12","Gynécologie - sein","X11","Gynécologie, Sénologie (hors Obstétrique)","G112","Infections gynécologiques d'organes autres que le sein","D12X11","D12X11G112"]
["13M07","Autres tumeurs de l'appareil génital féminin","D12","Gynécologie - sein","X11","Gynécologie, Sénologie (hors Obstétrique)","G109","Prise en charge médicale des tumeurs de l'appareil génital féminin","D12X11","D12X11G109"]
["13M08","Assistance médicale à la procréation","D12","Gynécologie - sein","X11","Gynécologie, Sénologie (hors Obstétrique)","G111","AMP","D12X11","D12X11G111"]
["13M09","Explorations et surveillance gynécologiques","D12","Gynécologie - sein","X11","Gynécologie, Sénologie (hors Obstétrique)","G115","Explorations et surveillance gynécologiques et des affections des seins","D12X11","D12X11G115"]
["13M10","Autres symptômes et recours aux soins de la CMD 13","D12","Gynécologie - sein","X11","Gynécologie, Sénologie (hors Obstétrique)","G110","Autres affections appareil génital féminin","D12X11","D12X11G110"]
["14C03","Accouchements uniques par voie basse avec autres interventions","D13","Obstétrique","O01"," Accouchements par voie basse","G116","Accouchements par voie basse","D13O01","D13O01G116"]
["14C04","Affections du post-partum ou du post abortum avec intervention chirurgicale","D13","Obstétrique","O04","Obstétrique autre","G120","Affections du post partum","D13O04","D13O04G120"]
["14C05","Avortements avec aspiration ou curetage ou hystérotomie","D13","Obstétrique","O04","Obstétrique autre","G121","Interruptions médicale de grossesse","D13O04","D13O04G121"]
["14C06","Césariennes avec naissance d'un mort-né","D13","Obstétrique","O02","Césariennes","G117","Césariennes","D13O02","D13O02G117"]
["14C07","Césariennes pour grossesse multiple","D13","Obstétrique","O02","Césariennes","G117","Césariennes","D13O02","D13O02G117"]
["14C08","Césariennes pour grossesse unique","D13","Obstétrique","O02","Césariennes","G117","Césariennes","D13O02","D13O02G117"]
["14C09","Grossesses ectopiques avec intervention chirurgicale","D13","Obstétrique","O04","Obstétrique autre","G119","Affections de ante partum","D13O04","D13O04G119"]
["14C10","Affections de l'ante partum avec intervention chirurgicale","D13","Obstétrique","O04","Obstétrique autre","G119","Affections de ante partum","D13O04","D13O04G119"]
["14M02","Affections médicales du post-partum ou du post-abortum","D13","Obstétrique","O04","Obstétrique autre","G120","Affections du post partum","D13O04","D13O04G120"]
["14M03","Affections de l'ante partum sans intervention chirurgicale","D13","Obstétrique","O04","Obstétrique autre","G119","Affections de ante partum","D13O04","D13O04G119"]
["14Z04","Avortements sans aspiration, ni curetage, ni hystérotomie","D13","Obstétrique","O04","Obstétrique autre","G121","Interruptions médicale de grossesse","D13O04","D13O04G121"]
["14Z06","Menaces d'avortement","D13","Obstétrique","O04","Obstétrique autre","G119","Affections de ante partum","D13O04","D13O04G119"]
["14Z08","Interruptions volontaires de grossesse : séjours de moins de 3 jours","D13","Obstétrique","O03","IVG","G118","IVG","D13O03","D13O03G118"]
["14Z09","Accouchements hors de l'établissement","D13","Obstétrique","O01"," Accouchements par voie basse","G116","Accouchements par voie basse","D13O01","D13O01G116"]
["14Z10","Accouchements par voie basse avec naissance d'un mort-né","D13","Obstétrique","O01"," Accouchements par voie basse","G116","Accouchements par voie basse","D13O01","D13O01G116"]
["14Z11","Accouchements multiples par voie basse chez une primipare","D13","Obstétrique","O01"," Accouchements par voie basse","G116","Accouchements par voie basse","D13O01","D13O01G116"]
["14Z12","Accouchements multiples par voie basse chez une multipare","D13","Obstétrique","O01"," Accouchements par voie basse","G116","Accouchements par voie basse","D13O01","D13O01G116"]
["14Z13","Accouchements uniques par voie basse chez une primipare","D13","Obstétrique","O01"," Accouchements par voie basse","G116","Accouchements par voie basse","D13O01","D13O01G116"]
["14Z14","Accouchements uniques par voie basse chez une multipare","D13","Obstétrique","O01"," Accouchements par voie basse","G116","Accouchements par voie basse","D13O01","D13O01G116"]
["14Z15","Grossesses ectopiques sans intervention chirurgicale","D13","Obstétrique","O04","Obstétrique autre","G119","Affections de ante partum","D13O04","D13O04G119"]
["14Z16","Faux travail et menaces d'accouchements prématurés","D13","Obstétrique","O04","Obstétrique autre","G119","Affections de ante partum","D13O04","D13O04G119"]
["15C02","Interventions majeures sur l'appareil digestif, groupes nouveau-nés 1 à 7","D14","Nouveau-nés et période périnatale","N01","Chirurgie des nouveau-nés, prématurés et de la période périnatale","G122","Chirurgie du nouveau né","D14N01","D14N01G122"]
["15C03","Interventions majeures sur l'appareil cardiovasculaire, groupes nouveau-nés 1 à 7","D14","Nouveau-nés et période périnatale","N01","Chirurgie des nouveau-nés, prématurés et de la période périnatale","G122","Chirurgie du nouveau né","D14N01","D14N01G122"]
["15C04","Autres interventions chirurgicales, groupes nouveau-nés 1 à 7","D14","Nouveau-nés et période périnatale","N01","Chirurgie des nouveau-nés, prématurés et de la période périnatale","G122","Chirurgie du nouveau né","D14N01","D14N01G122"]
["15C05","Interventions chirurgicales, groupes nouveau-nés 8 à 9","D14","Nouveau-nés et période périnatale","N01","Chirurgie des nouveau-nés, prématurés et de la période périnatale","G122","Chirurgie du nouveau né","D14N01","D14N01G122"]
["15C06","Interventions chirurgicales, groupe nouveau-nés 10","D14","Nouveau-nés et période périnatale","N01","Chirurgie des nouveau-nés, prématurés et de la période périnatale","G122","Chirurgie du nouveau né","D14N01","D14N01G122"]
["15M02","Transferts précoces de nouveau-nés vers un autre établissement MCO","D14","Nouveau-nés et période périnatale","N03","Mort-nés, décès et transferts précoces de nouveau-nés","G123","Transferts précoces de nouveau nés","D14N03","D14N03G123"]
["15M03","Décès précoces de nouveau-nés","D14","Nouveau-nés et période périnatale","N03","Mort-nés, décès et transferts précoces de nouveau-nés","G125","Décès de nouveau nés","D14N03","D14N03G125"]
["15M04","Décès tardifs de nouveau-nés","D14","Nouveau-nés et période périnatale","N03","Mort-nés, décès et transferts précoces de nouveau-nés","G125","Décès de nouveau nés","D14N03","D14N03G125"]
["15M05","Nouveau-nés de 3300g et âge gestationnel de 40 SA et assimilés (groupe nouveau-nés 1)","D14","Nouveau-nés et période périnatale","N02","Aff. médicales des nouveau-nés, prématurés et de la période périnatale","G124","affections médicales du nouveau né","D14N02","D14N02G124"]
["15M06","Nouveau-nés de 2400g et âge gestationnel de 38 SA et assimilés (groupe nouveau-nés 2)","D14","Nouveau-nés et période périnatale","N02","Aff. médicales des nouveau-nés, prématurés et de la période périnatale","G124","affections médicales du nouveau né","D14N02","D14N02G124"]
["15M07","Nouveau-nés de 2200g et âge gestationnel de 37 SA et assimilés (groupe nouveau-nés 3)","D14","Nouveau-nés et période périnatale","N02","Aff. médicales des nouveau-nés, prématurés et de la période périnatale","G124","affections médicales du nouveau né","D14N02","D14N02G124"]
["15M08","Nouveau-nés de 2000g et âge gestationnel de 37 SA et assimilés (groupe nouveau-nés 4)","D14","Nouveau-nés et période périnatale","N02","Aff. médicales des nouveau-nés, prématurés et de la période périnatale","G124","affections médicales du nouveau né","D14N02","D14N02G124"]
["15M09","Nouveau-nés de 1800g et âge gestationnel de 36 SA et assimilés (groupe nouveau-nés 5)","D14","Nouveau-nés et période périnatale","N02","Aff. médicales des nouveau-nés, prématurés et de la période périnatale","G124","affections médicales du nouveau né","D14N02","D14N02G124"]
["15M10","Nouveau-nés de 1700g et âge gestationnel de 35 SA et assimilés (groupe nouveau-nés 6)","D14","Nouveau-nés et période périnatale","N02","Aff. médicales des nouveau-nés, prématurés et de la période périnatale","G124","affections médicales du nouveau né","D14N02","D14N02G124"]
["15M11","Nouveau-nés de 1500g et âge gestationnel de 33 SA et assimilés (groupe nouveau-nés 7)","D14","Nouveau-nés et période périnatale","N02","Aff. médicales des nouveau-nés, prématurés et de la période périnatale","G124","affections médicales du nouveau né","D14N02","D14N02G124"]
["15M12","Nouveau-nés de 1300g et âge gestationnel de 32 SA et assimilés (groupe nouveau-nés 8)","D14","Nouveau-nés et période périnatale","N02","Aff. médicales des nouveau-nés, prématurés et de la période périnatale","G124","affections médicales du nouveau né","D14N02","D14N02G124"]
["15M13","Nouveau-nés de 1100g et âge gestationnel de 30 SA et assimilés (groupe nouveau-nés 9)","D14","Nouveau-nés et période périnatale","N02","Aff. médicales des nouveau-nés, prématurés et de la période périnatale","G124","affections médicales du nouveau né","D14N02","D14N02G124"]
["15M14","Nouveau-nés de 800g et âge gestationnel de 28 SA et assimilés (groupe nouveau-nés 10)","D14","Nouveau-nés et période périnatale","N02","Aff. médicales des nouveau-nés, prématurés et de la période périnatale","G124","affections médicales du nouveau né","D14N02","D14N02G124"]
["15Z10","Mort-nés","D14","Nouveau-nés et période périnatale","N03","Mort-nés, décès et transferts précoces de nouveau-nés","G195","Mort-nés","D14N03","D14N03G195"]
["16C02","Interventions sur la rate","D01","Digestif","C07","Chir. Viscérale autre : rate, grêle, colon, proctologie, hernies","G008","Autres chirurgies digestives","D01C07","D01C07G008"]
["16C03","Autres interventions pour affections du sang et des organes hématopoïétiques","D16","Hématologie","C21","Chir. pour Aff. des Org. Hématopoiétiques, Lymphomes, Leucémies, Tumeurs SID","G141","Chirurgie au cours des tumeurs malignes (hématologie)","D16C21","D16C21G141"]
["16M06","Affections de la rate","D16","Hématologie","X14","Maladies immunitaires, du Sang, des Organes hématopoïétiques, Tumeurs SID","G145","Autres Maladies immunitaires, du Sang, des Organes hématopoïétiques, Tumeurs siège imprécis ou diffus","D16X14","D16X14G145"]
["16M07","Donneurs de moelle","D16","Hématologie","X14","Maladies immunitaires, du Sang, des Organes hématopoïétiques, Tumeurs SID","G143","Donneurs de moëlle","D16X14","D16X14G143"]
["16M08","Déficits immunitaires","D16","Hématologie","X14","Maladies immunitaires, du Sang, des Organes hématopoïétiques, Tumeurs SID","G145","Autres Maladies immunitaires, du Sang, des Organes hématopoïétiques, Tumeurs siège imprécis ou diffus","D16X14","D16X14G145"]
["16M09","Autres affections du système réticuloendothélial ou immunitaire","D16","Hématologie","X14","Maladies immunitaires, du Sang, des Organes hématopoïétiques, Tumeurs SID","G145","Autres Maladies immunitaires, du Sang, des Organes hématopoïétiques, Tumeurs siège imprécis ou diffus","D16X14","D16X14G145"]
["16M10","Troubles sévères de la lignée érythrocytaire, âge supérieur à 17 ans","D16","Hématologie","X14","Maladies immunitaires, du Sang, des Organes hématopoïétiques, Tumeurs SID","G145","Autres Maladies immunitaires, du Sang, des Organes hématopoïétiques, Tumeurs siège imprécis ou diffus","D16X14","D16X14G145"]
["16M11","Autres troubles de la lignée érythrocytaire, âge supérieur à 17 ans","D16","Hématologie","X14","Maladies immunitaires, du Sang, des Organes hématopoïétiques, Tumeurs SID","G145","Autres Maladies immunitaires, du Sang, des Organes hématopoïétiques, Tumeurs siège imprécis ou diffus","D16X14","D16X14G145"]
["16M12","Purpuras","D16","Hématologie","X14","Maladies immunitaires, du Sang, des Organes hématopoïétiques, Tumeurs SID","G145","Autres Maladies immunitaires, du Sang, des Organes hématopoïétiques, Tumeurs siège imprécis ou diffus","D16X14","D16X14G145"]
["16M13","Autres troubles de la coagulation","D16","Hématologie","X14","Maladies immunitaires, du Sang, des Organes hématopoïétiques, Tumeurs SID","G145","Autres Maladies immunitaires, du Sang, des Organes hématopoïétiques, Tumeurs siège imprécis ou diffus","D16X14","D16X14G145"]
["16M14","Explorations et surveillance pour affections du sang et des organes hématopoïétiques","D16","Hématologie","X14","Maladies immunitaires, du Sang, des Organes hématopoïétiques, Tumeurs SID","G146","Explorations et surveillance pour affections du sang et des organes hématopoïétiques","D16X14","D16X14G146"]
["16M15","Symptômes et autres recours aux soins de la CMD 16","D16","Hématologie","X14","Maladies immunitaires, du Sang, des Organes hématopoïétiques, Tumeurs SID","G145","Autres Maladies immunitaires, du Sang, des Organes hématopoïétiques, Tumeurs siège imprécis ou diffus","D16X14","D16X14G145"]
["16M16","Troubles sévères de la lignée érythrocytaire, âge inférieur à 18 ans","D16","Hématologie","X14","Maladies immunitaires, du Sang, des Organes hématopoïétiques, Tumeurs SID","G145","Autres Maladies immunitaires, du Sang, des Organes hématopoïétiques, Tumeurs siège imprécis ou diffus","D16X14","D16X14G145"]
["16M17","Autres troubles de la lignée érythrocytaire, âge inférieur à 18 ans","D16","Hématologie","X14","Maladies immunitaires, du Sang, des Organes hématopoïétiques, Tumeurs SID","G145","Autres Maladies immunitaires, du Sang, des Organes hématopoïétiques, Tumeurs siège imprécis ou diffus","D16X14","D16X14G145"]
["16M18","Autres affections hématologiques concernant majoritairement la petite enfance","D16","Hématologie","X14","Maladies immunitaires, du Sang, des Organes hématopoïétiques, Tumeurs SID","G145","Autres Maladies immunitaires, du Sang, des Organes hématopoïétiques, Tumeurs siège imprécis ou diffus",{"$f":"CONCATENATE(C517,E517)","v":"D16X14"},{"$f":"CONCATENATE(I517,G517)","v":"D16X14G145"}]
["17C02","Interventions majeures au cours de lymphomes ou de leucémies","D16","Hématologie","C21","Chir. pour Aff. des Org. Hématopoiétiques, Lymphomes, Leucémies, Tumeurs SID","G141","Chirurgie au cours des tumeurs malignes (hématologie)","D16C21","D16C21G141"]
["17C03","Autres interventions au cours de lymphomes ou de leucémies","D16","Hématologie","C21","Chir. pour Aff. des Org. Hématopoiétiques, Lymphomes, Leucémies, Tumeurs SID","G141","Chirurgie au cours des tumeurs malignes (hématologie)","D16C21","D16C21G141"]
["17C04","Interventions majeures pour affections myéloprolifératives ou tumeurs de siège imprécis ou diffus","D16","Hématologie","C21","Chir. pour Aff. des Org. Hématopoiétiques, Lymphomes, Leucémies, Tumeurs SID","G141","Chirurgie au cours des tumeurs malignes (hématologie)","D16C21","D16C21G141"]
["17C05","Autres interventions au cours d'affections myéloprolifératives ou de tumeurs de siège imprécis ou diffus","D16","Hématologie","C21","Chir. pour Aff. des Org. Hématopoiétiques, Lymphomes, Leucémies, Tumeurs SID","G141","Chirurgie au cours des tumeurs malignes (hématologie)","D16C21","D16C21G141"]
["17K04","Autres irradiations","D17","Chimiothérapie, radiothérapie, hors séances","K14","Radiothérapie (hors séances)","G149","Radiothérapie hors séances","D17K14","D17K14G149"]
["17K05","Curiethérapies de la prostate","D17","Chimiothérapie, radiothérapie, hors séances","K14","Radiothérapie (hors séances)","G149","Radiothérapie hors séances","D17K14","D17K14G149"]
["17K06","Autres curiethérapies et irradiations internes","D17","Chimiothérapie, radiothérapie, hors séances","K14","Radiothérapie (hors séances)","G149","Radiothérapie hors séances","D17K14","D17K14G149"]
["17K07","Affections myéloprolifératives et tumeurs de siège imprécis sans acte opératoire, avec anesthésie, en ambulatoire","D26","Activités inter spécialités, suivi thérapeutique d'affections connues","K15","Autres séj. sans acte, avec anesthésie, en ambulatoire (Aff. myéloP., peau, sein...)","G203"," Autres séj. sans acte, avec anesthésie, en ambulatoire (Aff. myéloP., peau, sein..)","D26K15","D26K15G203"]
["17M05","Chimiothérapie pour leucémie aigüe","D17","Chimiothérapie, radiothérapie, hors séances","X23","Chimiothérapie (hors séances)","G148","Chimiothérapie hors séances","D17X23","D17X23G148"]
["17M06","Chimiothérapie pour autre tumeur","D17","Chimiothérapie, radiothérapie, hors séances","X23","Chimiothérapie (hors séances)","G148","Chimiothérapie hors séances","D17X23","D17X23G148"]
["17M07","Autres affections myéloprolifératives et tumeurs de siège imprécis ou diffus","D16","Hématologie","X14","Maladies immunitaires, du Sang, des Organes hématopoïétiques, Tumeurs SID","G145","Autres Maladies immunitaires, du Sang, des Organes hématopoïétiques, Tumeurs siège imprécis ou diffus","D16X14","D16X14G145"]
["17M08","Leucémies aigües, âge inférieur à 18 ans","D16","Hématologie","X14","Maladies immunitaires, du Sang, des Organes hématopoïétiques, Tumeurs SID","G144","Affections hématologiques malignes ","D16X14","D16X14G144"]
["17M09","Leucémies aigües, âge supérieur à 17 ans","D16","Hématologie","X14","Maladies immunitaires, du Sang, des Organes hématopoïétiques, Tumeurs SID","G144","Affections hématologiques malignes ","D16X14","D16X14G144"]
["17M11","Autres leucémies","D16","Hématologie","X14","Maladies immunitaires, du Sang, des Organes hématopoïétiques, Tumeurs SID","G144","Affections hématologiques malignes ","D16X14","D16X14G144"]
["17M12","Lymphomes et autres affections malignes hématopoiètiques","D16","Hématologie","X14","Maladies immunitaires, du Sang, des Organes hématopoïétiques, Tumeurs SID","G144","Affections hématologiques malignes ","D16X14","D16X14G144"]
["17M13","Polyglobulies","D16","Hématologie","X14","Maladies immunitaires, du Sang, des Organes hématopoïétiques, Tumeurs SID","G145","Autres Maladies immunitaires, du Sang, des Organes hématopoïétiques, Tumeurs siège imprécis ou diffus","D16X14","D16X14G145"]
["17M14","Explorations et surveillance pour affections myéloprolifératives et tumeurs de siège imprécis ou diffus","D16","Hématologie","X14","Maladies immunitaires, du Sang, des Organes hématopoïétiques, Tumeurs SID","G147","Explorations et surveillance pour affections myéloprolifératives et tumeurs de siège imprécis ou diffus","D16X14","D16X14G147"]
["18C02","Interventions pour maladies infectieuses ou parasitaires","D26","Activités inter spécialités, suivi thérapeutique d'affections connues","C25","Chirurgie inter spécialités","G179","Chirurgie inter spécialités","D26C25","D26C25G179"]
["18M02","Maladies virales et fièvres d'étiologie indéterminée, âge inférieur 18 ans","D18","Maladies infectieuses (dont VIH)","X19","Fièvre, Infection, Septicémie, VIH","G151","Maladies virales et fièvres d'origine inconnue","D18X19","D18X19G151"]
["18M03","Maladies virales, âge supérieur à 17 ans","D18","Maladies infectieuses (dont VIH)","X19","Fièvre, Infection, Septicémie, VIH","G151","Maladies virales et fièvres d'origine inconnue","D18X19","D18X19G151"]
["18M04","Fièvres d'étiologie indéterminée, âge supérieur à 17 ans","D18","Maladies infectieuses (dont VIH)","X19","Fièvre, Infection, Septicémie, VIH","G151","Maladies virales et fièvres d'origine inconnue","D18X19","D18X19G151"]
["18M06","Septicémies, âge inférieur à 18 ans","D18","Maladies infectieuses (dont VIH)","X19","Fièvre, Infection, Septicémie, VIH","G152","Septicémies","D18X19","D18X19G152"]
["18M07","Septicémies, âge supérieur à 17 ans","D18","Maladies infectieuses (dont VIH)","X19","Fièvre, Infection, Septicémie, VIH","G152","Septicémies","D18X19","D18X19G152"]
["18M09","Paludisme","D18","Maladies infectieuses (dont VIH)","X19","Fièvre, Infection, Septicémie, VIH","G153","Maladies infectieuses ou parasitaires hors septicémies et maladies virales","D18X19","D18X19G153"]
["18M10","Maladies infectieuses sévères","D18","Maladies infectieuses (dont VIH)","X19","Fièvre, Infection, Septicémie, VIH","G153","Maladies infectieuses ou parasitaires hors septicémies et maladies virales","D18X19","D18X19G153"]
["18M11","Autres maladies infectieuses ou parasitaires","D18","Maladies infectieuses (dont VIH)","X19","Fièvre, Infection, Septicémie, VIH","G153","Maladies infectieuses ou parasitaires hors septicémies et maladies virales","D18X19","D18X19G153"]
["18M12","Explorations et surveillance pour maladies infectieuses ou parasitaires","D18","Maladies infectieuses (dont VIH)","X19","Fièvre, Infection, Septicémie, VIH","G155","Explorations et surveillance pour maladies infectieuses ou parasitaires","D18X19","D18X19G155"]
["18M13","Affections de la CMD 18 avec décès : séjours de moins de 2 jours","D18","Maladies infectieuses (dont VIH)","X19","Fièvre, Infection, Septicémie, VIH","G154","Décès secondaire à une maladie infectieuse: séjours de moins de 2 jours","D18X19","D18X19G154"]
["18M14","Symptômes et autres recours aux soins de la CMD 18","D18","Maladies infectieuses (dont VIH)","X19","Fièvre, Infection, Septicémie, VIH","G153","Maladies infectieuses ou parasitaires hors septicémies et maladies virales","D18X19","D18X19G153"]
["18M15","Autres maladies infectieuses concernant majoritairement la petite enfance","D18","Maladies infectieuses (dont VIH)","X19","Fièvre, Infection, Septicémie, VIH","G153","Maladies infectieuses ou parasitaires hors septicémies et maladies virales","D18X19","D18X19G153"]
["19C02","Interventions chirurgicales avec un diagnostic principal de maladie mentale","D26","Activités inter spécialités, suivi thérapeutique d'affections connues","C25","Chirurgie inter spécialités","G179","Chirurgie inter spécialités","D26C25","D26C25G179"]
["19M02","Troubles aigus de l'adaptation et du fonctionnement psychosocial","D22","Psychiatrie","X20","Psychiatrie","G171","Névroses, psychoses et autres troubles mentaux","D22X20","D22X20G171"]
["19M06","Troubles mentaux d'origine organique et retards mentaux, âge supérieur à 79 ans","D22","Psychiatrie","X20","Psychiatrie","G170","Troubles mentaux d'origine organique et retards mentaux","D22X20","D22X20G170"]
["19M07","Troubles mentaux d'origine organique et retards mentaux, âge inférieur à 80 ans","D22","Psychiatrie","X20","Psychiatrie","G170","Troubles mentaux d'origine organique et retards mentaux","D22X20","D22X20G170"]
["19M10","Névroses autres que les névroses dépressives","D22","Psychiatrie","X20","Psychiatrie","G171","Névroses, psychoses et autres troubles mentaux","D22X20","D22X20G171"]
["19M11","Névroses dépressives","D22","Psychiatrie","X20","Psychiatrie","G171","Névroses, psychoses et autres troubles mentaux","D22X20","D22X20G171"]
["19M12","Anorexie mentale et boulimie","D22","Psychiatrie","X20","Psychiatrie","G171","Névroses, psychoses et autres troubles mentaux","D22X20","D22X20G171"]
["19M13","Autres troubles de la personnalité et du comportement avec réactions impulsives","D22","Psychiatrie","X20","Psychiatrie","G171","Névroses, psychoses et autres troubles mentaux","D22X20","D22X20G171"]
["19M14","Troubles bipolaires et syndromes dépressifs sévères","D22","Psychiatrie","X20","Psychiatrie","G171","Névroses, psychoses et autres troubles mentaux","D22X20","D22X20G171"]
["19M15","Autres psychoses, âge supérieur à 79 ans","D22","Psychiatrie","X20","Psychiatrie","G171","Névroses, psychoses et autres troubles mentaux","D22X20","D22X20G171"]
["19M16","Autres psychoses, âge inférieur à 80 ans","D22","Psychiatrie","X20","Psychiatrie","G171","Névroses, psychoses et autres troubles mentaux","D22X20","D22X20G171"]
["19M17","Maladies et troubles du développement psychologiques de l'enfance","D22","Psychiatrie","X20","Psychiatrie","G171","Névroses, psychoses et autres troubles mentaux","D22X20","D22X20G171"]
["19M18","Autres maladies et troubles mentaux de l'enfance","D22","Psychiatrie","X20","Psychiatrie","G171","Névroses, psychoses et autres troubles mentaux","D22X20","D22X20G171"]
["19M19","Troubles de l'humeur","D22","Psychiatrie","X20","Psychiatrie","G171","Névroses, psychoses et autres troubles mentaux","D22X20","D22X20G171"]
["19M20","Autres troubles mentaux","D22","Psychiatrie","X20","Psychiatrie","G171","Névroses, psychoses et autres troubles mentaux","D22X20","D22X20G171"]
["19M21","Explorations et surveillance pour maladies et troubles mentaux","D22","Psychiatrie","X20","Psychiatrie","G172","Explorations et surveillance pour maladies et troubles mentaux","D22X20","D22X20G172"]
["19M22","Symptômes et autres recours aux soins de la CMD 19","D22","Psychiatrie","X20","Psychiatrie","G171","Névroses, psychoses et autres troubles mentaux","D22X20","D22X20G171"]
["20Z02","Toxicomanies non éthyliques avec dépendance","D23","Toxicologie, Intoxications, Alcool","X21","Effets nocifs, alcool, toxicologie, allergies","G173","Toxicomanies et alcoolisme","D23X21","D23X21G173"]
["20Z03","Abus de drogues non éthyliques sans dépendance","D23","Toxicologie, Intoxications, Alcool","X21","Effets nocifs, alcool, toxicologie, allergies","G173","Toxicomanies et alcoolisme","D23X21","D23X21G173"]
["20Z04","Ethylisme avec dépendance","D23","Toxicologie, Intoxications, Alcool","X21","Effets nocifs, alcool, toxicologie, allergies","G173","Toxicomanies et alcoolisme","D23X21","D23X21G173"]
["20Z05","Ethylisme aigu","D23","Toxicologie, Intoxications, Alcool","X21","Effets nocifs, alcool, toxicologie, allergies","G173","Toxicomanies et alcoolisme","D23X21","D23X21G173"]
["20Z06","Troubles mentaux organiques induits par l'alcool ou d'autres substances","D23","Toxicologie, Intoxications, Alcool","X21","Effets nocifs, alcool, toxicologie, allergies","G173","Toxicomanies et alcoolisme","D23X21","D23X21G173"]
["21C02","Greffes de peau pour lésions autres que des brûlures","D20","Tissu cutané et tissu sous-cutané","C23","Parages de plaies, Greffes de peau, des Tissus S/C","G163","Greffes peau / parages hors brûlures","D20C23","D20C23G163"]
["21C03","Parages de plaies pour lésions autres que des brûlures","D20","Tissu cutané et tissu sous-cutané","C23","Parages de plaies, Greffes de peau, des Tissus S/C","G163","Greffes peau / parages hors brûlures","D20C23","D20C23G163"]
["21C04","Interventions sur la main ou le poignet à la suite de blessures","D02","Orthopédie traumatologie","C11","Chirurgies autres de l'appareil locomoteur, amputations","G029","Chirurgies main, poignet","D02C11","D02C11G029"]
["21C05","Autres interventions pour blessures ou complications d'acte","D26","Activités inter spécialités, suivi thérapeutique d'affections connues","C25","Chirurgie inter spécialités","G179","Chirurgie inter spécialités","D26C25","D26C25G179"]
["21K02","Traumatismes, allergies et empoisonnements sans acte opératoire, avec anesthésie, en ambulatoire","D26","Activités inter spécialités, suivi thérapeutique d'affections connues","K17","Traumatismes, allergies et empoisonnements sans acte opératoire, avec anesthésie, en ambulatoire","G206","Traumatismes, allergies et empoisonnements sans acte opératoire, avec anesthésie, en ambulatoire","D26K17","D26K17G206"]
["21M02","Effets toxiques des médicaments et substances biologiques, âge inférieur à 18 ans","D23","Toxicologie, Intoxications, Alcool","X21","Effets nocifs, alcool, toxicologie, allergies","G175","Iatrogénie, intox médicamenteuses et chimiques","D23X21","D23X21G175"]
["21M04","Réactions allergiques non classées ailleurs, âge inférieur à 18 ans","D23","Toxicologie, Intoxications, Alcool","X21","Effets nocifs, alcool, toxicologie, allergies","G174","Allergies","D23X21","D23X21G174"]
["21M05","Réactions allergiques non classées ailleurs, âge supérieur à 17 ans","D23","Toxicologie, Intoxications, Alcool","X21","Effets nocifs, alcool, toxicologie, allergies","G174","Allergies","D23X21","D23X21G174"]
["21M06","Traumatismes imprécis, âge inférieur à 18 ans","D02","Orthopédie traumatologie","X05","Traumatologie et ablation de matériel de l'appareil locomoteur","G036","Traumatismes du bassin et des membres","D02X05","D02X05G036"]
["21M07","Traumatismes imprécis, âge supérieur à 17 ans","D02","Orthopédie traumatologie","X05","Traumatologie et ablation de matériel de l'appareil locomoteur","G036","Traumatismes du bassin et des membres","D02X05","D02X05G036"]
["21M10","Effets toxiques des médicaments et substances biologiques, âge supérieur à 17 ans","D23","Toxicologie, Intoxications, Alcool","X21","Effets nocifs, alcool, toxicologie, allergies","G175","Iatrogénie, intox médicamenteuses et chimiques","D23X21","D23X21G175"]
["21M11","Effets toxiques des autres substances chimiques","D23","Toxicologie, Intoxications, Alcool","X21","Effets nocifs, alcool, toxicologie, allergies","G175","Iatrogénie, intox médicamenteuses et chimiques",{"$f":"CONCATENATE(C581,E581)","v":"D23X21"},{"$f":"CONCATENATE(I581,G581)","v":"D23X21G175"}]
["21M12","Autres effets toxiques","D23","Toxicologie, Intoxications, Alcool","X21","Effets nocifs, alcool, toxicologie, allergies","G175","Iatrogénie, intox médicamenteuses et chimiques","D23X21","D23X21G175"]
["21M13","Maltraitance","D26","Activités inter spécialités, suivi thérapeutique d'affections connues","X24","Médecine inter spécialités, Autres symptômes ou motifs médicaux","G181","Médecine inter spécialités","D26X24","D26X24G181"]
["21M14","Autres traumatismes et effets nocifs autres que les intoxications","D23","Toxicologie, Intoxications, Alcool","X21","Effets nocifs, alcool, toxicologie, allergies","G175","Iatrogénie, intox médicamenteuses et chimiques","D23X21","D23X21G175"]
["21M15","Rejets de greffe","D26","Activités inter spécialités, suivi thérapeutique d'affections connues","X24","Médecine inter spécialités, Autres symptômes ou motifs médicaux","G181","Médecine inter spécialités","D26X24","D26X24G181"]
["21M16","Autres complications iatrogéniques non classées ailleurs","D23","Toxicologie, Intoxications, Alcool","X21","Effets nocifs, alcool, toxicologie, allergies","G175","Iatrogénie, intox médicamenteuses et chimiques","D23X21","D23X21G175"]
["22C02","Brûlures non étendues avec greffe cutanée","D21","Brûlures","C24","Chirurgie pour brûlures","G204","Brûlures chirurgie","D21C24","D21C24G204"]
["22C03","Brûlures non étendues avec parages de plaie ou autres interventions chirurgicales","D21","Brûlures","C24","Chirurgie pour brûlures","G204","Brûlures chirurgie","D21C24","D21C24G204"]
["22K02","Brûlures sans acte opératoire, avec anesthésie, en ambulatoire","D21","Brûlures","K16","Brûlures sans acte opératoire, avec anesthésie, en ambulatoire","G215","Brûlures sans acte opératoire, avec anesthésie, en ambulatoire","D21K16","D21K16G215"]
["22M02","Brûlures et gelures non étendues sans intervention chirurgicale","D21","Brûlures","X17","Brûlures","G169","Brûlures sans acte opératoire classant","D21X17","D21X17G169"]
["22Z02","Brûlures étendues","D21","Brûlures","X17","Brûlures","G169","Brûlures sans acte opératoire classant","D21X17","D21X17G169"]
["22Z03","Brûlures avec transfert vers un autre établissement MCO : séjours de moins de 2 jours","D21","Brûlures","X17","Brûlures","G169","Brûlures sans acte opératoire classant","D21X17","D21X17G169"]
["23C02","Interventions chirurgicales avec autres motifs de recours aux services de santé","D26","Activités inter spécialités, suivi thérapeutique d'affections connues","C25","Chirurgie inter spécialités","G179","Chirurgie inter spécialités","D26C25","D26C25G179"]
["23K02","Explorations nocturnes et apparentées : séjours de moins de 2 jours","D26","Activités inter spécialités, suivi thérapeutique d'affections connues","K12","Explorations nocturnes, séjours de moins de 2 jours","G183","Explorations nocturnes et apparentées","D26K12","D26K12G183"]
["23K03","Motifs de recours de la CMD 23 sans acte opératoire, avec anesthésie, en ambulatoire","D26","Activités inter spécialités, suivi thérapeutique d'affections connues","K15","Autres séj. sans acte, avec anesthésie, en ambulatoire (Aff. myéloP., peau, sein...)","G203"," Autres séj. sans acte, avec anesthésie, en ambulatoire (Aff. myéloP., peau, sein..)","D26K15","D26K15G203"]
["23M02","Rééducation","D26","Activités inter spécialités, suivi thérapeutique d'affections connues","X18","Suivi thérap. d'affections connues, Allergologie, Rééducation, Convalescence","G186","Rééducation - Convalescence","D26X18","D26X18G186"]
["23M06","Autres facteurs influant sur l'état de santé","D26","Activités inter spécialités, suivi thérapeutique d'affections connues","X24","Médecine inter spécialités, Autres symptômes ou motifs médicaux","G194","Signes et symptômes","D26X24","D26X24G194"]
["23M07","Autres motifs de recours pour infection à VIH, en ambulatoire","D18","Maladies infectieuses (dont VIH)","X19","Fièvre, Infection, Septicémie, VIH","G156","Maladies VIH","D18X19","D18X19G156"]
["23M08","Autres motifs de recours chez un patient diabétique, en ambulatoire","D19","Endocrinologie","X15","Diabète, Maladies métaboliques, Endocrinologie (hors complications)","G159","Diabète","D19X15","D19X15G159"]
["23M09","Chimiothérapie pour affections non tumorales","D17","Chimiothérapie, radiothérapie, hors séances","X23","Chimiothérapie (hors séances)","G150","Chimiothérapie non tumorale hors séances","D17X23","D17X23G150"]
["23M10","Soins de contrôle chirurgicaux","D26","Activités inter spécialités, suivi thérapeutique d'affections connues","X18","Suivi thérap. d'affections connues, Allergologie, Rééducation, Convalescence","G184","Suivi thérap.d'affections connues ","D26X18","D26X18G184"]
["23M11","Autres motifs concernant majoritairement la petite enfance","D26","Activités inter spécialités, suivi thérapeutique d'affections connues","X24","Médecine inter spécialités, Autres symptômes ou motifs médicaux","G181","Médecine inter spécialités","D26X24","D26X24G181"]
["23M13","Désensibilisations nécessitant une hospitalisation","D26","Activités inter spécialités, suivi thérapeutique d'affections connues","X18","Suivi thérap. d'affections connues, Allergologie, Rééducation, Convalescence","G182","Allergologie","D26X18","D26X18G182"]
["23M14","Traitements prophylactiques","D26","Activités inter spécialités, suivi thérapeutique d'affections connues","X18","Suivi thérap. d'affections connues, Allergologie, Rééducation, Convalescence","G184","Suivi thérap.d'affections connues ","D26X18","D26X18G184"]
["23M15","Actes non effectués en raison d'une contre-indication","D26","Activités inter spécialités, suivi thérapeutique d'affections connues","X24","Médecine inter spécialités, Autres symptômes ou motifs médicaux","G181","Médecine inter spécialités","D26X24","D26X24G181"]
["23M16","Convalescences et autres motifs sociaux","D26","Activités inter spécialités, suivi thérapeutique d'affections connues","X18","Suivi thérap. d'affections connues, Allergologie, Rééducation, Convalescence","G186","Rééducation - Convalescence","D26X18","D26X18G186"]
["23M18","Tests allergologiques nécessitant une hospitalisation","D26","Activités inter spécialités, suivi thérapeutique d'affections connues","X18","Suivi thérap. d'affections connues, Allergologie, Rééducation, Convalescence","G182","Allergologie","D26X18","D26X18G182"]
["23M19","Explorations et surveillance pour autres motifs de recours aux soins","D26","Activités inter spécialités, suivi thérapeutique d'affections connues","X18","Suivi thérap. d'affections connues, Allergologie, Rééducation, Convalescence","G185","Explorations et surveillance pour autres motifs de recours aux soins","D26X18","D26X18G185"]
["23M20","Autres symptômes et motifs de recours aux soins de la CMD 23","D26","Activités inter spécialités, suivi thérapeutique d'affections connues","X24","Médecine inter spécialités, Autres symptômes ou motifs médicaux","G194","Signes et symptômes","D26X24","D26X24G194"]
["23Z02","Soins Palliatifs, avec ou sans acte","D24","Douleurs chroniques, Soins palliatifs","X22","Douleur et soins palliatifs","G176","Soins palliatifs","D24X22","D24X22G176"]
["23Z03","Interventions de confort et autres interventions non prises en charge par l'assurance maladie obligatoire","D26","Activités inter spécialités, suivi thérapeutique d'affections connues","X26","Chirurgie esthétique et de confort","G180","Chirurgie esthétique et de confort","D26X26","D26X26G180"]
["25C02","Interventions pour maladie due au VIH","D26","Activités inter spécialités, suivi thérapeutique d'affections connues","C25","Chirurgie inter spécialités","G179","Chirurgie inter spécialités","D26C25","D26C25G179"]
["25M02","Autres maladies dues au VIH","D18","Maladies infectieuses (dont VIH)","X19","Fièvre, Infection, Septicémie, VIH","G156","Maladies VIH","D18X19","D18X19G156"]
["25Z02","Maladies dues au VIH, avec décès","D18","Maladies infectieuses (dont VIH)","X19","Fièvre, Infection, Septicémie, VIH","G156","Maladies VIH","D18X19","D18X19G156"]
["25Z03","Maladies dues au VIH, âge inférieur à 13 ans","D18","Maladies infectieuses (dont VIH)","X19","Fièvre, Infection, Septicémie, VIH","G156","Maladies VIH","D18X19","D18X19G156"]
["26C02","Interventions pour traumatismes multiples graves","D03","Traumatismes multiples ou complexes graves","C12","Traumatismes multiples graves","G037","Polytraumatismes graves","D03C12","D03C12G037"]
["26M02","Traumatismes multiples graves","D03","Traumatismes multiples ou complexes graves","X25","Traumatismes multiples graves","G216","Polytraumatismes graves","D03X25","D03X25G216"]
["27C02","Transplantations hépatiques","D25","Transplant. d'organes","C01","Transplant. d'organes (hors greffes de moelle & cornée)","G178","Transplantations d'organes","D25C01","D25C01G178"]
["27C03","Transplantations pancréatiques","D25","Transplant. d'organes","C01","Transplant. d'organes (hors greffes de moelle & cornée)","G178","Transplantations d'organes","D25C01","D25C01G178"]
["27C04","Transplantations pulmonaires","D25","Transplant. d'organes","C01","Transplant. d'organes (hors greffes de moelle & cornée)","G178","Transplantations d'organes","D25C01","D25C01G178"]
["27C05","Transplantations cardiaques","D25","Transplant. d'organes","C01","Transplant. d'organes (hors greffes de moelle & cornée)","G178","Transplantations d'organes","D25C01","D25C01G178"]
["27C06","Transplantations rénales","D25","Transplant. d'organes","C01","Transplant. d'organes (hors greffes de moelle & cornée)","G178","Transplantations d'organes","D25C01","D25C01G178"]
["27C07","Autres transplantations","D25","Transplant. d'organes","C01","Transplant. d'organes (hors greffes de moelle & cornée)","G178","Transplantations d'organes","D25C01","D25C01G178"]
["27Z02","Allogreffes de cellules souches hématopoïétiques","D16","Hématologie","X01","Greffe de moelle, Auto et Allogreffes de cellules souches","G142","greffes de cellules souches hématopoïétiques","D16X01","D16X01G142"]
["27Z03","Autogreffes de cellules souches hématopoïétiques","D16","Hématologie","X01","Greffe de moelle, Auto et Allogreffes de cellules souches","G142","greffes de cellules souches hématopoïétiques","D16X01","D16X01G142"]
["27Z04","Greffes de cellules souches hématopoïétiques, en ambulatoire","D16","Hématologie","X01","Greffe de moelle, Auto et Allogreffes de cellules souches","G142","greffes de cellules souches hématopoïétiques","D16X01","D16X01G142"]
["28Z01","Entraînements à la dialyse péritonéale automatisée, en séances","D27","Séances","S01","Dialyse","G187","Séances : dialyse","D27S01","D27S01G187"]
["28Z02","Entraînements à la dialyse péritonéale continue ambulatoire, en séances","D27","Séances","S01","Dialyse","G187","Séances : dialyse","D27S01","D27S01G187"]
["28Z03","Entraînements à l'hémodialyse, en séances","D27","Séances","S01","Dialyse","G187","Séances : dialyse","D27S01","D27S01G187"]
["28Z04","Hémodialyse, en séances","D27","Séances","S01","Dialyse","G187","Séances : dialyse","D27S01","D27S01G187"]
["28Z07","Chimiothérapie pour tumeur, en séances","D27","Séances","S02","Chimiothérapie pour tumeur","G190","Séances : chimiothérapie","D27S02","D27S02G190"]
["28Z10","Curiethérapie, en séances","D27","Séances","S04","Radiothérapie","G189","Séances : radiothérapie","D27S04","D27S04G189"]
["28Z11","Techniques spéciales d'irradiation externe, en séances","D27","Séances","S04","Radiothérapie","G189","Séances : radiothérapie","D27S04","D27S04G189"]
["28Z14","Transfusions, en séances","D27","Séances","S05","Transfusion","G188","Séances : transfusion","D27S05","D27S05G188"]
["28Z15","Oxygénothérapie hyperbare, en séances","D27","Séances","S07","Oxygénothérapie hyperbare, en séances","G192","Séances : caisson hyperbare","D27S07","D27S07G192"]
["28Z16","Aphérèses sanguines, en séances","D27","Séances","S06","Aphérèse","G193","Séances : aphérèse sanguine","D27S06","D27S06G193"]
["28Z17","Chimiothérapie pour affection non tumorale, en séances","D27","Séances","S03","Chimiothérapie pour aff. Non tumorale","G191","Séances : chimiothérapie non tumorale","D27S03","D27S03G191"]
["28Z18","Radiothérapie conformationnelle avec modulation d'intensité, en séances","D27","Séances","S04","Radiothérapie","G189","Séances : radiothérapie","D27S04","D27S04G189"]
["28Z19","Préparations à une irradiation externe par RCMI ou techniques spéciales","D27","Séances","S04","Radiothérapie","G189","Séances : radiothérapie","D27S04","D27S04G189"]
["28Z20","Préparations à une irradiation externe avec dosimétrie tridimensionnelle avec HDV","D27","Séances","S04","Radiothérapie","G189","Séances : radiothérapie","D27S04","D27S04G189"]
["28Z21","Préparations à une irradiation externe avec dosimétrie tridimensionnelle sans HDV","D27","Séances","S04","Radiothérapie","G189","Séances : radiothérapie","D27S04","D27S04G189"]
["28Z22","Autres préparations à une irradiation externe","D27","Séances","S04","Radiothérapie","G189","Séances : radiothérapie","D27S04","D27S04G189"]
["28Z23","Techniques complexes d'irradiation externe avec repositionnement, en séances","D27","Séances","S04","Radiothérapie","G189","Séances : radiothérapie","D27S04","D27S04G189"]
["28Z24","Techniques complexes d'irradiation externe sans repositionnement, en séances","D27","Séances","S04","Radiothérapie","G189","Séances : radiothérapie","D27S04","D27S04G189"]
["28Z25","Autres techniques d'irradiation externe, en séances","D27","Séances","S04","Radiothérapie","G189","Séances : radiothérapie",{"$f":"CONCATENATE(C645,E645)","v":"D27S04"},{"$f":"CONCATENATE(I645,G645)","v":"D27S04G189"}]
["90H01","Erreurs détectées dans les RSA par le logiciel de mesure de l'activité hospitalière","D90","Séjours en erreur","Z99","Séjours en Erreur","G999","Séjours en Erreur ","D90Z99","D90Z99G999"]
["90Z00","Erreurs détectées par les contrôles effectués sur les RUM et leur séquencement","D90","Séjours en erreur","Z99","Séjours en Erreur","G999","Séjours en Erreur ","D90Z99","D90Z99G999"]
["90Z01","Diagnostic invalide comme diagnostic principal, dans certaines circonstances","D90","Séjours en erreur","Z99","Séjours en Erreur","G999","Séjours en Erreur ","D90Z99","D90Z99G999"]
["90Z02","Autres erreurs détectées dans le parcours de l'arbre de groupage","D90","Séjours en erreur","Z99","Séjours en Erreur","G999","Séjours en Erreur ","D90Z99","D90Z99G999"]
["90Z03","Erreurs d'implémentation de la fonction groupage ou erreur d'exécution d'un programme","D90","Séjours en erreur","Z99","Séjours en Erreur","G999","Séjours en Erreur ","D90Z99","D90Z99G999"]